{"text_format":"1","workbook":"xlsx","n_sheets":10,"sheets":["Accueil","Listes","BD articles budgétaires","BD crédits budgétaires","Tables BP","Tables BDM1","Tables BDM2","Tables BM","BD opérations financières","Tables OF"],"not_rendered":{"charts":0,"images":0,"macros":1,"external_links":1,"defined_names":4,"comments":0,"pivot_tables":0},"unopened":[],"bounds":{"document_bytes":16777216,"sheet_cells":100000,"rows_first":2000,"rows_last":500,"rows_between":2000,"halvings":0,"cell_chars":16384,"cell_head_chars":4096},"cells_cut":0,"cells_raw":0,"read":"whole","date_system":"1900"}

{"sheet":"Accueil","index":0,"n_rows":36,"n_cols":11,"rows_kept":36,"cut":false,"hidden":false,"merged":[]}
[null,null,null,null,null,null,2024,null,null,"Open","Save"]
[null,null,null,null,null,null,null,null,null,"2024-09-19T17:06:45","2024-09-19T17:06:02"]
[null,null,null,null,null,null,null,null,null,"2024-09-19T17:14:42","2024-09-19T17:06:29"]
[null,null,null,null,null,null,null,null,null,"2024-09-19T17:23:14","2024-09-19T17:13:58"]
[null,null,null,null,null,null,null,null,null,"2024-09-19T18:51:22","2024-09-19T17:31:55"]
[null,null,null,null,null,null,null,null,null,"2024-09-19T20:09:59","2024-09-19T19:09:41"]
[null,null,null,null,null,null,null,null,null,"2024-09-20T09:27:18","2024-09-19T19:39:29"]
[null,null,null,null,null,null,null,null,null,"2024-09-21T11:12:24","2024-09-19T19:44:25"]
[null,null,null,null,null,null,null,null,null,"2024-09-21T15:06:20","2024-09-19T20:06:47"]
[null,null,null,null,null,null,null,null,null,"2024-09-21T18:45:25","2024-09-19T21:26:24"]
[null,null,null,null,null,null,null,null,null,"2024-09-21T20:10:04","2024-09-20T09:51:36"]
[null,null,null,null,null,null,null,null,null,"2024-09-22T11:23:57","2024-09-20T10:41:17"]
[null,null,null,null,null,null,null,null,null,"2024-09-22T15:18:03","2024-09-20T10:41:31"]
[null,null,null,null,null,null,null,null,null,"2024-09-22T21:16:04","2024-09-20T11:38:55"]
[null,null,null,null,null,null,null,null,null,"2024-09-23T11:29:36","2024-09-21T12:01:34"]
[null,null,null,null,null,null,null,null,null,"2024-09-23T16:04:49","2024-09-21T16:35:10"]
[null,null,null,null,null,null,null,null,null,"2024-09-23T16:53:52","2024-09-21T20:06:29"]
[null,null,null,null,null,null,null,null,null,"2024-09-23T19:24:21","2024-09-21T22:36:42"]
[null,null,null,null,null,null,null,null,null,"2024-09-24T09:04:04","2024-09-22T11:57:39"]
[null,null,null,null,null,null,null,null,null,"2024-09-24T09:33:14","2024-09-22T11:58:42"]
[null,null,null,null,null,null,null,null,null,"2024-09-24T21:56:30","2024-09-22T13:30:11"]
[null,null,null,null,null,null,null,null,null,"2024-09-25T11:05:29","2024-09-22T16:29:57"]
[null,null,null,null,null,null,null,null,null,"2024-09-25T15:37:56","2024-09-22T21:51:53"]
[null,null,null,null,null,null,null,null,null,null,"2024-09-23T12:14:45"]
[null,null,null,null,null,null,null,null,null,null,"2024-09-23T16:53:27"]
[null,null,null,null,null,null,null,null,null,null,"2024-09-23T17:30:34"]
[null,null,null,null,null,null,null,null,null,null,"2024-09-23T22:20:32"]
[null,null,null,null,null,null,null,null,null,null,"2024-09-24T09:16:04"]
[null,null,null,null,null,null,null,null,null,null,"2024-09-24T09:34:58"]
[null,null,null,null,null,null,null,null,null,null,"2024-09-24T09:39:00"]
[null,null,null,null,null,null,null,null,null,null,"2024-09-24T22:21:59"]
[null,null,null,null,null,null,null,null,null,null,"2024-09-25T12:01:41"]
[null,null,null,null,null,null,null,null,null,null,"2024-09-25T12:29:35"]
[null,null,null,null,null,null,null,null,null,null,"2024-09-25T12:48:50"]
[null,null,null,null,null,null,null,null,null,null,"2024-09-25T16:35:50"]
[null,null,null,null,null,null,null,null,null,null,"2024-09-25T16:43:27"]

{"sheet":"Listes","index":1,"n_rows":208,"n_cols":48,"rows_kept":208,"cut":false,"hidden":false,"merged":[]}
[2024]
[]
["TabType",null,null,"TabNature",null,null,"TabCatégorie",null,null,"TabMois",null,"TabDA",null,null,"TabDB",null,null,"TabDH",null,null,"TabDM",null,null,"TabDNA",null,null,"TabRB",null,null,"TabRM",null,null,"TabRN",null,null,"TabPériode",null,null,"TabConditionnement",null,null,"TabClientOuFournisseur",null,"TabClients",null,"TabFournisseurs",null,"TabModeRéglement"]
["Nom type","Code type",null,"Nature","Code nature",null,"Catégorie","Code catégorie",null,"Nom mois",null,"Nom article","Code article",null,"Nom article","Code article",null,"Nom article","Code article",null,"Nom article","Code article",null,"Nom article","Code article",null,"Nom article","Code article",null,"Nom article","Code article",null,"Nom article","Code article",null,"Nom période","Code période",null,"Nom conditionnement","Code conditionnement",null,"Client ou fournisseur",null,"Nom client",null,"Nom fournisseur",null,"Mode règlement"]
["Article dépense budgétaire","ADB",null,"Budget primitif","BP",null,"Dépenses alimentaires","DA",null,{"$f":"\"Janvier\" & \" \" &$A$1","v":"Janvier 2024"},null,"Agneau","DA001",null,"Abonnement Canal Plus","DB001",null,"Autres dépenses horticoles","DH001",null,"Analyses","DM001",null,"Agrafes","DNA001",null,"Argent emprunté","RB001",null,"Mutuelle analyses","RM001",null,"Argent emprunté","RN001",null,"Annuelle","PAB01",null,"1 aller et retour (Billets de train)","CAB01",null,"Client",null,"Autres clients",null,"1001 piles",null,"Bancaire"]
["Article recette budgétaire","ARB",null,"Budget décision modificative numéro une","BDM1",null,"Dépenses bancaires","DB",null,{"$f":"\"Février\" & \" \" &$A$1","v":"Février 2024"},null,"Ananas","DA002",null,"Abonnement Canal Satellite","DB002",null,"Cache-pots","DH002",null,"Autres dépenses médicales","DM002",null,"Agrafeuses","DNA002",null,"Autres recettes bancaires","RB002",null,"Mutuelle autres recettes médicales","RM002",null,"Argent trouvé","RN002",null,"Bimensuelle","PAB02",null,"1 baguette pour 4 jours (Pain)","CAB02",null,"Fournisseur",null,"BFCC",null,"Autres fournisseurs",null,"Numéraire"]
[null,null,null,"Budget décision modificative numéro deux","BDM2",null,"Dépenses horticoles","DH",null,{"$f":"\"Mars\" & \" \" &$A$1","v":"Mars 2024"},null,"Apéritif","DA003",null,"Abonnement Coopanet (Banque française de crédit coopératif)","DB003",null,"Engrais","DH003",null,"Dentiste","DM003",null,"Ajax","DNA003",null,"Mutuelle","RB003",null,"Mutuelle dentiste","RM003",null,"Autres recettes numéraires","RN003",null,"Bimestrielle","PAB03",null,"1 bloc de 100 feuilles (papier à lettres)","CAB03",null,null,null,"Bot-Nicola",null,"Bot-Nicola",null,"Virement bancaire"]
[null,null,null,"Budget mensuel","BM",null,"Dépenses médicales","DM",null,{"$f":"\"Avril\" & \" \" & $A$1","v":"Avril 2024"},null,"Asperges","DA004",null,"Actions Caisse épargne","DB004",null,"Fleurs","DH004",null,"Docteur dermatologue","DM004",null,"Allume-gaz","DNA004",null,"Pension caisse nationale d'assurance vieillesse (CNAV)","RB004",null,"Mutuelle docteur dermatologue","RM004",null,"Déconsignation bouteille liquide cigarette éectronique NHOSS","RN004",null,"Du 01 au 16 inclus de chaque mois","PAB04",null,"1 bocal ou 1 boîte pour 1 repas (Asperges)","CAB04",null,null,null,"Caisse épargne",null,"Boucherie Boissy2"]
[null,null,null,"Opérations financières","OF",null,"Dépenses non alimentaires","DNA",null,{"$f":"\"Mai\"& \" \" & $A$1","v":"Mai 2024"},null,"Autres dépenses alimentaires","DA005",null,"Aspirateur","DB005",null,"Muguet","DH005",null,"Docteur généraliste","DM005",null,"Ampoules électriques","DNA005",null,"Pension caisse nationale des retraites des agents des collectivités locales (CNRACL)","RB005",null,"Mutuelle docteur généraliste","RM005",null,"Fidélité Carrefour","RN005",null,"Du 17 au 24 inclus de chaque mois","PAB05",null,"1 boîte de 100 de 30 mm ou de 32 mm (Trombones)","CAB05",null,null,null,"Carrefour",null,"Carrefour"]
[null,null,null,null,null,null,"Recettes bancaires","RB",null,{"$f":"\"Juin\" & \" \"&$A$1","v":"Juin 2024"},null,"Autres fruits","DA006",null,"Assurance accidents de la vie (Caisse épargne)","DB006",null,"Plantes","DH006",null,"Docteur ophtalmologiste","DM006",null,"Ampoules halogènes","DNA006",null,"Sécurité sociale","RB006",null,"Mutuelle docteur ophtalmologiste","RM006",null,"Fidélité FNAC","RN006",null,"Du 25 au 31 inclus de chaque mois","PAB06",null,"1 boîte de 100 grammes (Élastiques)","CAB06",null,null,null,"Comptoir restauration presse",null,"Comptoir restauration presse"]
[null,null,null,null,null,null,"Recettes médicales","RM",null,{"$f":"\"Juillet\"&\" \"&$A$1","v":"Juillet 2024"},null,"Avocat légume","DA007",null,"Assurance incendie (Caisse épargne)","DB007",null,"Pots à fleurs","DH007",null,"Monture des lunettes","DM007",null,"Argent perdu","DNA007",null,null,null,null,"Mutuelle forfait monture des lunettes","RM007",null,"Fidélité Géant casino","RN007",null,"Hebdomadaire","PAB07",null,"1 boîte de 100 grammes ou de 200 grammes (50 ou 100 sachets). 3 sachets par jour (Thé)","CAB07",null,null,null,"Darty",null,"Darty"]
[null,null,null,null,null,null,"Recettes numéraires","RN",null,{"$f":"\"Août\"&\" \"&$A$1","v":"Août 2024"},null,"Avocats desserts","DA008",null,"Assurance protection juridique (Caisse épargne)","DB008",null,"Pots à plantes","DH008",null,"Pharmacie vignette blanche","DM008",null,"Argent perdu sur monnaie rendue","DNA008",null,null,null,null,"Mutuelle forfait verres des lunettes","RM008",null,"Fidélité GEMO","RN008",null,"Journalière","PAB08",null,"1 boîte de 1000 agrafes 26/6 Esquisse Leclerc","CAB08",null,null,null,"FNAC",null,"Dermatologue"]
[null,null,null,null,null,null,null,null,null,{"$f":"\"Septembre\"&\" \"&$A$1","v":"Septembre 2024"},null,"Bananes desserts","DA009",null,"Autre matériel informatique","DB009",null,"Soucoupes","DH009",null,"Pharmacie vignette bleue","DM009",null,"Aspirateur","DNA009",null,null,null,null,"Mutuelle monture des lunettes","RM009",null,"Fidélité Intermarché","RN009",null,"Mensuelle","PAB09",null,"1 boîte de 1000 grammes pour une durée indéterminée (Gros sel)","CAB09",null,null,null,"Géant Casino",null,"Éboueurs"]
[null,null,null,null,null,null,null,null,null,{"$f":"\"Octobre\"&\" \"&$A$1","v":"Octobre 2024"},null,"Bananes matin","DA010",null,"Autres dépenses bancaires","DB010",null,"Terre","DH010",null,"Pharmacie vignette orange","DM010",null,"Assouplissant pour le linge","DNA010",null,null,null,null,"Mutuelle pharmacie vignette blanche","RM010",null,"Fidélité Leclerc","RN010",null,"Selon les besoins","PAB10",null,"1 boîte de 1000 grammes. 336 pierres. 6 pierres par jour (Sucre petits morceaux)","CAB10",null,null,null,"Gémo",null,"Encre service"]
[null,null,null,null,null,null,"TabADB",null,null,{"$f":"\"Novembre\"&\" \"&$A$1","v":"Novembre 2024"},null,"Betterave rouge","DA011",null,"Cadeaux","DB011",null,"Tuteurs","DH011",null,"Prélèvements","DM011",null,"Autre matériel informatique","DNA011",null,null,null,null,"Mutuelle pharmacie vignette bleue","RM011",null,"Remboursement argent prêté à des tiers","RN011",null,"Selon menu","PAB11",null,"1 boîte de 12, 24 ou 32 portions. 1 portion par soir. (Fromage soir)","CAB11",null,null,null,"Joly",null,"Facteur"]
[null,null,null,null,null,null,"Catégorie","Code catégorie",null,{"$f":"\"Décembre\"&\" \"&$A$1","v":"Décembre 2024"},null,"Beurre","DA012",null,"Carte amicale des locataires (Confédération nationale du logement)","DB012",null,null,null,null,"Radiographies","DM012",null,"Autres dépenses non alimentaires","DNA012",null,null,null,null,"Mutuelle pharmacie vignette orange","RM012",null,"Trop perçu sur monnaie rendue","RN012",null,"Semestrielle","PAB12",null,"1 boîte de 2 capsules (Cigarettes électroniques Blu et Vype ePen 3)","CAB12",null,null,null,"Leclerc",null,"Flash retouches"]
[null,null,null,null,null,null,"Dépenses alimentaires","DA",null,null,null,"Bifteck haché de bœuf","DA013",null,"Cocotte minute","DB013",null,null,null,null,"Verres des lunettes","DM013",null,"Autres étrennes à répartir","DNA013",null,null,null,null,"Mutuelle prélèvements","RM013",null,"Virements de fonds","RN013",null,"Tous les 4 jours","PAB13",null,"1 boîte de 3 pods (Cigarettes électroniques NHOSS, Innokin)","CAB13",null,null,null,"Ray",null,"FNAC"]
[null,null,null,null,null,null,"Dépenses bancaires","DB",null,null,null,"Bifteck haché de cheval","DA014",null,"Congélateur","DB014",null,null,null,null,null,null,null,"Balais","DNA014",null,null,null,null,"Mutuelle radiographies","RM014",null,null,null,null,"Tous les 4 mois","PAB14",null,"1 boîte de 30 mètres x 29 cm (Papier aluminium)","CAB14",null,null,null,null,null,"Gardien"]
[null,null,null,null,null,null,"Dépenses horticoles","DH",null,null,null,"Bifteck haché de veau","DA015",null,"Cuisinière","DB015",null,null,null,null,null,null,null,"Balayette pour cuvette W.C. (y compris récipient)","DNA015",null,null,null,null,"Mutuelle verres des lunettes","RM015",null,null,null,null,"Trimestrielle","PAB15",null,"1 boîte de 5 ou 10 carnets à 100 feuilles pour chaque carnet (Feuilles à cigarettes)","CAB15",null,null,null,null,null,"Géant Casino"]
[null,null,null,null,null,null,"Dépenses médicales","DM",null,null,null,"Bœuf","DA016",null,"Électricité","DB016",null,null,null,null,null,null,null,"Billets de tombola","DNA016",null,null,null,null,"Sécurité sociale analyses","RM016",null,null,null,null,null,null,null,"1 boîte de 500 grammes pour une durée indéterminée (Sel fin)","CAB16",null,null,null,null,null,"Gémo"]
[null,null,null,null,null,null,"Dépenses non alimentaires","DNA",null,null,null,"Bonbons","DA017",null,"Four à micro-ondes","DB017",null,null,null,null,null,null,null,"Billets de train","DNA017",null,null,null,null,"Sécurité sociale autres recettes médicales","RM017",null,null,null,null,null,null,null,"1 boîte de 6 œufs. 3 œufs pour 1 repas","CAB17",null,null,null,null,null,"Généraliste"]
[null,null,null,null,null,null,null,null,null,null,null,"Bouchée à la reine","DA018",null,"Friteuse électrique","DB018",null,null,null,null,null,null,null,"Blouses (maison et ménage)","DNA018",null,null,null,null,"Sécurité sociale dentiste","RM018",null,null,null,null,null,null,null,"1 boîte de 750 grammes pour une durée indéterminée (Lait en poudre écrémé, Sel fin)","CAB18",null,null,null,null,null,"Histoire d'or"]
[null,null,null,null,null,null,null,null,null,null,null,"Boudin","DA019",null,"Friteuse gaz","DB019",null,null,null,null,null,null,null,"Bobines papier machine à calculer","DNA019",null,null,null,null,"Sécurité sociale docteur dermatologue","RM019",null,null,null,null,null,null,null,"1 boîte de 8 parts soit 800 grammes. 1 par repas. (Quiche lorraine)","CAB19",null,null,null,null,null,"Jardin Benoît"]
[null,null,null,null,null,null,"TabARB",null,null,null,null,"Café","DA020",null,"Gaz","DB020",null,null,null,null,null,null,null,"Bouchons évier","DNA020",null,null,null,null,"Sécurité sociale docteur généraliste","RM020",null,null,null,null,null,null,null,"1 boîte ou 1 flacon pour 1 repas","CAB20",null,null,null,null,null,"Joly"]
[null,null,null,null,null,null,"Catégorie","Code catégorie",null,null,null,"Carottes","DA021",null,"Graveur compact-disc informatique","DB021",null,null,null,null,null,null,null,"Bouchons lavabo","DNA021",null,null,null,null,"Sécurité sociale docteur ophtalmologiste","RM021",null,null,null,null,null,null,null,"1 boîte par dimanche midi et jours fériés. (Gâteaux apéritif)","CAB21",null,null,null,null,null,"La Poste"]
[null,null,null,null,null,null,"Recettes bancaires","RB",null,null,null,"Cassoulet","DA022",null,"Graveur compact-disc vidéo","DB022",null,null,null,null,null,null,null,"Bougies","DNA022",null,null,null,null,"Sécurité sociale monture des lunettes","RM022",null,null,null,null,null,null,null,"1 boîte pour 1 repas","CAB22",null,null,null,null,null,"Leclerc"]
[null,null,null,null,null,null,"Recettes médicales","RM",null,null,null,"Céleri","DA023",null,"Impôts locaux","DB023",null,null,null,null,null,null,null,"Bouteilles thermos","DNA023",null,null,null,null,"Sécurité sociale pharmacie vignette blanche","RM023",null,null,null,null,null,null,null,"1 boîte pour 2 repas","CAB23",null,null,null,null,null,"Marc Orlan"]
[null,null,null,null,null,null,"Recettes numéraires","RN",null,null,null,"Cervelas","DA024",null,"Impôts sur le revenu des personnes physiques","DB024",null,null,null,null,null,null,null,"Boutons","DNA024",null,null,null,null,"Sécurité sociale pharmacie vignette bleue","RM024",null,null,null,null,null,null,null,"1 botte ou 1 sachet pour deux repas (Radis LMR)","CAB24",null,null,null,null,null,"Mister MINIT"]
[null,null,null,null,null,null,null,null,null,null,null,"Champignons","DA025",null,"Imprimantes","DB025",null,null,null,null,null,null,null,"Briquets","DNA025",null,null,null,null,"Sécurité sociale pharmacie vignette orange","RM025",null,null,null,null,null,null,null,"1 botte ou 1 sachet pour un repas (Radis LSV)","CAB25",null,null,null,null,null,"Novaviande"]
[null,null,null,null,null,null,null,null,null,null,null,"Cheval","DA026",null,"Livres bibliophiles","DB026",null,null,null,null,null,null,null,"Brise-jets","DNA026",null,null,null,null,"Sécurité sociale prélèvements","RM026",null,null,null,null,null,null,null,"1 bouquet","CAB26",null,null,null,null,null,"Office dépôt"]
[null,null,null,null,null,null,null,null,null,null,null,"Chips","DA027",null,"Livres informatiques","DB027",null,null,null,null,null,null,null,"Brosses à dents","DNA027",null,null,null,null,"Sécurité sociale radiographies","RM027",null,null,null,null,null,null,null,"1 bouteille de 10 millilitres (Cigarettes électroniques NHOSS)","CAB27",null,null,null,null,null,"Ophtalmologiste"]
[null,null,null,null,null,null,null,null,null,null,null,"Chocolat","DA028",null,"Logiciels informatiques","DB028",null,null,null,null,null,null,null,"Câbles imprimantes","DNA028",null,null,null,null,"Sécurité sociale verres des lunettes","RM028",null,null,null,null,null,null,null,"1 bouteille de 100 centilitres (Huile, Vinaigre assaisonnement)","CAB28",null,null,null,null,null,"Opticien"]
[null,null,null,null,null,null,null,null,null,null,null,"Choucroute","DA029",null,"Loyer et charges","DB029",null,null,null,null,null,null,null,"Câbles réseau","DNA029",null,null,null,null,null,null,null,null,null,null,null,null,null,"1 bouteille de 100 centilitres (Savon noir, Vinaigre anticalcaire)","CAB29",null,null,null,null,null,"Osmose"]
[null,null,null,null,null,null,null,null,null,null,null,"Chou-fleur","DA030",null,"Machine à laver","DB030",null,null,null,null,null,null,null,"Cadeaux","DNA030",null,null,null,null,null,null,null,null,null,null,null,null,null,"1 bouteille de 100 millilitres","CAB30",null,null,null,null,null,"Pompiers"]
[null,null,null,null,null,null,null,null,null,null,null,"Choux de Bruxelles","DA031",null,"Magnétoscope","DB031",null,null,null,null,null,null,null,"Cahiers","DNA031",null,null,null,null,null,null,null,null,null,null,null,null,null,"1 bouteille de 150 centilitres (Coca-cola, Eau)","CAB31",null,null,null,null,null,"Pressing"]
[null,null,null,null,null,null,null,null,null,null,null,"Clémentines","DA032",null,"Mutuelle","DB032",null,null,null,null,null,null,null,"Carte amicale des locataires (Confédération nationale du logement)","DNA032",null,null,null,null,null,null,null,null,null,null,null,null,null,"1 bouteille de 75 centilitres (Apéritif)","CAB32",null,null,null,null,null,"R.A.T.P."]
[null,null,null,null,null,null,null,null,null,null,null,"Coca-cola","DA033",null,"Ordinateurs de bureau","DB033",null,null,null,null,null,null,null,"Cartes d'anniversaire","DNA033",null,null,null,null,null,null,null,null,null,null,null,null,null,"1 branche pour 1 repas (Céleri)","CAB33",null,null,null,null,null,"REDA 2000 Multi services"]
[null,null,null,null,null,null,null,null,null,null,null,"Cœur","DA034",null,"Ordinateurs portables","DB034",null,null,null,null,null,null,null,"Cartes de fête","DNA034",null,null,null,null,null,null,null,null,null,null,null,null,null,"1 cahier de 100 feuilles (Cigarettes)","CAB34",null,null,null,null,null,"S.N .C.F."]
[null,null,null,null,null,null,null,null,null,null,null,"Concombre","DA035",null,"Protection de la maison (Protection 24)","DB035",null,null,null,null,null,null,null,"Cartes de vacances","DNA035",null,null,null,null,null,null,null,null,null,null,null,null,null,"1 carnet de 10 billets (Billets de tombola)","CAB35",null,null,null,null,null,"Sylvie coiffure"]
[null,null,null,null,null,null,null,null,null,null,null,"Confiture","DA036",null,"Rasoir électrique","DB036",null,null,null,null,null,null,null,"Cartes de vœux","DNA036",null,null,null,null,null,null,null,null,null,null,null,null,null,"1 carnet de 10 tickets : en plus ou en moins (Tickets de bus, de métro, de RER, tous transports, timbres poste)","CAB36",null,null,null,null,null,"Tabac CCR Créteil soleil"]
[null,null,null,null,null,null,null,null,null,null,null,"Couscous","DA037",null,"Redevance télévision","DB037",null,null,null,null,null,null,null,"Cartouches imprimantes","DNA037",null,null,null,null,null,null,null,null,null,null,null,null,null,"1 cartouche de 10 paquets (maximum mensuel; tabac pour les cigarettes)","CAB37",null,null,null,null,null,"Tabac de la Gare"]
[null,null,null,null,null,null,null,null,null,null,null,"Crème","DA038",null,"Réfrigérateur","DB038",null,null,null,null,null,null,null,"Cartouches stylos-plume","DNA038",null,null,null,null,null,null,null,null,null,null,null,null,null,"1 cornet à 2 boules pendant l'été (Glaces)","CAB38",null,null,null,null,null,"Tabac de la poste"]
[null,null,null,null,null,null,null,null,null,null,null,"Croque-monsieur","DA039",null,"Réparations","DB039",null,null,null,null,null,null,null,"Casseroles","DNA039",null,null,null,null,null,null,null,null,null,null,null,null,null,"1 flacon de ? (vitres)","CAB39",null,null,null,null,null,"Tabac Libertés"]
[null,null,null,null,null,null,null,null,null,null,null,"Dattes","DA040",null,"Restaurant","DB040",null,null,null,null,null,null,null,"Cassettes dictaphone","DNA040",null,null,null,null,null,null,null,null,null,null,null,null,null,"1 flacon de 10 millilitres (Vernis à ongles)","CAB40",null,null,null,null,null,"Tabac Marigny"]
[null,null,null,null,null,null,null,null,null,null,null,"Dinde","DA041",null,"Téléphone fixe et Internet","DB041",null,null,null,null,null,null,null,"Cassettes vidéo","DNA041",null,null,null,null,null,null,null,null,null,null,null,null,null,"1 flacon de 100 centilitres","CAB41",null,null,null,null,null,"Traiteur Roncière"]
[null,null,null,null,null,null,null,null,null,null,null,"Eau","DA042",null,"Téléphone orange","DB042",null,null,null,null,null,null,null,"Cendriers","DNA042",null,null,null,null,null,null,null,null,null,null,null,null,null,"1 flacon de 100 millilitres (Déodorant corporel : en plus ou en moins, Eau de toilette)","CAB42",null,null,null,null,null,"Vivet fleurs"]
[null,null,null,null,null,null,null,null,null,null,null,"Endives","DA043",null,"Téléphone portable","DB043",null,null,null,null,null,null,null,"Chaussettes","DNA043",null,null,null,null,null,null,null,null,null,null,null,null,null,"1 flacon de 125 millilitres (Essence briquets Zippo)","CAB43"]
[null,null,null,null,null,null,null,null,null,null,null,"Figues","DA044",null,"Télévision","DB044",null,null,null,null,null,null,null,"Chaussons","DNA044",null,null,null,null,null,null,null,null,null,null,null,null,null,"1 flacon de 150 centilitres (Produit liquide plancher, Produit liquide vaisselle)","CAB44"]
[null,null,null,null,null,null,null,null,null,null,null,"Foie","DA045",null,"Vacances","DB045",null,null,null,null,null,null,null,"Chaussures","DNA045",null,null,null,null,null,null,null,null,null,null,null,null,null,"1 flacon de 20 millilitres (Corrector liquide)","CAB45"]
[null,null,null,null,null,null,null,null,null,null,null,"Frites","DA046",null,"Virements de fonds","DB046",null,null,null,null,null,null,null,"Chiffon à épousseter","DNA046",null,null,null,null,null,null,null,null,null,null,null,null,null,"1 flacon de 200 centilitres","CAB46"]
[null,null,null,null,null,null,null,null,null,null,null,"Fromage blanc desserts","DA047",null,null,null,null,null,null,null,null,null,null,"Cigarettes déjà roulées","DNA047",null,null,null,null,null,null,null,null,null,null,null,null,null,"1 flacon de 200 millilitres","CAB47"]
[null,null,null,null,null,null,null,null,null,null,null,"Fromage blanc matin","DA048",null,null,null,null,null,null,null,null,null,null,"Cigarettes électroniques","DNA048",null,null,null,null,null,null,null,null,null,null,null,null,null,"1 flacon de 2000 millilitres Hyperdou Leclerc (Assouplissant pour le linge)","CAB48"]
[null,null,null,null,null,null,null,null,null,null,null,"Fromage de tête","DA049",null,null,null,null,null,null,null,null,null,null,"Cinéma","DNA049",null,null,null,null,null,null,null,null,null,null,null,null,null,"1 flacon de 250 millilitres (Gaz briquets Laguiole et Dupont)","CAB49"]
[null,null,null,null,null,null,null,null,null,null,null,"Fromage râpé","DA050",null,null,null,null,null,null,null,null,null,null,"Cirage","DNA050",null,null,null,null,null,null,null,null,null,null,null,null,null,"1 flacon de 3 litres","CAB50"]
[null,null,null,null,null,null,null,null,null,null,null,"Fromage soir","DA051",null,null,null,null,null,null,null,null,null,null,"Cirque","DNA051",null,null,null,null,null,null,null,null,null,null,null,null,null,"1 flacon de 300 millilitres (Gaz pour allume-gaz, O'CÉDAR)","CAB51"]
[null,null,null,null,null,null,null,null,null,null,null,"Fruits au sirop","DA052",null,null,null,null,null,null,null,null,null,null,"Ciseaux","DNA052",null,null,null,null,null,null,null,null,null,null,null,null,null,"1 flacon de 400 millilitres (Insecticide, Pétrole Hahn, Shampooing)","CAB52"]
[null,null,null,null,null,null,null,null,null,null,null,"Fruits de saison","DA053",null,null,null,null,null,null,null,null,null,null,"Claviers ordinateurs de bureau","DNA053",null,null,null,null,null,null,null,null,null,null,null,null,null,"1 flacon de 500 millilitres (Décap'four)","CAB53"]
[null,null,null,null,null,null,null,null,null,null,null,"Gâteau de riz","DA054",null,null,null,null,null,null,null,null,null,null,"Clenches","DNA054",null,null,null,null,null,null,null,null,null,null,null,null,null,"1 flacon de 6 pierres (Pierres à briquets Zippo)","CAB54"]
[null,null,null,null,null,null,null,null,null,null,null,"Gâteau de semoule","DA055",null,null,null,null,null,null,null,null,null,null,"Cocotte minute","DNA055",null,null,null,null,null,null,null,null,null,null,null,null,null,"1 flacon de 750 grammes (Ajax)","CAB55"]
[null,null,null,null,null,null,null,null,null,null,null,"Gâteaux apéritif","DA056",null,null,null,null,null,null,null,null,null,null,"Coiffeur","DNA056",null,null,null,null,null,null,null,null,null,null,null,null,null,"1 flacon de 750 millilitres (Destop, Détartrant water-closets)","CAB56"]
[null,null,null,null,null,null,null,null,null,null,null,"Gâteaux samedi et dimanche","DA057",null,null,null,null,null,null,null,null,null,null,"Colle SUPERGLUE-3","DNA057",null,null,null,null,null,null,null,null,null,null,null,null,null,"1 flacon engrais universel KB d'1 litre","CAB57"]
[null,null,null,null,null,null,null,null,null,null,null,"Glaces","DA058",null,null,null,null,null,null,null,null,null,null,"Collectes","DNA058",null,null,null,null,null,null,null,null,null,null,null,null,null,"1 flacon Xéor de 2500 millilitres (Lessive pour le linge)","CAB58"]
[null,null,null,null,null,null,null,null,null,null,null,"Gros sel","DA059",null,null,null,null,null,null,null,null,null,null,"Compact disc rom informatique","DNA059",null,null,null,null,null,null,null,null,null,null,null,null,null,"1 morceau de 400 grammes ou 300 grammes pour 3 repas (Saucisson Leclerc)","CAB59"]
[null,null,null,null,null,null,null,null,null,null,null,"Haricots verts","DA060",null,null,null,null,null,null,null,null,null,null,"Compact disc rom vidéo","DNA060",null,null,null,null,null,null,null,null,null,null,null,null,null,"1 morceau de 500 grammes pour 5 repas (les cinq rôtis)","CAB60"]
[null,null,null,null,null,null,null,null,null,null,null,"Huile","DA061",null,null,null,null,null,null,null,null,null,null,"Congélateur","DNA061",null,null,null,null,null,null,null,null,null,null,null,null,null,"1 pack de 10 bobines 1 pli offset 60 grammes 57x60x12 (Calculette)","CAB61"]
[null,null,null,null,null,null,null,null,null,null,null,"Jambon","DA062",null,null,null,null,null,null,null,null,null,null,"Corrector liquide","DNA062",null,null,null,null,null,null,null,null,null,null,null,null,null,"1 pack de 10 enveloppes déjà timbrées ou de 100 enveloppes non timbrées","CAB62"]
[null,null,null,null,null,null,null,null,null,null,null,"Jambonneau","DA063",null,null,null,null,null,null,null,null,null,null,"Couteau électrique","DNA063",null,null,null,null,null,null,null,null,null,null,null,null,null,"1 pack de 10 stylos à bille (encres noire et rouge; en plus ou en moins)","CAB63"]
[null,null,null,null,null,null,null,null,null,null,null,"Lait","DA064",null,null,null,null,null,null,null,null,null,null,"Couvercles casseroles","DNA064",null,null,null,null,null,null,null,null,null,null,null,null,null,"1 pack de 100 cure-dents","CAB64"]
[null,null,null,null,null,null,null,null,null,null,null,"Légumes de couscous","DA065",null,null,null,null,null,null,null,null,null,null,"Crayons à papier","DNA065",null,null,null,null,null,null,null,null,null,null,null,null,null,"1 pack de 100 sacs (Sacs poubelle)","CAB65"]
[null,null,null,null,null,null,null,null,null,null,null,"Macédoine de légumes","DA066",null,null,null,null,null,null,null,null,null,null,"Crochets tringles","DNA066",null,null,null,null,null,null,null,null,null,null,null,null,null,"1 pack de 12 cartouches stylos-plume (en plus ou en moins)","CAB66"]
[null,null,null,null,null,null,null,null,null,null,null,"Maïs","DA067",null,null,null,null,null,null,null,null,null,null,"Cuisinière","DNA067",null,null,null,null,null,null,null,null,null,null,null,null,null,"1 pack de 12 pots. 1 pot par matin (yaourts matin)","CAB67"]
[null,null,null,null,null,null,null,null,null,null,null,"Mortadelle","DA068",null,null,null,null,null,null,null,null,null,null,"Cure-dents","DNA068",null,null,null,null,null,null,null,null,null,null,null,null,null,"1 pack de 12 rouleaux (Papier hygiénique. En plus ou en moins)","CAB68"]
[null,null,null,null,null,null,null,null,null,null,null,"Mousse au chocolat","DA069",null,null,null,null,null,null,null,null,null,null,"Dateur","DNA069",null,null,null,null,null,null,null,null,null,null,null,null,null,"1 pack de 16 pots. 1 pot par matin (Yaourts matin)","CAB69"]
[null,null,null,null,null,null,null,null,null,null,null,"Œufs","DA070",null,null,null,null,null,null,null,null,null,null,"Décap'four","DNA070",null,null,null,null,null,null,null,null,null,null,null,null,null,"1 pack de 2 crochets (Crochets tringles)","CAB70"]
[null,null,null,null,null,null,null,null,null,null,null,"Oranges","DA071",null,null,null,null,null,null,null,null,null,null,"Dentifrice","DNA071",null,null,null,null,null,null,null,null,null,null,null,null,null,"1 pack de 2 éponges","CAB71"]
[null,null,null,null,null,null,null,null,null,null,null,"Paella","DA072",null,null,null,null,null,null,null,null,null,null,"Déodorant corporel","DNA072",null,null,null,null,null,null,null,null,null,null,null,null,null,"1 pack de 2 loqueteaux","CAB72"]
[null,null,null,null,null,null,null,null,null,null,null,"Pain","DA073",null,null,null,null,null,null,null,null,null,null,"Déodorant maison","DNA073",null,null,null,null,null,null,null,null,null,null,null,null,null,"1 pack de 2 paires (Lacets)","CAB73"]
[null,null,null,null,null,null,null,null,null,null,null,"Pâtes à la sauce tomates","DA074",null,null,null,null,null,null,null,null,null,null,"Dessous de plats","DNA074",null,null,null,null,null,null,null,null,null,null,null,null,null,"1 pack de 2 savons de 400 grammes chacun (bas, cuisine et linge)","CAB74"]
[null,null,null,null,null,null,null,null,null,null,null,"Pâtes au beurre","DA075",null,null,null,null,null,null,null,null,null,null,"Destop","DNA075",null,null,null,null,null,null,null,null,null,null,null,null,null,"1 pack de 2, 4, 8 piles (Piles AA. En plus ou en moins : Calculette, Lampe torche, Pendules, Télévision JVC, Transistors)","CAB75"]
[null,null,null,null,null,null,null,null,null,null,null,"Pâtes au fromage râpé","DA076",null,null,null,null,null,null,null,null,null,null,"Détartrant water-closets","DNA076",null,null,null,null,null,null,null,null,null,null,null,null,null,"1 pack de 2, 4, 8 piles (Piles AAA. En plus ou en moins : Claviers, Minuteurs)","CAB76"]
[null,null,null,null,null,null,null,null,null,null,null,"Petits pois","DA077",null,null,null,null,null,null,null,null,null,null,"Dévidoirs scotch","DNA077",null,null,null,null,null,null,null,null,null,null,null,null,null,"1 pack de 3 berlingots ou 1 flacon en gel de 750 millilitres (Eau de Javel)","CAB77"]
[null,null,null,null,null,null,null,null,null,null,null,"Petits pois et jeunes carottes","DA078",null,null,null,null,null,null,null,null,null,null,"Eau de Javel","DNA078",null,null,null,null,null,null,null,null,null,null,null,null,null,"1 pack de 3 boîtes (allumettes)","CAB78"]
[null,null,null,null,null,null,null,null,null,null,null,"Petits suisses","DA079",null,null,null,null,null,null,null,null,null,null,"Eau de toilette","DNA079",null,null,null,null,null,null,null,null,null,null,null,null,null,"1 pack de 3 cassettes","CAB79"]
[null,null,null,null,null,null,null,null,null,null,null,"Pizza","DA080",null,null,null,null,null,null,null,null,null,null,"Élastiques","DNA080",null,null,null,null,null,null,null,null,null,null,null,null,null,"1 pack de 3 sachets. 1 sachet par samedi d'utilisation. (Fromage râpé)","CAB80"]
[null,null,null,null,null,null,null,null,null,null,null,"Poireau","DA081",null,null,null,null,null,null,null,null,null,null,"Enrouleuses à cigarettes","DNA081",null,null,null,null,null,null,null,null,null,null,null,null,null,"1 pack de 3 scotch brite (Cuisine (ménage et vaisselle), Salle de bains et water-closets (ménage); en plus ou en moins)","CAB81"]
[null,null,null,null,null,null,null,null,null,null,null,"Poisson","DA082",null,null,null,null,null,null,null,null,null,null,"Enveloppes pré-timbrées ou enveloppes non pré-timbrées","DNA082",null,null,null,null,null,null,null,null,null,null,null,null,null,"1 pack de 3 tablettes (Chocolat)","CAB82"]
[null,null,null,null,null,null,null,null,null,null,null,"Poivre gris","DA083",null,null,null,null,null,null,null,null,null,null,"Envois recommandés avec accusé de réception","DNA083",null,null,null,null,null,null,null,null,null,null,null,null,null,"1 pack de 36 étiquettes scolaires","CAB83"]
[null,null,null,null,null,null,null,null,null,null,null,"Pomme","DA084",null,null,null,null,null,null,null,null,null,null,"Éphéméride","DNA084",null,null,null,null,null,null,null,null,null,null,null,null,null,"1 pack de 4 brosses à dents","CAB84"]
[null,null,null,null,null,null,null,null,null,null,null,"Pomme de terre","DA085",null,null,null,null,null,null,null,null,null,null,"Épingles à linge","DNA085",null,null,null,null,null,null,null,null,null,null,null,null,null,"1 pack de 4 pots pour le weekend end. 1 pot pour 1 repas","CAB85"]
[null,null,null,null,null,null,null,null,null,null,null,"Porc","DA086",null,null,null,null,null,null,null,null,null,null,"Éponges pour la table","DNA086",null,null,null,null,null,null,null,null,null,null,null,null,null,"1 pack de 4 savonnettes de 100 grammes chacune (Figure, en plus ou en moins, Manava Leclerc)","CAB86"]
[null,null,null,null,null,null,null,null,null,null,null,"Pruneaux","DA087",null,null,null,null,null,null,null,null,null,null,"Éponges pour le ménage","DNA087",null,null,null,null,null,null,null,null,null,null,null,null,null,"1 pack de 4 savons de 200 grammes chacun (Cuisine, salle de bains (Bas et Linge), en plus ou en moins)","CAB87"]
[null,null,null,null,null,null,null,null,null,null,null,"Purée","DA088",null,null,null,null,null,null,null,null,null,null,"Essence pour briquets Zippo","DNA088",null,null,null,null,null,null,null,null,null,null,null,null,null,"1 pack de 4 stylos à bille (encre bleue, noire, rouge et verte; en plus ou en moins)","CAB88"]
[null,null,null,null,null,null,null,null,null,null,null,"Quenelles","DA089",null,null,null,null,null,null,null,null,null,null,"Essoreuse à salade","DNA089",null,null,null,null,null,null,null,null,null,null,null,null,null,"1 pack de 4, 8 piles (Piles transistor Crown. En plus ou en moins. Piles LR14/C )","CAB89"]
[null,null,null,null,null,null,null,null,null,null,null,"Quiche lorraine","DA090",null,null,null,null,null,null,null,null,null,null,"Étendoirs à linge (mural et sur pied)","DNA090",null,null,null,null,null,null,null,null,null,null,null,null,null,"1 pack de 5 cartouches (Canon série 700) 1 pack de 2 cartouches (Canon série 7400)","CAB90"]
[null,null,null,null,null,null,null,null,null,null,null,"Radis LMR","DA091",null,null,null,null,null,null,null,null,null,null,"Étiquettes","DNA091",null,null,null,null,null,null,null,null,null,null,null,null,null,"1 pack de 5 compact disc rom (Compact disc rom informatique et vidéo)","CAB91"]
[null,null,null,null,null,null,null,null,null,null,null,"Radis LSV","DA092",null,null,null,null,null,null,null,null,null,null,"Étrennes des éboueurs","DNA092",null,null,null,null,null,null,null,null,null,null,null,null,null,"1 pack de 6 pots ou 12 pots. 3 pots par repas (Petits suisses)","CAB92"]
[null,null,null,null,null,null,null,null,null,null,null,"Ratatouille","DA093",null,null,null,null,null,null,null,null,null,null,"Étrennes des pompiers","DNA093",null,null,null,null,null,null,null,null,null,null,null,null,null,"1 pack de 8 paquets (Papier hygiénique, en plus ou en moins)","CAB93"]
[null,null,null,null,null,null,null,null,null,null,null,"Raviolis","DA094",null,null,null,null,null,null,null,null,null,null,"Étrennes du facteur","DNA094",null,null,null,null,null,null,null,null,null,null,null,null,null,"1 pack de 8 pots. 1 pot par matin (Fromage blanc matin)","CAB94"]
[null,null,null,null,null,null,null,null,null,null,null,"Riz desserts","DA095",null,null,null,null,null,null,null,null,null,null,"Étrennes du gardien","DNA095",null,null,null,null,null,null,null,null,null,null,null,null,null,"1 pack de 8 rouleaux (Papier hygiénique; en plus ou en moins)","CAB95"]
[null,null,null,null,null,null,null,null,null,null,null,"Riz légume","DA096",null,null,null,null,null,null,null,null,null,null,"Étuis à cigarettes","DNA096",null,null,null,null,null,null,null,null,null,null,null,null,null,"1 paire (Chaussettes, Chaussons, Chaussures)","CAB96"]
[null,null,null,null,null,null,null,null,null,null,null,"Rôti d'agneau","DA097",null,null,null,null,null,null,null,null,null,null,"Fer électrique à repasser","DNA097",null,null,null,null,null,null,null,null,null,null,null,null,null,"1 paquet de ? (épingles à linge)","CAB97"]
[null,null,null,null,null,null,null,null,null,null,null,"Rôti de bœuf","DA098",null,null,null,null,null,null,null,null,null,null,"Feuilles à cigarettes","DNA098",null,null,null,null,null,null,null,null,null,null,null,null,null,"1 paquet de 20 cigarettes","CAB98"]
[null,null,null,null,null,null,null,null,null,null,null,"Rôti de cheval","DA099",null,null,null,null,null,null,null,null,null,null,"Four à micro-ondes","DNA099",null,null,null,null,null,null,null,null,null,null,null,null,null,"1 paquet d'une ampoule électrique ou halogène (Ampoules électriques ou halogènes)","CAB99"]
[null,null,null,null,null,null,null,null,null,null,null,"Rôti de porc","DA100",null,null,null,null,null,null,null,null,null,null,"Frais d'essence","DNA100",null,null,null,null,null,null,null,null,null,null,null,null,null,"1 paquet pour 2 repas","CAB100"]
[null,null,null,null,null,null,null,null,null,null,null,"Rôti de veau","DA101",null,null,null,null,null,null,null,null,null,null,"Friteuse à gaz","DNA101",null,null,null,null,null,null,null,null,null,null,null,null,null,"1 paquet pour 2 repas (Fromage de tête, Salami)","CAB101"]
[null,null,null,null,null,null,null,null,null,null,null,"Roulade à la pistache","DA102",null,null,null,null,null,null,null,null,null,null,"Friteuse électrique","DNA102",null,null,null,null,null,null,null,null,null,null,null,null,null,"1 paquet pour 4 repas (Dattes, Figues, Pruneaux)","CAB102"]
[null,null,null,null,null,null,null,null,null,null,null,"Roulés au fromage","DA103",null,null,null,null,null,null,null,null,null,null,"Gaz pour allume-gaz","DNA103",null,null,null,null,null,null,null,null,null,null,null,null,null,"1 paquet pour 5 repas (Betteraves rouges)","CAB103"]
[null,null,null,null,null,null,null,null,null,null,null,"Salade","DA104",null,null,null,null,null,null,null,null,null,null,"Gommes à effacer","DNA104",null,null,null,null,null,null,null,null,null,null,null,null,null,"1 plaquette de 250 grammes (Beurre : 2 mensuelles maximum)","CAB104"]
[null,null,null,null,null,null,null,null,null,null,null,"Salami","DA105",null,null,null,null,null,null,null,null,null,null,"Graveur compact disc informatique","DNA105",null,null,null,null,null,null,null,null,null,null,null,null,null,"1 portion par soir (fromage soir)","CAB105"]
[null,null,null,null,null,null,null,null,null,null,null,"Salsifis","DA106",null,null,null,null,null,null,null,null,null,null,"Graveur compact disc vidéo","DNA106",null,null,null,null,null,null,null,null,null,null,null,null,null,"1 pot de 100 grammes Nescafé Espresso (Café)","CAB106"]
[null,null,null,null,null,null,null,null,null,null,null,"Sauce tomates","DA107",null,null,null,null,null,null,null,null,null,null,"Imprimantes","DNA107",null,null,null,null,null,null,null,null,null,null,null,null,null,"1 pot de 36 grammes (Poivre gris)","CAB107"]
[null,null,null,null,null,null,null,null,null,null,null,"Saucisses","DA108",null,null,null,null,null,null,null,null,null,null,"Insecticide","DNA108",null,null,null,null,null,null,null,null,null,null,null,null,null,"1 pot en verre de 370 grammes (Confiture)","CAB108"]
[null,null,null,null,null,null,null,null,null,null,null,"Saucisson","DA109",null,null,null,null,null,null,null,null,null,null,"Lacets","DNA109",null,null,null,null,null,null,null,null,null,null,null,null,null,"1 printy 4846 trodat (Numéroteur. Office Dépôt)","CAB109"]
[null,null,null,null,null,null,null,null,null,null,null,"Sel fin","DA110",null,null,null,null,null,null,null,null,null,null,"Lames rasoir électrique","DNA110",null,null,null,null,null,null,null,null,null,null,null,null,null,"1 ramette de 200 feuilles (Papier couleur imprimantes)","CAB110"]
[null,null,null,null,null,null,null,null,null,null,null,"Sucre","DA111",null,null,null,null,null,null,null,null,null,null,"Lampadaires","DNA111",null,null,null,null,null,null,null,null,null,null,null,null,null,"1 ramette de 500 feuilles (Papier blanc imprimantes)","CAB111"]
[null,null,null,null,null,null,null,null,null,null,null,"Tapioca","DA112",null,null,null,null,null,null,null,null,null,null,"Lampe torche","DNA112",null,null,null,null,null,null,null,null,null,null,null,null,null,"1 sac de 20 litres (terre)","CAB112"]
[null,null,null,null,null,null,null,null,null,null,null,"Tête persillée","DA113",null,null,null,null,null,null,null,null,null,null,"Lavage des draps","DNA113",null,null,null,null,null,null,null,null,null,null,null,null,null,"1 sachet de 2 kilogrammes. 1 pomme pour 1 repas","CAB113"]
[null,null,null,null,null,null,null,null,null,null,null,"Tête roulée","DA114",null,null,null,null,null,null,null,null,null,null,"Lessive pour le linge","DNA114",null,null,null,null,null,null,null,null,null,null,null,null,null,"1 sachet grand modèle (Bonbons)","CAB114"]
[null,null,null,null,null,null,null,null,null,null,null,"Thé","DA115",null,null,null,null,null,null,null,null,null,null,"Linge de lit (y compris pyjamas)","DNA115",null,null,null,null,null,null,null,null,null,null,null,null,null,"1 sachet pour 2 repas (Chips)","CAB115"]
[null,null,null,null,null,null,null,null,null,null,null,"Thon","DA116",null,null,null,null,null,null,null,null,null,null,"Linge de table","DNA116",null,null,null,null,null,null,null,null,null,null,null,null,null,"1 sachet pour 4 repas (crème)","CAB116"]
[null,null,null,null,null,null,null,null,null,null,null,"Tomates","DA117",null,null,null,null,null,null,null,null,null,null,"Linge de toilette","DNA117",null,null,null,null,null,null,null,null,null,null,null,null,null,"1 sachet pour 6 repas. 5 tranches pour 1 repas (Saucisson)","CAB117"]
[null,null,null,null,null,null,null,null,null,null,null,"Tomates pelées","DA118",null,null,null,null,null,null,null,null,null,null,"Linge de vaisselle","DNA118",null,null,null,null,null,null,null,null,null,null,null,null,null,"1 ticket unitaire","CAB118"]
[null,null,null,null,null,null,null,null,null,null,null,"Veau","DA119",null,null,null,null,null,null,null,null,null,null,"Linge pour les mains","DNA119",null,null,null,null,null,null,null,null,null,null,null,null,null,"1 timbre (Parti communiste français, Syndicat C.G.T.)","CAB119"]
[null,null,null,null,null,null,null,null,null,null,null,"Vinaigre assaisonnement","DA120",null,null,null,null,null,null,null,null,null,null,"Liquide cigarette électronique NHOSS","DNA120",null,null,null,null,null,null,null,null,null,null,null,null,null,"1 tranche pour 1 repas (viandes midi weekend)","CAB120"]
[null,null,null,null,null,null,null,null,null,null,null,"Yaourts desserts","DA121",null,null,null,null,null,null,null,null,null,null,"Livres bibliophiles","DNA121",null,null,null,null,null,null,null,null,null,null,null,null,null,"1 tube de 180 grammes (Sauce tomates)","CAB121"]
[null,null,null,null,null,null,null,null,null,null,null,"Yaourts matin","DA122",null,null,null,null,null,null,null,null,null,null,"Livres informatiques","DNA122",null,null,null,null,null,null,null,null,null,null,null,null,null,"1 tube de 3 grammes (Colle SUPERGLUE-3)","CAB122"]
[null,null,null,null,null,null,null,null,null,null,null,null,null,null,null,null,null,null,null,null,null,null,null,"Logiciels informatiques","DNA123",null,null,null,null,null,null,null,null,null,null,null,null,null,"1 tube de 75 millilitres (Cirage liquide incolore applicateur, Dentifrice)","CAB123"]
[null,null,null,null,null,null,null,null,null,null,null,null,null,null,null,null,null,null,null,null,null,null,null,"Loisirs","DNA124",null,null,null,null,null,null,null,null,null,null,null,null,null,"1 tube unitaire de 75, 100 ou 125 millilitres (dentifrice)","CAB124"]
[null,null,null,null,null,null,null,null,null,null,null,null,null,null,null,null,null,null,null,null,null,null,null,"Loqueteaux","DNA125",null,null,null,null,null,null,null,null,null,null,null,null,null,"125 grammes pour 1 repas (Bifteck haché de cheval)","CAB125"]
[null,null,null,null,null,null,null,null,null,null,null,null,null,null,null,null,null,null,null,null,null,null,null,"Machine à laver","DNA126",null,null,null,null,null,null,null,null,null,null,null,null,null,"20 frites pour 1 repas","CAB126"]
[null,null,null,null,null,null,null,null,null,null,null,null,null,null,null,null,null,null,null,null,null,null,null,"Magnétoscope","DNA127",null,null,null,null,null,null,null,null,null,null,null,null,null,"25 grammes pour 1 repas (Couscous, Purée, Riz légume, Tapioca)","CAB127"]
[null,null,null,null,null,null,null,null,null,null,null,null,null,null,null,null,null,null,null,null,null,null,null,"Matériel à couture","DNA128",null,null,null,null,null,null,null,null,null,null,null,null,null,"3 tranches pour 1 repas (Roulade à la pistache, Tête roulée)","CAB128"]
[null,null,null,null,null,null,null,null,null,null,null,null,null,null,null,null,null,null,null,null,null,null,null,"Matériel de cuisine","DNA129",null,null,null,null,null,null,null,null,null,null,null,null,null,"5 cuillères pour 1 repas (Pâtes à la sauce tomates, Pâtes au beurre, Pâtes au fromage râpé)","CAB129"]
[null,null,null,null,null,null,null,null,null,null,null,null,null,null,null,null,null,null,null,null,null,null,null,"Matériel informatique","DNA130",null,null,null,null,null,null,null,null,null,null,null,null,null,"La paire (Chaussettes, Chaussons, Chaussures)","CAB130"]
[null,null,null,null,null,null,null,null,null,null,null,null,null,null,null,null,null,null,null,null,null,null,null,"Minuteurs","DNA131",null,null,null,null,null,null,null,null,null,null,null,null,null,"Pack de ?","CAB131"]
[null,null,null,null,null,null,null,null,null,null,null,null,null,null,null,null,null,null,null,null,null,null,null,"Nappes de tables","DNA132",null,null,null,null,null,null,null,null,null,null,null,null,null,"Pour 2 draps","CAB132"]
[null,null,null,null,null,null,null,null,null,null,null,null,null,null,null,null,null,null,null,null,null,null,null,"Nettoyage des vêtements","DNA133",null,null,null,null,null,null,null,null,null,null,null,null,null,"Unité","CAB133"]
[null,null,null,null,null,null,null,null,null,null,null,null,null,null,null,null,null,null,null,null,null,null,null,"Numéroteur","DNA134",null,null,null,null,null,null,null,null,null,null,null,null,null,"Unité : 1 branche pour 1 repas (Céleri)","CAB134"]
[null,null,null,null,null,null,null,null,null,null,null,null,null,null,null,null,null,null,null,null,null,null,null,"O'CÉDAR","DNA135",null,null,null,null,null,null,null,null,null,null,null,null,null,"Unité : 1 brin ou 1 pot (Muguet)","CAB135"]
[null,null,null,null,null,null,null,null,null,null,null,null,null,null,null,null,null,null,null,null,null,null,null,"Ordinateurs de bureau","DNA136",null,null,null,null,null,null,null,null,null,null,null,null,null,"Unité : 1 par repas","CAB136"]
[null,null,null,null,null,null,null,null,null,null,null,null,null,null,null,null,null,null,null,null,null,null,null,"Ordinateurs portables","DNA137",null,null,null,null,null,null,null,null,null,null,null,null,null,"Unité : 1 pot (Plantes, Pots à fleurs, Pots à plantes)","CAB137"]
[null,null,null,null,null,null,null,null,null,null,null,null,null,null,null,null,null,null,null,null,null,null,null,"Ouvre-boîtes électrique","DNA138",null,null,null,null,null,null,null,null,null,null,null,null,null,"Unité : 1 pour 1 repas","CAB138"]
[null,null,null,null,null,null,null,null,null,null,null,null,null,null,null,null,null,null,null,null,null,null,null,"Papier à lettres","DNA139",null,null,null,null,null,null,null,null,null,null,null,null,null,"Unité : 1 pour 2 repas (Chou-fleur)","CAB139"]
[null,null,null,null,null,null,null,null,null,null,null,null,null,null,null,null,null,null,null,null,null,null,null,"Papier aluminium","DNA140",null,null,null,null,null,null,null,null,null,null,null,null,null,"Unité : 1 pour 4 repas (Ananas)","CAB140"]
[null,null,null,null,null,null,null,null,null,null,null,null,null,null,null,null,null,null,null,null,null,null,null,"Papier blanc imprimantes","DNA141",null,null,null,null,null,null,null,null,null,null,null,null,null,"Unité : 1 tête pour 1 repas (Salade)","CAB141"]
[null,null,null,null,null,null,null,null,null,null,null,null,null,null,null,null,null,null,null,null,null,null,null,"Papier couleur imprimantes","DNA142",null,null,null,null,null,null,null,null,null,null,null,null,null,"Unité : 2 à 4 pour 1 repas (Autres fruits, Clémentines, Fruits de saison)","CAB142"]
[null,null,null,null,null,null,null,null,null,null,null,null,null,null,null,null,null,null,null,null,null,null,null,"Papier hygiénique","DNA143",null,null,null,null,null,null,null,null,null,null,null,null,null,"Unité : 2 pour 1 repas (Carottes, Tomates)","CAB143"]
[null,null,null,null,null,null,null,null,null,null,null,null,null,null,null,null,null,null,null,null,null,null,null,"Parapluies","DNA144",null,null,null,null,null,null,null,null,null,null,null,null,null,"Unité : sans conditionnement","CAB144"]
[null,null,null,null,null,null,null,null,null,null,null,null,null,null,null,null,null,null,null,null,null,null,null,"Parti communiste français","DNA145",null,null,null,null,null,null,null,null,null,null,null,null,null,"Unité : spéciales (piles montre et décodeur orange)","CAB145"]
[null,null,null,null,null,null,null,null,null,null,null,null,null,null,null,null,null,null,null,null,null,null,null,"Pelles","DNA146"]
[null,null,null,null,null,null,null,null,null,null,null,null,null,null,null,null,null,null,null,null,null,null,null,"Pétrole Hahn","DNA147"]
[null,null,null,null,null,null,null,null,null,null,null,null,null,null,null,null,null,null,null,null,null,null,null,"Pierres à briquets Zippo","DNA148"]
[null,null,null,null,null,null,null,null,null,null,null,null,null,null,null,null,null,null,null,null,null,null,null,"Piles AA","DNA149"]
[null,null,null,null,null,null,null,null,null,null,null,null,null,null,null,null,null,null,null,null,null,null,null,"Piles AAA","DNA150"]
[null,null,null,null,null,null,null,null,null,null,null,null,null,null,null,null,null,null,null,null,null,null,null,"Piles spéciales","DNA151"]
[null,null,null,null,null,null,null,null,null,null,null,null,null,null,null,null,null,null,null,null,null,null,null,"Piles transistor Crown","DNA152"]
[null,null,null,null,null,null,null,null,null,null,null,null,null,null,null,null,null,null,null,null,null,null,null,"POD avec liquide cigarettes électroniques (ePen3 et Blu)","DNA153"]
[null,null,null,null,null,null,null,null,null,null,null,null,null,null,null,null,null,null,null,null,null,null,null,"POD sans liquide cigarettes électroniques (NHOSS, Innokin)","DNA154"]
[null,null,null,null,null,null,null,null,null,null,null,null,null,null,null,null,null,null,null,null,null,null,null,"Pourboires","DNA155"]
[null,null,null,null,null,null,null,null,null,null,null,null,null,null,null,null,null,null,null,null,null,null,null,"Poussettes","DNA156"]
[null,null,null,null,null,null,null,null,null,null,null,null,null,null,null,null,null,null,null,null,null,null,null,"Produit liquide plancher","DNA157"]
[null,null,null,null,null,null,null,null,null,null,null,null,null,null,null,null,null,null,null,null,null,null,null,"Produit liquide vaisselle","DNA158"]
[null,null,null,null,null,null,null,null,null,null,null,null,null,null,null,null,null,null,null,null,null,null,null,"Produit liquide vitres","DNA159"]
[null,null,null,null,null,null,null,null,null,null,null,null,null,null,null,null,null,null,null,null,null,null,null,"Programme de télévision","DNA160"]
[null,null,null,null,null,null,null,null,null,null,null,null,null,null,null,null,null,null,null,null,null,null,null,"Radiateur électrique","DNA161"]
[null,null,null,null,null,null,null,null,null,null,null,null,null,null,null,null,null,null,null,null,null,null,null,"Rasoir électrique","DNA162"]
[null,null,null,null,null,null,null,null,null,null,null,null,null,null,null,null,null,null,null,null,null,null,null,"Recharge bloc éphéméride","DNA163"]
[null,null,null,null,null,null,null,null,null,null,null,null,null,null,null,null,null,null,null,null,null,null,null,"Recharge cure-dents","DNA164"]
[null,null,null,null,null,null,null,null,null,null,null,null,null,null,null,null,null,null,null,null,null,null,null,"Réfrigérateur","DNA165"]
[null,null,null,null,null,null,null,null,null,null,null,null,null,null,null,null,null,null,null,null,null,null,null,"Remboursement argent emprunté","DNA166"]
[null,null,null,null,null,null,null,null,null,null,null,null,null,null,null,null,null,null,null,null,null,null,null,"Réparations","DNA167"]
[null,null,null,null,null,null,null,null,null,null,null,null,null,null,null,null,null,null,null,null,null,null,null,"Restaurant","DNA168"]
[null,null,null,null,null,null,null,null,null,null,null,null,null,null,null,null,null,null,null,null,null,null,null,"Réveils","DNA169"]
[null,null,null,null,null,null,null,null,null,null,null,null,null,null,null,null,null,null,null,null,null,null,null,"Sacs à poubelle","DNA170"]
[null,null,null,null,null,null,null,null,null,null,null,null,null,null,null,null,null,null,null,null,null,null,null,"Savon noir","DNA171"]
[null,null,null,null,null,null,null,null,null,null,null,null,null,null,null,null,null,null,null,null,null,null,null,"Savonnette figure","DNA172"]
[null,null,null,null,null,null,null,null,null,null,null,null,null,null,null,null,null,null,null,null,null,null,null,"Savons","DNA173"]
[null,null,null,null,null,null,null,null,null,null,null,null,null,null,null,null,null,null,null,null,null,null,null,"Scotch","DNA174"]
[null,null,null,null,null,null,null,null,null,null,null,null,null,null,null,null,null,null,null,null,null,null,null,"Scotch Brite","DNA175"]
[null,null,null,null,null,null,null,null,null,null,null,null,null,null,null,null,null,null,null,null,null,null,null,"Serpillières","DNA176"]
[null,null,null,null,null,null,null,null,null,null,null,null,null,null,null,null,null,null,null,null,null,null,null,"Shampooing","DNA177"]
[null,null,null,null,null,null,null,null,null,null,null,null,null,null,null,null,null,null,null,null,null,null,null,"Souris ordinateurs de bureau","DNA178"]
[null,null,null,null,null,null,null,null,null,null,null,null,null,null,null,null,null,null,null,null,null,null,null,"Souris ordinateurs portables","DNA179"]
[null,null,null,null,null,null,null,null,null,null,null,null,null,null,null,null,null,null,null,null,null,null,null,"Stylos à bille","DNA180"]
[null,null,null,null,null,null,null,null,null,null,null,null,null,null,null,null,null,null,null,null,null,null,null,"Stylos-plume","DNA181"]
[null,null,null,null,null,null,null,null,null,null,null,null,null,null,null,null,null,null,null,null,null,null,null,"Syndicat C.G.T.","DNA182"]
[null,null,null,null,null,null,null,null,null,null,null,null,null,null,null,null,null,null,null,null,null,null,null,"Tabac pour les cigarettes","DNA183"]
[null,null,null,null,null,null,null,null,null,null,null,null,null,null,null,null,null,null,null,null,null,null,null,"Tapis pour souris ordinateurs","DNA184"]
[null,null,null,null,null,null,null,null,null,null,null,null,null,null,null,null,null,null,null,null,null,null,null,"Taxi","DNA185"]
[null,null,null,null,null,null,null,null,null,null,null,null,null,null,null,null,null,null,null,null,null,null,null,"Télécommandes","DNA186"]
[null,null,null,null,null,null,null,null,null,null,null,null,null,null,null,null,null,null,null,null,null,null,null,"Téléphone fixe","DNA187"]
[null,null,null,null,null,null,null,null,null,null,null,null,null,null,null,null,null,null,null,null,null,null,null,"Téléphone portable","DNA188"]
[null,null,null,null,null,null,null,null,null,null,null,null,null,null,null,null,null,null,null,null,null,null,null,"Télévision","DNA189"]
[null,null,null,null,null,null,null,null,null,null,null,null,null,null,null,null,null,null,null,null,null,null,null,"Théâtre","DNA190"]
[null,null,null,null,null,null,null,null,null,null,null,null,null,null,null,null,null,null,null,null,null,null,null,"Tickets de bus","DNA191"]
[null,null,null,null,null,null,null,null,null,null,null,null,null,null,null,null,null,null,null,null,null,null,null,"Tickets de métro","DNA192"]
[null,null,null,null,null,null,null,null,null,null,null,null,null,null,null,null,null,null,null,null,null,null,null,"Tickets de RER","DNA193"]
[null,null,null,null,null,null,null,null,null,null,null,null,null,null,null,null,null,null,null,null,null,null,null,"Tickets tous transports","DNA194"]
[null,null,null,null,null,null,null,null,null,null,null,null,null,null,null,null,null,null,null,null,null,null,null,"Timbres poste","DNA195"]
[null,null,null,null,null,null,null,null,null,null,null,null,null,null,null,null,null,null,null,null,null,null,null,"Toners imprimantes","DNA196"]
[null,null,null,null,null,null,null,null,null,null,null,null,null,null,null,null,null,null,null,null,null,null,null,"Transistor noir chambre Kiki Crown","DNA197"]
[null,null,null,null,null,null,null,null,null,null,null,null,null,null,null,null,null,null,null,null,null,null,null,"Transistors","DNA198"]
[null,null,null,null,null,null,null,null,null,null,null,null,null,null,null,null,null,null,null,null,null,null,null,"Trombones","DNA199"]
[null,null,null,null,null,null,null,null,null,null,null,null,null,null,null,null,null,null,null,null,null,null,null,"Tuyau gaz cuisinière","DNA200"]
[null,null,null,null,null,null,null,null,null,null,null,null,null,null,null,null,null,null,null,null,null,null,null,"Vaisselle (Sauf casseroles et couvercles casseroles)","DNA201"]
[null,null,null,null,null,null,null,null,null,null,null,null,null,null,null,null,null,null,null,null,null,null,null,"Vernis à ongles","DNA202"]
[null,null,null,null,null,null,null,null,null,null,null,null,null,null,null,null,null,null,null,null,null,null,null,"Vêtements et sous-vêtements (sauf Blouses)","DNA203"]
[null,null,null,null,null,null,null,null,null,null,null,null,0,null,null,null,null,null,null,null,null,null,null,"Vinaigre anticalcaire","DNA204"]

{"sheet":"BD articles budgétaires","index":2,"n_rows":447,"n_cols":13,"rows_kept":447,"cut":false,"hidden":false,"merged":[]}
[]
[]
[null,"TabBDArticlesBudgétaires"]
[null,"Type","Code type","Catégorie","Code catégorie","Article","Code article","Période","Code période","Conditionnement","Code conditionnement","Date création","Numéro création"]
[null,"Article dépense budgétaire","ADB","Dépenses alimentaires","DA","Agneau","DA001","Selon menu","PAB11","1 tranche pour 1 repas (Viandes midi weekend)","CAB120","dimanche 18 août 2024","DA-01"]
[null,"Article dépense budgétaire","ADB","Dépenses alimentaires","DA","Ananas","DA002","Selon menu","PAB11","Unité : 1 pour 4 repas (Ananas)","CAB140","dimanche 18 août 2024","DA-02"]
[null,"Article dépense budgétaire","ADB","Dépenses alimentaires","DA","Apéritif","DA003","Mensuelle","PAB09","1 bouteille de 75 centilitres (Apéritif)","CAB32","dimanche 18 août 2024","DA-03"]
[null,"Article dépense budgétaire","ADB","Dépenses alimentaires","DA","Asperges","DA004","Selon menu","PAB11","1 bocal ou 1 boîte pour 1 repas (Asperges)","CAB04","dimanche 18 août 2024","DA-04"]
[null,"Article dépense budgétaire","ADB","Dépenses alimentaires","DA","Autres dépenses alimentaires","DA005","Mensuelle","PAB09","Unité : sans conditionnement","CAB144","dimanche 18 août 2024","DA-05"]
[null,"Article dépense budgétaire","ADB","Dépenses alimentaires","DA","Autres fruits","DA006","Selon menu","PAB11","Unité : 2 à 4 pour 1 repas (Autres fruits, Clémentines, Fruits de saison)","CAB142","dimanche 18 août 2024","DA-06"]
[null,"Article dépense budgétaire","ADB","Dépenses alimentaires","DA","Avocat légume","DA007","Selon menu","PAB11","Unité : 1 pour 1 repas","CAB138","dimanche 18 août 2024","DA-07"]
[null,"Article dépense budgétaire","ADB","Dépenses alimentaires","DA","Avocats desserts","DA008","Selon menu","PAB11","Unité : 1 pour 1 repas","CAB138","dimanche 18 août 2024","DA-08"]
[null,"Article dépense budgétaire","ADB","Dépenses alimentaires","DA","Bananes desserts","DA009","Selon menu","PAB11","Unité : 1 pour 1 repas","CAB138","dimanche 18 août 2024","DA-09"]
[null,"Article dépense budgétaire","ADB","Dépenses alimentaires","DA","Bananes matin","DA010","Du 25 au 31 inclus de chaque mois","PAB06","Unité : 1 pour 1 repas","CAB138","dimanche 18 août 2024","DA-10"]
[null,"Article dépense budgétaire","ADB","Dépenses alimentaires","DA","Betterave rouge","DA011","Selon menu","PAB11","1 paquet pour 5 repas (Betteraves rouges)","CAB103","dimanche 18 août 2024","DA-11"]
[null,"Article dépense budgétaire","ADB","Dépenses alimentaires","DA","Beurre","DA012","Bimensuelle","PAB02","1 plaquette de 250 grammes (Beurre : 2 mensuelles maximum)","CAB104","dimanche 18 août 2024","DA-12"]
[null,"Article dépense budgétaire","ADB","Dépenses alimentaires","DA","Bifteck haché de bœuf","DA013","Selon menu","PAB11","1 paquet pour 2 repas","CAB100","dimanche 18 août 2024","DA-13"]
[null,"Article dépense budgétaire","ADB","Dépenses alimentaires","DA","Bifteck haché de cheval","DA014","Selon menu","PAB11","125 grammes pour 1 repas (Bifteck haché de cheval)","CAB125","dimanche 18 août 2024","DA-14"]
[null,"Article dépense budgétaire","ADB","Dépenses alimentaires","DA","Bifteck haché de veau","DA015","Selon menu","PAB11","1 paquet pour 2 repas","CAB100","dimanche 18 août 2024","DA-15"]
[null,"Article dépense budgétaire","ADB","Dépenses alimentaires","DA","Bœuf","DA016","Selon menu","PAB11","1 tranche pour 1 repas (Viandes midi weekend)","CAB120","dimanche 18 août 2024","DA-16"]
[null,"Article dépense budgétaire","ADB","Dépenses alimentaires","DA","Bonbons","DA017","Selon les besoins","PAB10","1 sachet grand modèle (Bonbons)","CAB114","dimanche 18 août 2024","DA-17"]
[null,"Article dépense budgétaire","ADB","Dépenses alimentaires","DA","Bouchée à la reine","DA018","Selon menu","PAB11","1 boîte pour 2 repas","CAB23","dimanche 18 août 2024","DA-18"]
[null,"Article dépense budgétaire","ADB","Dépenses alimentaires","DA","Boudin","DA019","Selon menu","PAB11","1 paquet pour 2 repas","CAB100","dimanche 18 août 2024","DA-19"]
[null,"Article dépense budgétaire","ADB","Dépenses alimentaires","DA","Café","DA020","Selon les besoins","PAB10","1 pot de 100 grammes Nescafé Espresso (Café)","CAB106","dimanche 18 août 2024","DA-20"]
[null,"Article dépense budgétaire","ADB","Dépenses alimentaires","DA","Carottes","DA021","Selon menu","PAB11","Unité : 2 pour 1 repas (Carottes, Tomates)","CAB143","dimanche 18 août 2024","DA-21"]
[null,"Article dépense budgétaire","ADB","Dépenses alimentaires","DA","Cassoulet","DA022","Selon menu","PAB11","1 boîte pour 2 repas","CAB23","dimanche 18 août 2024","DA-22"]
[null,"Article dépense budgétaire","ADB","Dépenses alimentaires","DA","Céleri","DA023","Selon menu","PAB11","Unité : 1 branche pour 1 repas (Céleri)","CAB134","dimanche 18 août 2024","DA-23"]
[null,"Article dépense budgétaire","ADB","Dépenses alimentaires","DA","Cervelas","DA024","Selon menu","PAB11","1 paquet pour 2 repas","CAB100","dimanche 18 août 2024","DA-24"]
[null,"Article dépense budgétaire","ADB","Dépenses alimentaires","DA","Champignons","DA025","Selon menu","PAB11","1 boîte pour 1 repas","CAB22","dimanche 18 août 2024","DA-25"]
[null,"Article dépense budgétaire","ADB","Dépenses alimentaires","DA","Cheval","DA026","Selon menu","PAB11","1 tranche pour 1 repas (Viandes midi weekend)","CAB120","dimanche 18 août 2024","DA-26"]
[null,"Article dépense budgétaire","ADB","Dépenses alimentaires","DA","Chips","DA027","Selon menu","PAB11","1 sachet pour 2 repas (Chips)","CAB115","dimanche 18 août 2024","DA-27"]
[null,"Article dépense budgétaire","ADB","Dépenses alimentaires","DA","Chocolat","DA028","Selon les besoins","PAB10","1 pack de 3 tablettes (Chocolat)","CAB82","dimanche 18 août 2024","DA-28"]
[null,"Article dépense budgétaire","ADB","Dépenses alimentaires","DA","Choucroute","DA029","Selon menu","PAB11","1 boîte pour 2 repas","CAB23","dimanche 18 août 2024","DA-29"]
[null,"Article dépense budgétaire","ADB","Dépenses alimentaires","DA","Chou-fleur","DA030","Selon menu","PAB11","Unité : 1 pour 2 repas (Chou-fleur)","CAB139","dimanche 18 août 2024","DA-30"]
[null,"Article dépense budgétaire","ADB","Dépenses alimentaires","DA","Choux de Bruxelles","DA031","Selon menu","PAB11","1 boîte pour 2 repas","CAB23","dimanche 18 août 2024","DA-31"]
[null,"Article dépense budgétaire","ADB","Dépenses alimentaires","DA","Clémentines","DA032","Selon menu","PAB11","Unité : 2 à 4 pour 1 repas (Autres fruits, Clémentines, Fruits de saison)","CAB142","dimanche 18 août 2024","DA-32"]
[null,"Article dépense budgétaire","ADB","Dépenses alimentaires","DA","Coca-cola","DA033","Journalière","PAB08","1 bouteille de 150 centilitres (Coca-cola, Eau)","CAB31","dimanche 18 août 2024","DA-33"]
[null,"Article dépense budgétaire","ADB","Dépenses alimentaires","DA","Cœur","DA034","Selon menu","PAB11","1 paquet pour 2 repas","CAB100","dimanche 18 août 2024","DA-34"]
[null,"Article dépense budgétaire","ADB","Dépenses alimentaires","DA","Concombre","DA035","Selon menu","PAB11","Unité : 1 pour 1 repas","CAB138","dimanche 18 août 2024","DA-35"]
[null,"Article dépense budgétaire","ADB","Dépenses alimentaires","DA","Confiture","DA036","Selon les besoins","PAB10","1 pot en verre de 370 grammes (Confiture)","CAB108","dimanche 18 août 2024","DA-36"]
[null,"Article dépense budgétaire","ADB","Dépenses alimentaires","DA","Couscous","DA037","Selon menu","PAB11","25 grammes pour 1 repas (Couscous, Purée, Riz légume, Tapioca)","CAB127","dimanche 18 août 2024","DA-37"]
[null,"Article dépense budgétaire","ADB","Dépenses alimentaires","DA","Crème","DA038","Selon menu","PAB11","1 pack de 4 pots pour le weekend end. 1 pot pour 1 repas","CAB85","dimanche 18 août 2024","DA-38"]
[null,"Article dépense budgétaire","ADB","Dépenses alimentaires","DA","Croque-monsieur","DA039","Selon menu","PAB11","1 boîte pour 2 repas","CAB23","dimanche 18 août 2024","DA-39"]
[null,"Article dépense budgétaire","ADB","Dépenses alimentaires","DA","Dattes","DA040","Selon menu","PAB11","1 paquet pour 4 repas (Dattes, Figues, Pruneaux)","CAB102","dimanche 18 août 2024","DA-40"]
[null,"Article dépense budgétaire","ADB","Dépenses alimentaires","DA","Dinde","DA041","Selon menu","PAB11","1 tranche pour 1 repas (Viandes midi weekend)","CAB120","dimanche 18 août 2024","DA-41"]
[null,"Article dépense budgétaire","ADB","Dépenses alimentaires","DA","Eau","DA042","Selon les besoins","PAB10","1 bouteille de 150 centilitres (Coca-cola, Eau)","CAB31","dimanche 18 août 2024","DA-42"]
[null,"Article dépense budgétaire","ADB","Dépenses alimentaires","DA","Endives","DA043","Selon menu","PAB11","1 boîte pour 2 repas","CAB23","dimanche 18 août 2024","DA-43"]
[null,"Article dépense budgétaire","ADB","Dépenses alimentaires","DA","Figues","DA044","Selon menu","PAB11","1 paquet pour 4 repas (Dattes, Figues, Pruneaux)","CAB102","dimanche 18 août 2024","DA-44"]
[null,"Article dépense budgétaire","ADB","Dépenses alimentaires","DA","Foie","DA045","Selon menu","PAB11","1 paquet pour 2 repas","CAB100","dimanche 18 août 2024","DA-45"]
[null,"Article dépense budgétaire","ADB","Dépenses alimentaires","DA","Frites","DA046","Selon menu","PAB11","20 frites pour 1 repas","CAB126","dimanche 18 août 2024","DA-46"]
[null,"Article dépense budgétaire","ADB","Dépenses alimentaires","DA","Fromage blanc desserts","DA047","Selon menu","PAB11","1 pack de 4 pots pour le weekend end. 1 pot pour 1 repas","CAB85","dimanche 18 août 2024","DA-47"]
[null,"Article dépense budgétaire","ADB","Dépenses alimentaires","DA","Fromage blanc matin","DA048","Du 17 au 24 inclus de chaque mois","PAB05","1 pack de 8 pots. 1 pot par matin (Fromage blanc matin)","CAB94","dimanche 18 août 2024","DA-48"]
[null,"Article dépense budgétaire","ADB","Dépenses alimentaires","DA","Fromage de tête","DA049","Selon menu","PAB11","1 paquet pour 2 repas","CAB100","dimanche 18 août 2024","DA-49"]
[null,"Article dépense budgétaire","ADB","Dépenses alimentaires","DA","Fromage râpé","DA050","Selon les besoins","PAB10","1 pack de 3 sachets. 1 sachet par samedi d'utilisation. (Fromage râpé)","CAB80","dimanche 18 août 2024","DA-50"]
[null,"Article dépense budgétaire","ADB","Dépenses alimentaires","DA","Fromage soir","DA051","Journalière","PAB08","1 boîte de 12, 24 ou 32 portions. 1 portion par soir. (Fromage soir)","CAB11","dimanche 18 août 2024","DA-51"]
[null,"Article dépense budgétaire","ADB","Dépenses alimentaires","DA","Fruits au sirop","DA052","Selon menu","PAB11","1 boîte pour 2 repas","CAB23","dimanche 18 août 2024","DA-52"]
[null,"Article dépense budgétaire","ADB","Dépenses alimentaires","DA","Fruits de saison","DA053","Selon menu","PAB11","Unité : 2 à 4 pour 1 repas (Autres fruits, Clémentines, Fruits de saison)","CAB142","dimanche 18 août 2024","DA-53"]
[null,"Article dépense budgétaire","ADB","Dépenses alimentaires","DA","Gâteau de riz","DA054","Selon menu","PAB11","1 pack de 4 pots pour le weekend end. 1 pot pour 1 repas","CAB85","dimanche 18 août 2024","DA-54"]
[null,"Article dépense budgétaire","ADB","Dépenses alimentaires","DA","Gâteau de semoule","DA055","Selon menu","PAB11","1 pack de 4 pots pour le weekend end. 1 pot pour 1 repas","CAB85","dimanche 18 août 2024","DA-55"]
[null,"Article dépense budgétaire","ADB","Dépenses alimentaires","DA","Gâteaux apéritif","DA056","Mensuelle","PAB09","1 boîte par dimanche midi et jours fériés. (Gâteaux apéritif)","CAB21","dimanche 18 août 2024","DA-56"]
[null,"Article dépense budgétaire","ADB","Dépenses alimentaires","DA","Gâteaux samedi et dimanche","DA057","Selon menu","PAB11","1 boîte pour 2 repas","CAB23","dimanche 18 août 2024","DA-57"]
[null,"Article dépense budgétaire","ADB","Dépenses alimentaires","DA","Glaces","DA058","Hebdomadaire","PAB07","1 cornet à 2 boules pendant l'été (Glaces)","CAB38","dimanche 18 août 2024","DA-58"]
[null,"Article dépense budgétaire","ADB","Dépenses alimentaires","DA","Gros sel","DA059","Selon les besoins","PAB10","1 boîte de 1000 grammes pour une durée indéterminée (Gros sel)","CAB09","dimanche 18 août 2024","DA-59"]
[null,"Article dépense budgétaire","ADB","Dépenses alimentaires","DA","Haricots verts","DA060","Selon menu","PAB11","1 boîte pour 2 repas","CAB23","dimanche 18 août 2024","DA-60"]
[null,"Article dépense budgétaire","ADB","Dépenses alimentaires","DA","Huile","DA061","Trimestrielle","PAB15","1 bouteille de 100 centilitres (Huile, Vinaigre assaisonnement)","CAB28","dimanche 18 août 2024","DA-61"]
[null,"Article dépense budgétaire","ADB","Dépenses alimentaires","DA","Jambon","DA062","Selon menu","PAB11","1 paquet pour 2 repas","CAB100","dimanche 18 août 2024","DA-62"]
[null,"Article dépense budgétaire","ADB","Dépenses alimentaires","DA","Jambonneau","DA063","Selon menu","PAB11","1 paquet pour 2 repas","CAB100","dimanche 18 août 2024","DA-63"]
[null,"Article dépense budgétaire","ADB","Dépenses alimentaires","DA","Lait","DA064","Trimestrielle","PAB15","1 boîte de 750 grammes pour une durée indéterminée (Lait en poudre écrémé, Sel fin)","CAB18","dimanche 18 août 2024","DA-64"]
[null,"Article dépense budgétaire","ADB","Dépenses alimentaires","DA","Légumes de couscous","DA065","Selon menu","PAB11","1 boîte pour 2 repas","CAB23","dimanche 18 août 2024","DA-65"]
[null,"Article dépense budgétaire","ADB","Dépenses alimentaires","DA","Macédoine de légumes","DA066","Selon menu","PAB11","1 boîte pour 2 repas","CAB23","dimanche 18 août 2024","DA-66"]
[null,"Article dépense budgétaire","ADB","Dépenses alimentaires","DA","Maïs","DA067","Selon menu","PAB11","1 boîte pour 2 repas","CAB23","dimanche 18 août 2024","DA-67"]
[null,"Article dépense budgétaire","ADB","Dépenses alimentaires","DA","Mortadelle","DA068","Selon menu","PAB11","1 paquet pour 2 repas","CAB100","dimanche 18 août 2024","DA-68"]
[null,"Article dépense budgétaire","ADB","Dépenses alimentaires","DA","Mousse au chocolat","DA069","Selon menu","PAB11","1 pack de 4 pots pour le weekend end. 1 pot pour 1 repas","CAB85","dimanche 18 août 2024","DA-69"]
[null,"Article dépense budgétaire","ADB","Dépenses alimentaires","DA","Œufs","DA070","Selon menu","PAB11","1 boîte de 6 œufs. 3 œufs pour 1 repas","CAB17","dimanche 18 août 2024","DA-70"]
[null,"Article dépense budgétaire","ADB","Dépenses alimentaires","DA","Oranges","DA071","Selon menu","PAB11","Unité : 1 pour 1 repas","CAB138","dimanche 18 août 2024","DA-71"]
[null,"Article dépense budgétaire","ADB","Dépenses alimentaires","DA","Paella","DA072","Selon menu","PAB11","1 boîte pour 2 repas","CAB23","dimanche 18 août 2024","DA-72"]
[null,"Article dépense budgétaire","ADB","Dépenses alimentaires","DA","Pain","DA073","Journalière","PAB08","1 baguette pour 4 jours (Pain)","CAB02","dimanche 18 août 2024","DA-73"]
[null,"Article dépense budgétaire","ADB","Dépenses alimentaires","DA","Pâtes à la sauce tomates","DA074","Selon menu","PAB11","5 cuillères pour 1 repas (Pâtes à la sauce tomates, Pâtes au beurre, Pâtes au fromage râpé)","CAB129","dimanche 18 août 2024","DA-74"]
[null,"Article dépense budgétaire","ADB","Dépenses alimentaires","DA","Pâtes au beurre","DA075","Selon menu","PAB11","5 cuillères pour 1 repas (Pâtes à la sauce tomates, Pâtes au beurre, Pâtes au fromage râpé)","CAB129","dimanche 18 août 2024","DA-75"]
[null,"Article dépense budgétaire","ADB","Dépenses alimentaires","DA","Pâtes au fromage râpé","DA076","Selon menu","PAB11","5 cuillères pour 1 repas (Pâtes à la sauce tomates, Pâtes au beurre, Pâtes au fromage râpé)","CAB129","dimanche 18 août 2024","DA-76"]
[null,"Article dépense budgétaire","ADB","Dépenses alimentaires","DA","Petits pois","DA077","Selon menu","PAB11","1 boîte pour 2 repas","CAB23","dimanche 18 août 2024","DA-77"]
[null,"Article dépense budgétaire","ADB","Dépenses alimentaires","DA","Petits pois et jeunes carottes","DA078","Selon menu","PAB11","1 boîte pour 2 repas","CAB23","dimanche 18 août 2024","DA-78"]
[null,"Article dépense budgétaire","ADB","Dépenses alimentaires","DA","Petits suisses","DA079","Selon menu","PAB11","1 pack de 6 pots ou 12 pots. 3 pots par repas (Petits suisses)","CAB92","dimanche 18 août 2024","DA-79"]
[null,"Article dépense budgétaire","ADB","Dépenses alimentaires","DA","Pizza","DA080","Selon menu","PAB11","1 paquet pour 2 repas","CAB100","dimanche 18 août 2024","DA-80"]
[null,"Article dépense budgétaire","ADB","Dépenses alimentaires","DA","Poireau","DA081","Selon menu","PAB11","Unité : 1 pour 1 repas","CAB138","dimanche 18 août 2024","DA-81"]
[null,"Article dépense budgétaire","ADB","Dépenses alimentaires","DA","Poisson","DA082","Selon menu","PAB11","Unité : 1 pour 1 repas","CAB138","dimanche 18 août 2024","DA-82"]
[null,"Article dépense budgétaire","ADB","Dépenses alimentaires","DA","Poivre gris","DA083","Selon les besoins","PAB10","1 pot de 36 grammes (Poivre gris)","CAB107","dimanche 18 août 2024","DA-83"]
[null,"Article dépense budgétaire","ADB","Dépenses alimentaires","DA","Pomme","DA084","Selon menu","PAB11","1 sachet de 2 kilogrammes. 1 pomme pour 1 repas","CAB113","dimanche 18 août 2024","DA-84"]
[null,"Article dépense budgétaire","ADB","Dépenses alimentaires","DA","Pomme de terre","DA085","Selon menu","PAB11","Unité : 1 pour 1 repas","CAB138","dimanche 18 août 2024","DA-85"]
[null,"Article dépense budgétaire","ADB","Dépenses alimentaires","DA","Porc","DA086","Selon menu","PAB11","1 tranche pour 1 repas (Viandes midi weekend)","CAB120","dimanche 18 août 2024","DA-86"]
[null,"Article dépense budgétaire","ADB","Dépenses alimentaires","DA","Pruneaux","DA087","Selon menu","PAB11","1 paquet pour 4 repas (Dattes, Figues, Pruneaux)","CAB102","dimanche 18 août 2024","DA-87"]
[null,"Article dépense budgétaire","ADB","Dépenses alimentaires","DA","Purée","DA088","Selon menu","PAB11","25 grammes pour 1 repas (Couscous, Purée, Riz légume, Tapioca)","CAB127","dimanche 18 août 2024","DA-88"]
[null,"Article dépense budgétaire","ADB","Dépenses alimentaires","DA","Quenelles","DA089","Selon menu","PAB11","1 boîte pour 2 repas","CAB23","dimanche 18 août 2024","DA-89"]
[null,"Article dépense budgétaire","ADB","Dépenses alimentaires","DA","Quiche lorraine","DA090","Selon menu","PAB11","1 boîte de 8 parts soit 800 grammes. 1 par repas. (Quiche lorraine)","CAB19","dimanche 18 août 2024","DA-90"]
[null,"Article dépense budgétaire","ADB","Dépenses alimentaires","DA","Radis LMR","DA091","Selon menu","PAB11","1 botte ou 1 sachet pour deux repas (Radis LMR)","CAB24","dimanche 18 août 2024","DA-91"]
[null,"Article dépense budgétaire","ADB","Dépenses alimentaires","DA","Radis LSV","DA092","Selon menu","PAB11","1 botte ou 1 sachet pour un repas (Radis LSV)","CAB25","dimanche 18 août 2024","DA-92"]
[null,"Article dépense budgétaire","ADB","Dépenses alimentaires","DA","Ratatouille","DA093","Selon menu","PAB11","1 boîte pour 2 repas","CAB23","dimanche 18 août 2024","DA-93"]
[null,"Article dépense budgétaire","ADB","Dépenses alimentaires","DA","Raviolis","DA094","Selon menu","PAB11","1 boîte pour 2 repas","CAB23","dimanche 18 août 2024","DA-94"]
[null,"Article dépense budgétaire","ADB","Dépenses alimentaires","DA","Riz desserts","DA095","Selon menu","PAB11","1 pack de 4 pots pour le weekend end. 1 pot pour 1 repas","CAB85","dimanche 18 août 2024","DA-95"]
[null,"Article dépense budgétaire","ADB","Dépenses alimentaires","DA","Riz légume","DA096","Selon menu","PAB11","25 grammes pour 1 repas (Couscous, Purée, Riz légume, Tapioca)","CAB127","dimanche 18 août 2024","DA-96"]
[null,"Article dépense budgétaire","ADB","Dépenses alimentaires","DA","Rôti d'agneau","DA097","Selon menu","PAB11","1 morceau de 500 grammes pour 5 repas (les cinq rôtis)","CAB60","dimanche 18 août 2024","DA-97"]
[null,"Article dépense budgétaire","ADB","Dépenses alimentaires","DA","Rôti de bœuf","DA098","Selon menu","PAB11","1 morceau de 500 grammes pour 5 repas (les cinq rôtis)","CAB60","dimanche 18 août 2024","DA-98"]
[null,"Article dépense budgétaire","ADB","Dépenses alimentaires","DA","Rôti de cheval","DA099","Selon menu","PAB11","1 morceau de 500 grammes pour 5 repas (les cinq rôtis)","CAB60","dimanche 18 août 2024","DA-99"]
[null,"Article dépense budgétaire","ADB","Dépenses alimentaires","DA","Rôti de porc","DA100","Selon menu","PAB11","1 morceau de 500 grammes pour 5 repas (les cinq rôtis)","CAB60","dimanche 18 août 2024","DA-100"]
[null,"Article dépense budgétaire","ADB","Dépenses alimentaires","DA","Rôti de veau","DA101","Selon menu","PAB11","1 morceau de 500 grammes pour 5 repas (les cinq rôtis)","CAB60","dimanche 18 août 2024","DA-101"]
[null,"Article dépense budgétaire","ADB","Dépenses alimentaires","DA","Roulade à la pistache","DA102","Selon menu","PAB11","3 tranches pour 1 repas (Roulade à la pistache, Tête roulée)","CAB128","dimanche 18 août 2024","DA-102"]
[null,"Article dépense budgétaire","ADB","Dépenses alimentaires","DA","Roulés au fromage","DA103","Selon menu","PAB11","1 boîte pour 2 repas","CAB23","dimanche 18 août 2024","DA-103"]
[null,"Article dépense budgétaire","ADB","Dépenses alimentaires","DA","Salade","DA104","Selon menu","PAB11","Unité : 1 tête pour 1 repas (Salade)","CAB141","dimanche 18 août 2024","DA-104"]
[null,"Article dépense budgétaire","ADB","Dépenses alimentaires","DA","Salami","DA105","Selon menu","PAB11","1 paquet pour 2 repas","CAB100","dimanche 18 août 2024","DA-105"]
[null,"Article dépense budgétaire","ADB","Dépenses alimentaires","DA","Salsifis","DA106","Selon menu","PAB11","1 boîte pour 1 repas","CAB22","dimanche 18 août 2024","DA-106"]
[null,"Article dépense budgétaire","ADB","Dépenses alimentaires","DA","Sauce tomates","DA107","Trimestrielle","PAB15","1 tube de 180 grammes (Sauce tomates)","CAB121","dimanche 18 août 2024","DA-107"]
[null,"Article dépense budgétaire","ADB","Dépenses alimentaires","DA","Saucisses","DA108","Selon menu","PAB11","1 paquet pour 2 repas","CAB100","dimanche 18 août 2024","DA-108"]
[null,"Article dépense budgétaire","ADB","Dépenses alimentaires","DA","Saucisson","DA109","Selon menu","PAB11","1 sachet pour 6 repas. 5 tranches pour 1 repas (Saucisson)","CAB117","dimanche 18 août 2024","DA-109"]
[null,"Article dépense budgétaire","ADB","Dépenses alimentaires","DA","Sel fin","DA110","Selon les besoins","PAB10","1 boîte de 750 grammes pour une durée indéterminée (Lait en poudre écrémé, Sel fin)","CAB18","dimanche 18 août 2024","DA-110"]
[null,"Article dépense budgétaire","ADB","Dépenses alimentaires","DA","Sucre","DA111","Journalière","PAB08","1 boîte de 1000 grammes. 336 pierres. 6 pierres par jour (Sucre petits morceaux)","CAB10","dimanche 18 août 2024","DA-111"]
[null,"Article dépense budgétaire","ADB","Dépenses alimentaires","DA","Tapioca","DA112","Selon menu","PAB11","25 grammes pour 1 repas (Couscous, Purée, Riz légume, Tapioca)","CAB127","dimanche 18 août 2024","DA-112"]
[null,"Article dépense budgétaire","ADB","Dépenses alimentaires","DA","Tête persillée","DA113","Selon menu","PAB11","1 paquet pour 2 repas","CAB100","dimanche 18 août 2024","DA-113"]
[null,"Article dépense budgétaire","ADB","Dépenses alimentaires","DA","Tête roulée","DA114","Selon menu","PAB11","3 tranches pour 1 repas (Roulade à la pistache, Tête roulée)","CAB128","dimanche 18 août 2024","DA-114"]
[null,"Article dépense budgétaire","ADB","Dépenses alimentaires","DA","Thé","DA115","Journalière","PAB08","1 boîte de 100 grammes ou de 200 grammes (50 ou 100 sachets). 3 sachets par jour (Thé)","CAB07","dimanche 18 août 2024","DA-115"]
[null,"Article dépense budgétaire","ADB","Dépenses alimentaires","DA","Thon","DA116","Selon menu","PAB11","1 boîte pour 1 repas","CAB22","dimanche 18 août 2024","DA-116"]
[null,"Article dépense budgétaire","ADB","Dépenses alimentaires","DA","Tomates","DA117","Selon menu","PAB11","Unité : 2 pour 1 repas (Carottes, Tomates)","CAB143","dimanche 18 août 2024","DA-117"]
[null,"Article dépense budgétaire","ADB","Dépenses alimentaires","DA","Tomates pelées","DA118","Selon menu","PAB11","1 boîte pour 2 repas","CAB23","dimanche 18 août 2024","DA-118"]
[null,"Article dépense budgétaire","ADB","Dépenses alimentaires","DA","Veau","DA119","Selon menu","PAB11","1 tranche pour 1 repas (Viandes midi weekend)","CAB120","dimanche 18 août 2024","DA-119"]
[null,"Article dépense budgétaire","ADB","Dépenses alimentaires","DA","Vinaigre assaisonnement","DA120","Trimestrielle","PAB15","1 bouteille de 100 centilitres (Huile, Vinaigre assaisonnement)","CAB28","dimanche 18 août 2024","DA-120"]
[null,"Article dépense budgétaire","ADB","Dépenses alimentaires","DA","Yaourts desserts","DA121","Selon menu","PAB11","1 pack de 4 pots pour le weekend end. 1 pot pour 1 repas","CAB85","dimanche 18 août 2024","DA-121"]
[null,"Article dépense budgétaire","ADB","Dépenses alimentaires","DA","Yaourts matin","DA122","Du 01 au 16 inclus de chaque mois","PAB04","1 pack de 16 pots. 1 pot par matin (Yaourts matin)","CAB69","dimanche 18 août 2024","DA-122"]
[null,"Article dépense budgétaire","ADB","Dépenses bancaires","DB","Abonnement Canal Plus","DB001","Mensuelle","PAB09","Unité : sans conditionnement","CAB144","dimanche 18 août 2024","DB-01"]
[null,"Article dépense budgétaire","ADB","Dépenses bancaires","DB","Abonnement Canal Satellite","DB002","Selon les besoins","PAB10","Unité : sans conditionnement","CAB144","dimanche 18 août 2024","DB-02"]
[null,"Article dépense budgétaire","ADB","Dépenses bancaires","DB","Abonnement Coopanet (Banque française de crédit coopératif)","DB003","Selon les besoins","PAB10","Unité : sans conditionnement","CAB144","dimanche 18 août 2024","DB-03"]
[null,"Article dépense budgétaire","ADB","Dépenses bancaires","DB","Actions Caisse épargne","DB004","Annuelle","PAB01","Unité : sans conditionnement","CAB144","lundi 19 août 2024","DB-04"]
[null,"Article dépense budgétaire","ADB","Dépenses bancaires","DB","Aspirateur","DB005","Selon les besoins","PAB10","Unité : sans conditionnement","CAB144","dimanche 18 août 2024","DB-05"]
[null,"Article dépense budgétaire","ADB","Dépenses bancaires","DB","Assurance accidents de la vie (Caisse épargne)","DB006","Mensuelle","PAB09","Unité : sans conditionnement","CAB144","dimanche 18 août 2024","DB-06"]
[null,"Article dépense budgétaire","ADB","Dépenses bancaires","DB","Assurance incendie (Caisse épargne)","DB007","Mensuelle","PAB09","Unité : sans conditionnement","CAB144","dimanche 18 août 2024","DB-07"]
[null,"Article dépense budgétaire","ADB","Dépenses bancaires","DB","Assurance protection juridique (Caisse épargne)","DB008","Mensuelle","PAB09","Unité : sans conditionnement","CAB144","dimanche 18 août 2024","DB-08"]
[null,"Article dépense budgétaire","ADB","Dépenses bancaires","DB","Autre matériel informatique","DB009","Selon les besoins","PAB10","Unité : sans conditionnement","CAB144","dimanche 18 août 2024","DB-09"]
[null,"Article dépense budgétaire","ADB","Dépenses bancaires","DB","Autres dépenses bancaires","DB010","Mensuelle","PAB09","Unité : sans conditionnement","CAB144","dimanche 18 août 2024","DB-10"]
[null,"Article dépense budgétaire","ADB","Dépenses bancaires","DB","Cadeaux","DB011","Selon les besoins","PAB10","Unité : sans conditionnement","CAB144","dimanche 18 août 2024","DB-11"]
[null,"Article dépense budgétaire","ADB","Dépenses bancaires","DB","Carte amicale des locataires (Confédération nationale du logement)","DB012","Annuelle","PAB01","Unité : sans conditionnement","CAB144","dimanche 18 août 2024","DB-12"]
[null,"Article dépense budgétaire","ADB","Dépenses bancaires","DB","Cocotte minute","DB013","Selon les besoins","PAB10","Unité : sans conditionnement","CAB144","dimanche 18 août 2024","DB-13"]
[null,"Article dépense budgétaire","ADB","Dépenses bancaires","DB","Congélateur","DB014","Selon les besoins","PAB10","Unité : sans conditionnement","CAB144","dimanche 18 août 2024","DB-14"]
[null,"Article dépense budgétaire","ADB","Dépenses bancaires","DB","Cuisinière","DB015","Selon les besoins","PAB10","Unité : sans conditionnement","CAB144","dimanche 18 août 2024","DB-15"]
[null,"Article dépense budgétaire","ADB","Dépenses bancaires","DB","Électricité","DB016","Mensuelle","PAB09","Unité : sans conditionnement","CAB144","dimanche 18 août 2024","DB-16"]
[null,"Article dépense budgétaire","ADB","Dépenses bancaires","DB","Four à micro-ondes","DB017","Selon les besoins","PAB10","Unité : sans conditionnement","CAB144","dimanche 18 août 2024","DB-17"]
[null,"Article dépense budgétaire","ADB","Dépenses bancaires","DB","Friteuse électrique","DB018","Selon les besoins","PAB10","Unité : sans conditionnement","CAB144","dimanche 18 août 2024","DB-18"]
[null,"Article dépense budgétaire","ADB","Dépenses bancaires","DB","Friteuse gaz","DB019","Selon les besoins","PAB10","Unité : sans conditionnement","CAB144","dimanche 18 août 2024","DB-19"]
[null,"Article dépense budgétaire","ADB","Dépenses bancaires","DB","Gaz","DB020","Mensuelle","PAB09","Unité : sans conditionnement","CAB144","dimanche 18 août 2024","DB-20"]
[null,"Article dépense budgétaire","ADB","Dépenses bancaires","DB","Graveur compact-disc informatique","DB021","Selon les besoins","PAB10","Unité : sans conditionnement","CAB144","dimanche 18 août 2024","DB-21"]
[null,"Article dépense budgétaire","ADB","Dépenses bancaires","DB","Graveur compact-disc vidéo","DB022","Selon les besoins","PAB10","Unité : sans conditionnement","CAB144","dimanche 18 août 2024","DB-22"]
[null,"Article dépense budgétaire","ADB","Dépenses bancaires","DB","Impôts locaux","DB023","Annuelle","PAB01","Unité : sans conditionnement","CAB144","dimanche 18 août 2024","DB-23"]
[null,"Article dépense budgétaire","ADB","Dépenses bancaires","DB","Impôts sur le revenu des personnes physiques","DB024","Mensuelle","PAB09","Unité : sans conditionnement","CAB144","dimanche 18 août 2024","DB-24"]
[null,"Article dépense budgétaire","ADB","Dépenses bancaires","DB","Imprimantes","DB025","Selon les besoins","PAB10","Unité : sans conditionnement","CAB144","dimanche 18 août 2024","DB-25"]
[null,"Article dépense budgétaire","ADB","Dépenses bancaires","DB","Livres bibliophiles","DB026","Selon les besoins","PAB10","Unité : sans conditionnement","CAB144","dimanche 18 août 2024","DB-26"]
[null,"Article dépense budgétaire","ADB","Dépenses bancaires","DB","Livres informatiques","DB027","Selon les besoins","PAB10","Unité : sans conditionnement","CAB144","dimanche 18 août 2024","DB-27"]
[null,"Article dépense budgétaire","ADB","Dépenses bancaires","DB","Logiciels informatiques","DB028","Selon les besoins","PAB10","Unité : sans conditionnement","CAB144","dimanche 18 août 2024","DB-28"]
[null,"Article dépense budgétaire","ADB","Dépenses bancaires","DB","Loyer et charges","DB029","Mensuelle","PAB09","Unité : sans conditionnement","CAB144","dimanche 18 août 2024","DB-29"]
[null,"Article dépense budgétaire","ADB","Dépenses bancaires","DB","Machine à laver","DB030","Selon les besoins","PAB10","Unité : sans conditionnement","CAB144","dimanche 18 août 2024","DB-30"]
[null,"Article dépense budgétaire","ADB","Dépenses bancaires","DB","Magnétoscope","DB031","Selon les besoins","PAB10","Unité : sans conditionnement","CAB144","dimanche 18 août 2024","DB-31"]
[null,"Article dépense budgétaire","ADB","Dépenses bancaires","DB","Mutuelle","DB032","Mensuelle","PAB09","Unité : sans conditionnement","CAB144","dimanche 18 août 2024","DB-32"]
[null,"Article dépense budgétaire","ADB","Dépenses bancaires","DB","Ordinateurs de bureau","DB033","Selon les besoins","PAB10","Unité : sans conditionnement","CAB144","dimanche 18 août 2024","DB-33"]
[null,"Article dépense budgétaire","ADB","Dépenses bancaires","DB","Ordinateurs portables","DB034","Selon les besoins","PAB10","Unité : sans conditionnement","CAB144","dimanche 18 août 2024","DB-34"]
[null,"Article dépense budgétaire","ADB","Dépenses bancaires","DB","Protection de la maison (Protection 24)","DB035","Mensuelle","PAB09","Unité : sans conditionnement","CAB144","dimanche 18 août 2024","DB-35"]
[null,"Article dépense budgétaire","ADB","Dépenses bancaires","DB","Rasoir électrique","DB036","Selon les besoins","PAB10","Unité : sans conditionnement","CAB144","dimanche 18 août 2024","DB-36"]
[null,"Article dépense budgétaire","ADB","Dépenses bancaires","DB","Redevance télévision","DB037","Annuelle","PAB01","Unité : sans conditionnement","CAB144","dimanche 18 août 2024","DB-37"]
[null,"Article dépense budgétaire","ADB","Dépenses bancaires","DB","Réfrigérateur","DB038","Selon les besoins","PAB10","Unité : sans conditionnement","CAB144","dimanche 18 août 2024","DB-38"]
[null,"Article dépense budgétaire","ADB","Dépenses bancaires","DB","Réparations","DB039","Mensuelle","PAB09","Unité : sans conditionnement","CAB144","dimanche 18 août 2024","DB-39"]
[null,"Article dépense budgétaire","ADB","Dépenses bancaires","DB","Restaurant","DB040","Selon les besoins","PAB10","Unité : sans conditionnement","CAB144","dimanche 18 août 2024","DB-40"]
[null,"Article dépense budgétaire","ADB","Dépenses bancaires","DB","Téléphone fixe et Internet","DB041","Selon les besoins","PAB10","Unité : sans conditionnement","CAB144","dimanche 18 août 2024","DB-41"]
[null,"Article dépense budgétaire","ADB","Dépenses bancaires","DB","Téléphone orange","DB042","Selon les besoins","PAB10","Unité : sans conditionnement","CAB144","dimanche 18 août 2024","DB-42"]
[null,"Article dépense budgétaire","ADB","Dépenses bancaires","DB","Téléphone portable","DB043","Selon les besoins","PAB10","Unité : sans conditionnement","CAB144","dimanche 18 août 2024","DB-43"]
[null,"Article dépense budgétaire","ADB","Dépenses bancaires","DB","Télévision","DB044","Selon les besoins","PAB10","Unité : sans conditionnement","CAB144","dimanche 18 août 2024","DB-44"]
[null,"Article dépense budgétaire","ADB","Dépenses bancaires","DB","Vacances","DB045","Mensuelle","PAB09","Unité : sans conditionnement","CAB144","dimanche 18 août 2024","DB-45"]
[null,"Article dépense budgétaire","ADB","Dépenses bancaires","DB","Virements de fonds","DB046","Mensuelle","PAB09","Unité : sans conditionnement","CAB144","dimanche 18 août 2024","DB-46"]
[null,"Article dépense budgétaire","ADB","Dépenses horticoles","DH","Autres dépenses horticoles","DH001","Mensuelle","PAB09","Unité : sans conditionnement","CAB144","dimanche 18 août 2024","DH-01"]
[null,"Article dépense budgétaire","ADB","Dépenses horticoles","DH","Cache-pots","DH002","Selon les besoins","PAB10","Unité : sans conditionnement","CAB144","dimanche 18 août 2024","DH-02"]
[null,"Article dépense budgétaire","ADB","Dépenses horticoles","DH","Engrais","DH003","Selon les besoins","PAB10","1 flacon engrais universel KB d'1 litre","CAB57","dimanche 18 août 2024","DH-03"]
[null,"Article dépense budgétaire","ADB","Dépenses horticoles","DH","Fleurs","DH004","Selon les besoins","PAB10","1 bouquet","CAB26","dimanche 18 août 2024","DH-04"]
[null,"Article dépense budgétaire","ADB","Dépenses horticoles","DH","Muguet","DH005","Annuelle","PAB01","unité : 1 brin ou 1 pot (Muguet)","CAB135","dimanche 18 août 2024","DH-05"]
[null,"Article dépense budgétaire","ADB","Dépenses horticoles","DH","Plantes","DH006","Selon les besoins","PAB10","Unité : 1 pot (Plantes, Pots à fleurs, Pots à plantes)","CAB137","dimanche 18 août 2024","DH-06"]
[null,"Article dépense budgétaire","ADB","Dépenses horticoles","DH","Pots à fleurs","DH007","Selon les besoins","PAB10","Unité : 1 pot (Plantes, Pots à fleurs, Pots à plantes)","CAB137","dimanche 18 août 2024","DH-07"]
[null,"Article dépense budgétaire","ADB","Dépenses horticoles","DH","Pots à plantes","DH008","Selon les besoins","PAB10","Unité : 1 pot (Plantes, Pots à fleurs, Pots à plantes)","CAB137","dimanche 18 août 2024","DH-08"]
[null,"Article dépense budgétaire","ADB","Dépenses horticoles","DH","Soucoupes","DH009","Selon les besoins","PAB10","Unité : sans conditionnement","CAB144","dimanche 18 août 2024","DH-09"]
[null,"Article dépense budgétaire","ADB","Dépenses horticoles","DH","Terre","DH010","Selon les besoins","PAB10","1 sac de 20 litres (Terre)","CAB112","dimanche 18 août 2024","DH-10"]
[null,"Article dépense budgétaire","ADB","Dépenses horticoles","DH","Tuteurs","DH011","Selon les besoins","PAB10","Unité : sans conditionnement","CAB144","dimanche 18 août 2024","DH-11"]
[null,"Article dépense budgétaire","ADB","Dépenses médicales","DM","Analyses","DM001","Trimestrielle","PAB15","Unité : sans conditionnement","CAB144","dimanche 18 août 2024","DM-01"]
[null,"Article dépense budgétaire","ADB","Dépenses médicales","DM","Autres dépenses médicales","DM002","Mensuelle","PAB09","Unité : sans conditionnement","CAB144","dimanche 18 août 2024","DM-02"]
[null,"Article dépense budgétaire","ADB","Dépenses médicales","DM","Dentiste","DM003","Annuelle","PAB01","Unité : sans conditionnement","CAB144","dimanche 18 août 2024","DM-03"]
[null,"Article dépense budgétaire","ADB","Dépenses médicales","DM","Docteur dermatologue","DM004","Annuelle","PAB01","Unité : sans conditionnement","CAB144","dimanche 18 août 2024","DM-04"]
[null,"Article dépense budgétaire","ADB","Dépenses médicales","DM","Docteur généraliste","DM005","Trimestrielle","PAB15","Unité : sans conditionnement","CAB144","dimanche 18 août 2024","DM-05"]
[null,"Article dépense budgétaire","ADB","Dépenses médicales","DM","Docteur ophtalmologiste","DM006","Annuelle","PAB01","Unité : sans conditionnement","CAB144","dimanche 18 août 2024","DM-06"]
[null,"Article dépense budgétaire","ADB","Dépenses médicales","DM","Monture des lunettes","DM007","Annuelle","PAB01","Unité : sans conditionnement","CAB144","dimanche 18 août 2024","DM-07"]
[null,"Article dépense budgétaire","ADB","Dépenses médicales","DM","Pharmacie vignette blanche","DM008","Mensuelle","PAB09","Unité : sans conditionnement","CAB144","dimanche 18 août 2024","DM-08"]
[null,"Article dépense budgétaire","ADB","Dépenses médicales","DM","Pharmacie vignette bleue","DM009","Mensuelle","PAB09","Unité : sans conditionnement","CAB144","dimanche 18 août 2024","DM-09"]
[null,"Article dépense budgétaire","ADB","Dépenses médicales","DM","Pharmacie vignette orange","DM010","Mensuelle","PAB09","Unité : sans conditionnement","CAB144","dimanche 18 août 2024","DM-10"]
[null,"Article dépense budgétaire","ADB","Dépenses médicales","DM","Prélèvements","DM011","Trimestrielle","PAB15","Unité : sans conditionnement","CAB144","dimanche 18 août 2024","DM-11"]
[null,"Article dépense budgétaire","ADB","Dépenses médicales","DM","Radiographies","DM012","Annuelle","PAB01","Unité : sans conditionnement","CAB144","dimanche 18 août 2024","DM-12"]
[null,"Article dépense budgétaire","ADB","Dépenses médicales","DM","Verres des lunettes","DM013","Annuelle","PAB01","Unité : sans conditionnement","CAB144","dimanche 18 août 2024","DM-13"]
[null,"Article dépense budgétaire","ADB","Dépenses non alimentaires","DNA","Agrafes","DNA001","Selon les besoins","PAB10","1 boîte de 1000 agrafes 26/6 Esquisse Leclerc","CAB08","dimanche 18 août 2024","DNA-01"]
[null,"Article dépense budgétaire","ADB","Dépenses non alimentaires","DNA","Agrafeuses","DNA002","Selon les besoins","PAB10","Unité : sans conditionnement","CAB144","dimanche 18 août 2024","DNA-02"]
[null,"Article dépense budgétaire","ADB","Dépenses non alimentaires","DNA","Ajax","DNA003","Bimestrielle","PAB03","1 flacon de 750 grammes (Ajax)","CAB55","dimanche 18 août 2024","DNA-03"]
[null,"Article dépense budgétaire","ADB","Dépenses non alimentaires","DNA","Allume-gaz","DNA004","Selon les besoins","PAB10","Unité : sans conditionnement","CAB144","dimanche 18 août 2024","DNA-04"]
[null,"Article dépense budgétaire","ADB","Dépenses non alimentaires","DNA","Ampoules électriques","DNA005","Semestrielle","PAB12","1 paquet d'une ampoule éléctrique ou halogène (Ampoules électriques ou halogènes)","CAB99","dimanche 18 août 2024","DNA-05"]
[null,"Article dépense budgétaire","ADB","Dépenses non alimentaires","DNA","Ampoules halogènes","DNA006","Selon les besoins","PAB10","1 paquet d'une ampoule éléctrique ou halogène (Ampoules électriques ou halogènes)","CAB99","dimanche 18 août 2024","DNA-06"]
[null,"Article dépense budgétaire","ADB","Dépenses non alimentaires","DNA","Argent perdu","DNA007","Selon les besoins","PAB10","Unité : sans conditionnement","CAB144","dimanche 18 août 2024","DNA-07"]
[null,"Article dépense budgétaire","ADB","Dépenses non alimentaires","DNA","Argent perdu sur monnaie rendue","DNA008","Selon les besoins","PAB10","Unité : sans conditionnement","CAB144","dimanche 18 août 2024","DNA-08"]
[null,"Article dépense budgétaire","ADB","Dépenses non alimentaires","DNA","Aspirateur","DNA009","Selon les besoins","PAB10","Unité : sans conditionnement","CAB144","dimanche 18 août 2024","DNA-09"]
[null,"Article dépense budgétaire","ADB","Dépenses non alimentaires","DNA","Assouplissant pour le linge","DNA010","Semestrielle","PAB12","1 flacon de 2000 millilitres Hyperdou Leclerc (Assouplissant pour le linge)","CAB48","dimanche 18 août 2024","DNA-10"]
[null,"Article dépense budgétaire","ADB","Dépenses non alimentaires","DNA","Autre matériel informatique","DNA011","Selon les besoins","PAB10","Unité : sans conditionnement","CAB144","dimanche 18 août 2024","DNA-11"]
[null,"Article dépense budgétaire","ADB","Dépenses non alimentaires","DNA","Autres dépenses non alimentaires","DNA012","Mensuelle","PAB09","Unité : sans conditionnement","CAB144","dimanche 18 août 2024","DNA-12"]
[null,"Article dépense budgétaire","ADB","Dépenses non alimentaires","DNA","Autres étrennes à répartir","DNA013","Annuelle","PAB01","Unité : sans conditionnement","CAB144","dimanche 18 août 2024","DNA-13"]
[null,"Article dépense budgétaire","ADB","Dépenses non alimentaires","DNA","Balais","DNA014","Selon les besoins","PAB10","Unité : sans conditionnement","CAB144","dimanche 18 août 2024","DNA-14"]
[null,"Article dépense budgétaire","ADB","Dépenses non alimentaires","DNA","Balayette pour cuvette W.C. (y compris récipient)","DNA015","Selon les besoins","PAB10","Unité : sans conditionnement","CAB144","dimanche 18 août 2024","DNA-15"]
[null,"Article dépense budgétaire","ADB","Dépenses non alimentaires","DNA","Billets de tombola","DNA016","Trimestrielle","PAB15","1 carnet de 10 billets (Billets de tombola)","CAB35","dimanche 18 août 2024","DNA-16"]
[null,"Article dépense budgétaire","ADB","Dépenses non alimentaires","DNA","Billets de train","DNA017","Annuelle","PAB01","1 aller et retour (Billets de train)","CAB01","dimanche 18 août 2024","DNA-17"]
[null,"Article dépense budgétaire","ADB","Dépenses non alimentaires","DNA","Blouses (maison et ménage)","DNA018","Selon les besoins","PAB10","Unité : sans conditionnement","CAB144","dimanche 18 août 2024","DNA-18"]
[null,"Article dépense budgétaire","ADB","Dépenses non alimentaires","DNA","Bobines papier machine à calculer","DNA019","Selon les besoins","PAB10","1 pack de 10 bobines 1 pli offset 60 grammes 57x60x12 (Calculette)","CAB61","dimanche 18 août 2024","DNA-19"]
[null,"Article dépense budgétaire","ADB","Dépenses non alimentaires","DNA","Bouchons évier","DNA020","Selon les besoins","PAB10","Unité : sans conditionnement","CAB144","dimanche 18 août 2024","DNA-20"]
[null,"Article dépense budgétaire","ADB","Dépenses non alimentaires","DNA","Bouchons lavabo","DNA021","Selon les besoins","PAB10","Unité : sans conditionnement","CAB144","dimanche 18 août 2024","DNA-21"]
[null,"Article dépense budgétaire","ADB","Dépenses non alimentaires","DNA","Bougies","DNA022","Selon les besoins","PAB10","Unité : sans conditionnement","CAB144","dimanche 18 août 2024","DNA-22"]
[null,"Article dépense budgétaire","ADB","Dépenses non alimentaires","DNA","Bouteilles thermos","DNA023","Selon les besoins","PAB10","Unité : sans conditionnement","CAB144","dimanche 18 août 2024","DNA-23"]
[null,"Article dépense budgétaire","ADB","Dépenses non alimentaires","DNA","Boutons","DNA024","Selon les besoins","PAB10","Unité : sans conditionnement","CAB144","dimanche 18 août 2024","DNA-24"]
[null,"Article dépense budgétaire","ADB","Dépenses non alimentaires","DNA","Briquets","DNA025","Selon les besoins","PAB10","Unité : sans conditionnement","CAB144","dimanche 18 août 2024","DNA-25"]
[null,"Article dépense budgétaire","ADB","Dépenses non alimentaires","DNA","Brise-jets","DNA026","Selon les besoins","PAB10","Unité : sans conditionnement","CAB144","dimanche 18 août 2024","DNA-26"]
[null,"Article dépense budgétaire","ADB","Dépenses non alimentaires","DNA","Brosses à dents","DNA027","Annuelle","PAB01","1 pack de 4 brosses à dents","CAB84","dimanche 18 août 2024","DNA-27"]
[null,"Article dépense budgétaire","ADB","Dépenses non alimentaires","DNA","Câbles imprimantes","DNA028","Selon les besoins","PAB10","Unité : sans conditionnement","CAB144","dimanche 18 août 2024","DNA-28"]
[null,"Article dépense budgétaire","ADB","Dépenses non alimentaires","DNA","Câbles réseau","DNA029","Selon les besoins","PAB10","Unité : sans conditionnement","CAB144","dimanche 18 août 2024","DNA-29"]
[null,"Article dépense budgétaire","ADB","Dépenses non alimentaires","DNA","Cadeaux","DNA030","Selon les besoins","PAB10","Unité : sans conditionnement","CAB144","dimanche 18 août 2024","DNA-30"]
[null,"Article dépense budgétaire","ADB","Dépenses non alimentaires","DNA","Cahiers","DNA031","Selon les besoins","PAB10","Unité : sans conditionnement","CAB144","dimanche 18 août 2024","DNA-31"]
[null,"Article dépense budgétaire","ADB","Dépenses non alimentaires","DNA","Carte amicale des locataires (Confédération nationale du logement)","DNA032","Annuelle","PAB01","Unité : sans conditionnement","CAB144","dimanche 18 août 2024","DNA-32"]
[null,"Article dépense budgétaire","ADB","Dépenses non alimentaires","DNA","Cartes d'anniversaire","DNA033","Selon les besoins","PAB10","Unité : sans conditionnement","CAB144","dimanche 18 août 2024","DNA-33"]
[null,"Article dépense budgétaire","ADB","Dépenses non alimentaires","DNA","Cartes de fête","DNA034","Selon les besoins","PAB10","Unité : sans conditionnement","CAB144","dimanche 18 août 2024","DNA-34"]
[null,"Article dépense budgétaire","ADB","Dépenses non alimentaires","DNA","Cartes de vacances","DNA035","Annuelle","PAB01","Unité : sans conditionnement","CAB144","dimanche 18 août 2024","DNA-35"]
[null,"Article dépense budgétaire","ADB","Dépenses non alimentaires","DNA","Cartes de vœux","DNA036","Annuelle","PAB01","Unité : sans conditionnement","CAB144","dimanche 18 août 2024","DNA-36"]
[null,"Article dépense budgétaire","ADB","Dépenses non alimentaires","DNA","Cartouches imprimantes","DNA037","Selon les besoins","PAB10","1 pack de 5 cartouches (Canon série 700) 1 pack de 2 cartouches (Canon série 7400)","CAB90","dimanche 18 août 2024","DNA-37"]
[null,"Article dépense budgétaire","ADB","Dépenses non alimentaires","DNA","Cartouches stylos-plume","DNA038","Selon les besoins","PAB10","1 pack de 12 cartouches stylos-plume (en plus ou en moins)","CAB66","dimanche 18 août 2024","DNA-38"]
[null,"Article dépense budgétaire","ADB","Dépenses non alimentaires","DNA","Casseroles","DNA039","Selon les besoins","PAB10","Unité : sans conditionnement","CAB144","dimanche 18 août 2024","DNA-39"]
[null,"Article dépense budgétaire","ADB","Dépenses non alimentaires","DNA","Cassettes dictaphone","DNA040","Selon les besoins","PAB10","1 pack de 3 cassettes","CAB79","dimanche 18 août 2024","DNA-40"]
[null,"Article dépense budgétaire","ADB","Dépenses non alimentaires","DNA","Cassettes vidéo","DNA041","Selon les besoins","PAB10","1 pack de 3 cassettes","CAB79","dimanche 18 août 2024","DNA-41"]
[null,"Article dépense budgétaire","ADB","Dépenses non alimentaires","DNA","Cendriers","DNA042","Selon les besoins","PAB10","Unité : sans conditionnement","CAB144","dimanche 18 août 2024","DNA-42"]
[null,"Article dépense budgétaire","ADB","Dépenses non alimentaires","DNA","Chaussettes","DNA043","Selon les besoins","PAB10","1 paire (Chaussettes, Chaussons, Chaussures)","CAB96","dimanche 18 août 2024","DNA-43"]
[null,"Article dépense budgétaire","ADB","Dépenses non alimentaires","DNA","Chaussons","DNA044","Selon les besoins","PAB10","1 paire (Chaussettes, Chaussons, Chaussures)","CAB96","dimanche 18 août 2024","DNA-44"]
[null,"Article dépense budgétaire","ADB","Dépenses non alimentaires","DNA","Chaussures","DNA045","Selon les besoins","PAB10","1 paire (Chaussettes, Chaussons, Chaussures)","CAB96","dimanche 18 août 2024","DNA-45"]
[null,"Article dépense budgétaire","ADB","Dépenses non alimentaires","DNA","Chiffon à épousseter","DNA046","Selon les besoins","PAB10","Unité : sans conditionnement","CAB144","dimanche 18 août 2024","DNA-46"]
[null,"Article dépense budgétaire","ADB","Dépenses non alimentaires","DNA","Cigarettes déjà roulées","DNA047","Selon les besoins","PAB10","1 paquet de 20 cigarettes","CAB98","dimanche 18 août 2024","DNA-47"]
[null,"Article dépense budgétaire","ADB","Dépenses non alimentaires","DNA","Cigarettes électroniques","DNA048","Selon les besoins","PAB10","Unité : sans conditionnement","CAB144","dimanche 18 août 2024","DNA-48"]
[null,"Article dépense budgétaire","ADB","Dépenses non alimentaires","DNA","Cinéma","DNA049","Selon les besoins","PAB10","Unité : sans conditionnement","CAB144","dimanche 18 août 2024","DNA-49"]
[null,"Article dépense budgétaire","ADB","Dépenses non alimentaires","DNA","Cirage","DNA050","Semestrielle","PAB12","1 tube de 75 millilitres (Cirage liquide incolore applicateur, Dentifrice)","CAB123","dimanche 18 août 2024","DNA-50"]
[null,"Article dépense budgétaire","ADB","Dépenses non alimentaires","DNA","Cirque","DNA051","Selon les besoins","PAB10","Unité : sans conditionnement","CAB144","dimanche 18 août 2024","DNA-51"]
[null,"Article dépense budgétaire","ADB","Dépenses non alimentaires","DNA","Ciseaux","DNA052","Selon les besoins","PAB10","Unité : sans conditionnement","CAB144","dimanche 18 août 2024","DNA-52"]
[null,"Article dépense budgétaire","ADB","Dépenses non alimentaires","DNA","Claviers ordinateurs de bureau","DNA053","Selon les besoins","PAB10","Unité : sans conditionnement","CAB144","dimanche 18 août 2024","DNA-53"]
[null,"Article dépense budgétaire","ADB","Dépenses non alimentaires","DNA","Clenches","DNA054","Selon les besoins","PAB10","Unité : sans conditionnement","CAB144","dimanche 18 août 2024","DNA-54"]
[null,"Article dépense budgétaire","ADB","Dépenses non alimentaires","DNA","Cocotte minute","DNA055","Selon les besoins","PAB10","Unité : sans conditionnement","CAB144","dimanche 18 août 2024","DNA-55"]
[null,"Article dépense budgétaire","ADB","Dépenses non alimentaires","DNA","Coiffeur","DNA056","Tous les 4 mois","PAB14","Unité : sans conditionnement","CAB144","dimanche 18 août 2024","DNA-56"]
[null,"Article dépense budgétaire","ADB","Dépenses non alimentaires","DNA","Colle SUPERGLUE-3","DNA057","Selon les besoins","PAB10","1 tube de 3 grammes (Colle SUPERGLUE-3)","CAB122","dimanche 18 août 2024","DNA-57"]
[null,"Article dépense budgétaire","ADB","Dépenses non alimentaires","DNA","Collectes","DNA058","Mensuelle","PAB09","Unité : sans conditionnement","CAB144","dimanche 18 août 2024","DNA-58"]
[null,"Article dépense budgétaire","ADB","Dépenses non alimentaires","DNA","Compact disc rom informatique","DNA059","Selon les besoins","PAB10","1 pack de 5 compact disc rom (Compact disc rom informatique et vidéo)","CAB91","dimanche 18 août 2024","DNA-59"]
[null,"Article dépense budgétaire","ADB","Dépenses non alimentaires","DNA","Compact disc rom vidéo","DNA060","Selon les besoins","PAB10","1 pack de 5 compact disc rom (Compact disc rom informatique et vidéo)","CAB91","dimanche 18 août 2024","DNA-60"]
[null,"Article dépense budgétaire","ADB","Dépenses non alimentaires","DNA","Congélateur","DNA061","Selon les besoins","PAB10","Unité : sans conditionnement","CAB144","dimanche 18 août 2024","DNA-61"]
[null,"Article dépense budgétaire","ADB","Dépenses non alimentaires","DNA","Corrector liquide","DNA062","Selon les besoins","PAB10","1 flacon de 20 millilitres (Corrector liquide)","CAB45","dimanche 18 août 2024","DNA-62"]
[null,"Article dépense budgétaire","ADB","Dépenses non alimentaires","DNA","Couteau électrique","DNA063","Selon les besoins","PAB10","Unité : sans conditionnement","CAB144","dimanche 18 août 2024","DNA-63"]
[null,"Article dépense budgétaire","ADB","Dépenses non alimentaires","DNA","Couvercles casseroles","DNA064","Selon les besoins","PAB10","Unité : sans conditionnement","CAB144","dimanche 18 août 2024","DNA-64"]
[null,"Article dépense budgétaire","ADB","Dépenses non alimentaires","DNA","Crayons à papier","DNA065","Selon les besoins","PAB10","Unité : sans conditionnement","CAB144","dimanche 18 août 2024","DNA-65"]
[null,"Article dépense budgétaire","ADB","Dépenses non alimentaires","DNA","Crochets tringles","DNA066","Selon les besoins","PAB10","1 pack de 2 crochets (Crochets tringles)","CAB70","dimanche 18 août 2024","DNA-66"]
[null,"Article dépense budgétaire","ADB","Dépenses non alimentaires","DNA","Cuisinière","DNA067","Selon les besoins","PAB10","Unité : sans conditionnement","CAB144","dimanche 18 août 2024","DNA-67"]
[null,"Article dépense budgétaire","ADB","Dépenses non alimentaires","DNA","Cure-dents","DNA068","Selon les besoins","PAB10","1 pack de 100 cure-dents","CAB64","dimanche 18 août 2024","DNA-68"]
[null,"Article dépense budgétaire","ADB","Dépenses non alimentaires","DNA","Dateur","DNA069","Selon les besoins","PAB10","Unité : sans conditionnement","CAB144","dimanche 18 août 2024","DNA-69"]
[null,"Article dépense budgétaire","ADB","Dépenses non alimentaires","DNA","Décap'four","DNA070","Selon les besoins","PAB10","1 flacon de 500 millilitres (Décap'four)","CAB53","dimanche 18 août 2024","DNA-70"]
[null,"Article dépense budgétaire","ADB","Dépenses non alimentaires","DNA","Dentifrice","DNA071","Bimestrielle","PAB03","1 tube de 75 millilitres (Cirage liquide incolore applicateur, Dentifrice)","CAB123","dimanche 18 août 2024","DNA-71"]
[null,"Article dépense budgétaire","ADB","Dépenses non alimentaires","DNA","Déodorant corporel","DNA072","Bimestrielle","PAB03","1 flacon de 100 millitres (Déodorant corporel : en plus ou en moins, Eau de toilette)","CAB42","dimanche 18 août 2024","DNA-72"]
[null,"Article dépense budgétaire","ADB","Dépenses non alimentaires","DNA","Déodorant maison","DNA073","Selon les besoins","PAB10","Unité : sans conditionnement","CAB144","dimanche 18 août 2024","DNA-73"]
[null,"Article dépense budgétaire","ADB","Dépenses non alimentaires","DNA","Dessous de plats","DNA074","Selon les besoins","PAB10","Unité : sans conditionnement","CAB144","dimanche 18 août 2024","DNA-74"]
[null,"Article dépense budgétaire","ADB","Dépenses non alimentaires","DNA","Destop","DNA075","Selon les besoins","PAB10","1 flacon de 750 millilitres (Destop, Détartrant water-closets)","CAB56","dimanche 18 août 2024","DNA-75"]
[null,"Article dépense budgétaire","ADB","Dépenses non alimentaires","DNA","Détartrant water-closets","DNA076","Selon les besoins","PAB10","1 flacon de 750 millilitres (Destop, Détartrant water-closets)","CAB56","dimanche 18 août 2024","DNA-76"]
[null,"Article dépense budgétaire","ADB","Dépenses non alimentaires","DNA","Dévidoirs scotch","DNA077","Selon les besoins","PAB10","Unité : sans conditionnement","CAB144","dimanche 18 août 2024","DNA-77"]
[null,"Article dépense budgétaire","ADB","Dépenses non alimentaires","DNA","Eau de Javel","DNA078","Trimestrielle","PAB15","1 pack de 3 berlingots ou 1 flacon en gel de 750 millilitres (Eau de Javel)","CAB77","dimanche 18 août 2024","DNA-78"]
[null,"Article dépense budgétaire","ADB","Dépenses non alimentaires","DNA","Eau de toilette","DNA079","Bimestrielle","PAB03","1 flacon de 100 millitres (Déodorant corporel : en plus ou en moins, Eau de toilette)","CAB42","dimanche 18 août 2024","DNA-79"]
[null,"Article dépense budgétaire","ADB","Dépenses non alimentaires","DNA","Élastiques","DNA080","Selon les besoins","PAB10","1 boîte de 100 grammes (Élastiques)","CAB06","dimanche 18 août 2024","DNA-80"]
[null,"Article dépense budgétaire","ADB","Dépenses non alimentaires","DNA","Enrouleuses à cigarettes","DNA081","Selon les besoins","PAB10","Unité : sans conditionnement","CAB144","dimanche 18 août 2024","DNA-81"]
[null,"Article dépense budgétaire","ADB","Dépenses non alimentaires","DNA","Enveloppes pré-timbrées ou enveloppes non pré-timbrées","DNA082","Selon les besoins","PAB10","1 pack de 10 enveloppes déjà timbrées ou de 100 enveloppes non timbrées","CAB62","dimanche 18 août 2024","DNA-82"]
[null,"Article dépense budgétaire","ADB","Dépenses non alimentaires","DNA","Envois recommandés avec accusé de réception","DNA083","Mensuelle","PAB09","Unité : sans conditionnement","CAB144","dimanche 18 août 2024","DNA-83"]
[null,"Article dépense budgétaire","ADB","Dépenses non alimentaires","DNA","Éphéméride","DNA084","Annuelle","PAB01","Unité : sans conditionnement","CAB144","dimanche 18 août 2024","DNA-84"]
[null,"Article dépense budgétaire","ADB","Dépenses non alimentaires","DNA","Épingles à linge","DNA085","Selon les besoins","PAB10","Unité : sans conditionnement","CAB144","dimanche 18 août 2024","DNA-85"]
[null,"Article dépense budgétaire","ADB","Dépenses non alimentaires","DNA","Éponges pour la table","DNA086","Annuelle","PAB01","1 pack de 2 éponges","CAB71","dimanche 18 août 2024","DNA-86"]
[null,"Article dépense budgétaire","ADB","Dépenses non alimentaires","DNA","Éponges pour le ménage","DNA087","Annuelle","PAB01","1 pack de 2 éponges","CAB71","dimanche 18 août 2024","DNA-87"]
[null,"Article dépense budgétaire","ADB","Dépenses non alimentaires","DNA","Essence pour briquets Zippo","DNA088","Selon les besoins","PAB10","1 flacon de 125 millilitres (Essence briquets Zippo)","CAB43","dimanche 18 août 2024","DNA-88"]
[null,"Article dépense budgétaire","ADB","Dépenses non alimentaires","DNA","Essoreuse à salade","DNA089","Selon les besoins","PAB10","Unité : sans conditionnement","CAB144","dimanche 18 août 2024","DNA-89"]
[null,"Article dépense budgétaire","ADB","Dépenses non alimentaires","DNA","Étendoirs à linge (mural et sur pied)","DNA090","Selon les besoins","PAB10","Unité : sans conditionnement","CAB144","dimanche 18 août 2024","DNA-90"]
[null,"Article dépense budgétaire","ADB","Dépenses non alimentaires","DNA","Étiquettes","DNA091","Selon les besoins","PAB10","1 pack de 36 étiquettes scolaires","CAB83","dimanche 18 août 2024","DNA-91"]
[null,"Article dépense budgétaire","ADB","Dépenses non alimentaires","DNA","Étrennes des éboueurs","DNA092","Annuelle","PAB01","Unité : sans conditionnement","CAB144","dimanche 18 août 2024","DNA-92"]
[null,"Article dépense budgétaire","ADB","Dépenses non alimentaires","DNA","Étrennes des pompiers","DNA093","Annuelle","PAB01","Unité : sans conditionnement","CAB144","dimanche 18 août 2024","DNA-93"]
[null,"Article dépense budgétaire","ADB","Dépenses non alimentaires","DNA","Étrennes du facteur","DNA094","Annuelle","PAB01","Unité : sans conditionnement","CAB144","dimanche 18 août 2024","DNA-94"]
[null,"Article dépense budgétaire","ADB","Dépenses non alimentaires","DNA","Étrennes du gardien","DNA095","Annuelle","PAB01","Unité : sans conditionnement","CAB144","dimanche 18 août 2024","DNA-95"]
[null,"Article dépense budgétaire","ADB","Dépenses non alimentaires","DNA","Étuis à cigarettes","DNA096","Selon les besoins","PAB10","Unité : sans conditionnement","CAB144","dimanche 18 août 2024","DNA-96"]
[null,"Article dépense budgétaire","ADB","Dépenses non alimentaires","DNA","Fer électrique à repasser","DNA097","Selon les besoins","PAB10","Unité : sans conditionnement","CAB144","dimanche 18 août 2024","DNA-97"]
[null,"Article dépense budgétaire","ADB","Dépenses non alimentaires","DNA","Feuilles à cigarettes","DNA098","Mensuelle","PAB09","1 boîte de 5 ou 10 carnets à 100 feuilles pour chaque carnet (Feuilles à cigarettes)","CAB15","dimanche 18 août 2024","DNA-98"]
[null,"Article dépense budgétaire","ADB","Dépenses non alimentaires","DNA","Four à micro-ondes","DNA099","Selon les besoins","PAB10","Unité : sans conditionnement","CAB144","dimanche 18 août 2024","DNA-99"]
[null,"Article dépense budgétaire","ADB","Dépenses non alimentaires","DNA","Frais d'essence","DNA100","Selon les besoins","PAB10","Unité : sans conditionnement","CAB144","dimanche 18 août 2024","DNA-100"]
[null,"Article dépense budgétaire","ADB","Dépenses non alimentaires","DNA","Friteuse à gaz","DNA101","Selon les besoins","PAB10","Unité : sans conditionnement","CAB144","dimanche 18 août 2024","DNA-101"]
[null,"Article dépense budgétaire","ADB","Dépenses non alimentaires","DNA","Friteuse électrique","DNA102","Selon les besoins","PAB10","Unité : sans conditionnement","CAB144","dimanche 18 août 2024","DNA-102"]
[null,"Article dépense budgétaire","ADB","Dépenses non alimentaires","DNA","Gaz pour allume-gaz","DNA103","Mensuelle","PAB09","1 flacon de 300 millilitres (Gaz pour allume-gaz, O'CÉDAR)","CAB51","dimanche 18 août 2024","DNA-103"]
[null,"Article dépense budgétaire","ADB","Dépenses non alimentaires","DNA","Gommes à effacer","DNA104","Selon les besoins","PAB10","Unité : sans conditionnement","CAB144","dimanche 18 août 2024","DNA-104"]
[null,"Article dépense budgétaire","ADB","Dépenses non alimentaires","DNA","Graveur compact disc informatique","DNA105","Selon les besoins","PAB10","Unité : sans conditionnement","CAB144","dimanche 18 août 2024","DNA-105"]
[null,"Article dépense budgétaire","ADB","Dépenses non alimentaires","DNA","Graveur compact disc vidéo","DNA106","Selon les besoins","PAB10","Unité : sans conditionnement","CAB144","dimanche 18 août 2024","DNA-106"]
[null,"Article dépense budgétaire","ADB","Dépenses non alimentaires","DNA","Imprimantes","DNA107","Selon les besoins","PAB10","Unité : sans conditionnement","CAB144","dimanche 18 août 2024","DNA-107"]
[null,"Article dépense budgétaire","ADB","Dépenses non alimentaires","DNA","Insecticide","DNA108","Trimestrielle","PAB15","1 flacon de 400 millilitres (Insecticide, Pétrole Hahn, Shampooing)","CAB52","dimanche 18 août 2024","DNA-108"]
[null,"Article dépense budgétaire","ADB","Dépenses non alimentaires","DNA","Lacets","DNA109","Selon les besoins","PAB10","1 pack de 2 paires (Lacets)","CAB73","dimanche 18 août 2024","DNA-109"]
[null,"Article dépense budgétaire","ADB","Dépenses non alimentaires","DNA","Lames rasoir électrique","DNA110","Selon les besoins","PAB10","Unité : sans conditionnement","CAB144","dimanche 18 août 2024","DNA-110"]
[null,"Article dépense budgétaire","ADB","Dépenses non alimentaires","DNA","Lampadaires","DNA111","Selon les besoins","PAB10","Unité : sans conditionnement","CAB144","dimanche 18 août 2024","DNA-111"]
[null,"Article dépense budgétaire","ADB","Dépenses non alimentaires","DNA","Lampe torche","DNA112","Selon les besoins","PAB10","Unité : sans conditionnement","CAB144","dimanche 18 août 2024","DNA-112"]
[null,"Article dépense budgétaire","ADB","Dépenses non alimentaires","DNA","Lavage des draps","DNA113","Bimestrielle","PAB03","Pour 2 draps","CAB132","dimanche 18 août 2024","DNA-113"]
[null,"Article dépense budgétaire","ADB","Dépenses non alimentaires","DNA","Lessive pour le linge","DNA114","Annuelle","PAB01","1 flacon Xéor de 2500 millilitres (Lessive pour le linge)","CAB58","dimanche 18 août 2024","DNA-114"]
[null,"Article dépense budgétaire","ADB","Dépenses non alimentaires","DNA","Linge de lit (y compris pyjamas)","DNA115","Selon les besoins","PAB10","Unité : sans conditionnement","CAB144","dimanche 18 août 2024","DNA-115"]
[null,"Article dépense budgétaire","ADB","Dépenses non alimentaires","DNA","Linge de table","DNA116","Selon les besoins","PAB10","Unité : sans conditionnement","CAB144","dimanche 18 août 2024","DNA-116"]
[null,"Article dépense budgétaire","ADB","Dépenses non alimentaires","DNA","Linge de toilette","DNA117","Selon les besoins","PAB10","Unité : sans conditionnement","CAB144","dimanche 18 août 2024","DNA-117"]
[null,"Article dépense budgétaire","ADB","Dépenses non alimentaires","DNA","Linge de vaisselle","DNA118","Selon les besoins","PAB10","Unité : sans conditionnement","CAB144","dimanche 18 août 2024","DNA-118"]
[null,"Article dépense budgétaire","ADB","Dépenses non alimentaires","DNA","Linge pour les mains","DNA119","Selon les besoins","PAB10","Unité : sans conditionnement","CAB144","dimanche 18 août 2024","DNA-119"]
[null,"Article dépense budgétaire","ADB","Dépenses non alimentaires","DNA","Liquide cigarette électronique NHOSS","DNA120","Selon les besoins","PAB10","1 bouteille de 10 millilitres (Cigarettes électroniques NHOSS)","CAB27","dimanche 18 août 2024","DNA-120"]
[null,"Article dépense budgétaire","ADB","Dépenses non alimentaires","DNA","Livres bibliophiles","DNA121","Selon les besoins","PAB10","Unité : sans conditionnement","CAB144","dimanche 18 août 2024","DNA-121"]
[null,"Article dépense budgétaire","ADB","Dépenses non alimentaires","DNA","Livres informatiques","DNA122","Trimestrielle","PAB15","Unité : sans conditionnement","CAB144","dimanche 18 août 2024","DNA-122"]
[null,"Article dépense budgétaire","ADB","Dépenses non alimentaires","DNA","Logiciels informatiques","DNA123","Selon les besoins","PAB10","Unité : sans conditionnement","CAB144","dimanche 18 août 2024","DNA-123"]
[null,"Article dépense budgétaire","ADB","Dépenses non alimentaires","DNA","Loisirs","DNA124","Selon les besoins","PAB10","Unité : sans conditionnement","CAB144","dimanche 18 août 2024","DNA-124"]
[null,"Article dépense budgétaire","ADB","Dépenses non alimentaires","DNA","Loqueteaux","DNA125","Selon les besoins","PAB10","1 pack de 2 loqueteaux","CAB72","dimanche 18 août 2024","DNA-125"]
[null,"Article dépense budgétaire","ADB","Dépenses non alimentaires","DNA","Machine à laver","DNA126","Selon les besoins","PAB10","Unité : sans conditionnement","CAB144","dimanche 18 août 2024","DNA-126"]
[null,"Article dépense budgétaire","ADB","Dépenses non alimentaires","DNA","Magnétoscope","DNA127","Selon les besoins","PAB10","Unité : sans conditionnement","CAB144","dimanche 18 août 2024","DNA-127"]
[null,"Article dépense budgétaire","ADB","Dépenses non alimentaires","DNA","Matériel à couture","DNA128","Selon les besoins","PAB10","Unité : sans conditionnement","CAB144","dimanche 18 août 2024","DNA-128"]
[null,"Article dépense budgétaire","ADB","Dépenses non alimentaires","DNA","Matériel de cuisine","DNA129","Selon les besoins","PAB10","Unité : sans conditionnement","CAB144","dimanche 18 août 2024","DNA-129"]
[null,"Article dépense budgétaire","ADB","Dépenses non alimentaires","DNA","Matériel informatique","DNA130","Selon les besoins","PAB10","Unité : sans conditionnement","CAB144","dimanche 18 août 2024","DNA-130"]
[null,"Article dépense budgétaire","ADB","Dépenses non alimentaires","DNA","Minuteurs","DNA131","Selon les besoins","PAB10","Unité : sans conditionnement","CAB144","dimanche 18 août 2024","DNA-131"]
[null,"Article dépense budgétaire","ADB","Dépenses non alimentaires","DNA","Nappes de tables","DNA132","Selon les besoins","PAB10","Unité : sans conditionnement","CAB144","dimanche 18 août 2024","DNA-132"]
[null,"Article dépense budgétaire","ADB","Dépenses non alimentaires","DNA","Nettoyage des vêtements","DNA133","Bimestrielle","PAB03","Unité : sans conditionnement","CAB144","dimanche 18 août 2024","DNA-133"]
[null,"Article dépense budgétaire","ADB","Dépenses non alimentaires","DNA","Numéroteur","DNA134","Selon les besoins","PAB10","1 printy 4846 trodat (Numéroteur. Office Dépôt)","CAB109","dimanche 18 août 2024","DNA-134"]
[null,"Article dépense budgétaire","ADB","Dépenses non alimentaires","DNA","O'CÉDAR","DNA135","Selon les besoins","PAB10","1 flacon de 300 millilitres (Gaz pour allume-gaz, O'CÉDAR)","CAB51","dimanche 18 août 2024","DNA-135"]
[null,"Article dépense budgétaire","ADB","Dépenses non alimentaires","DNA","Ordinateurs de bureau","DNA136","Selon les besoins","PAB10","Unité : sans conditionnement","CAB144","dimanche 18 août 2024","DNA-136"]
[null,"Article dépense budgétaire","ADB","Dépenses non alimentaires","DNA","Ordinateurs portables","DNA137","Selon les besoins","PAB10","Unité : sans conditionnement","CAB144","dimanche 18 août 2024","DNA-137"]
[null,"Article dépense budgétaire","ADB","Dépenses non alimentaires","DNA","Ouvre-boîtes électrique","DNA138","Selon les besoins","PAB10","Unité : sans conditionnement","CAB144","dimanche 18 août 2024","DNA-138"]
[null,"Article dépense budgétaire","ADB","Dépenses non alimentaires","DNA","Papier à lettres","DNA139","Selon les besoins","PAB10","1 bloc de 100 feuilles (Papier à lettres)","CAB03","dimanche 18 août 2024","DNA-139"]
[null,"Article dépense budgétaire","ADB","Dépenses non alimentaires","DNA","Papier aluminium","DNA140","Semestrielle","PAB12","1 boîte de 30 mètres x 29 cm (Papier aluminium)","CAB14","dimanche 18 août 2024","DNA-140"]
[null,"Article dépense budgétaire","ADB","Dépenses non alimentaires","DNA","Papier blanc imprimantes","DNA141","Trimestrielle","PAB15","1 ramette de 500 feuilles (Papier blanc imprimantes)","CAB111","dimanche 18 août 2024","DNA-141"]
[null,"Article dépense budgétaire","ADB","Dépenses non alimentaires","DNA","Papier couleur imprimantes","DNA142","Trimestrielle","PAB15","1 ramette de 200 feuilles (Papier couleur imprimantes)","CAB110","dimanche 18 août 2024","DNA-142"]
[null,"Article dépense budgétaire","ADB","Dépenses non alimentaires","DNA","Papier hygiénique","DNA143","Annuelle","PAB01","1 pack de 8 paquets (Papier hygiénique, en plus ou en moins)","CAB93","dimanche 18 août 2024","DNA-143"]
[null,"Article dépense budgétaire","ADB","Dépenses non alimentaires","DNA","Parapluies","DNA144","Selon les besoins","PAB10","Unité : sans conditionnement","CAB144","dimanche 18 août 2024","DNA-144"]
[null,"Article dépense budgétaire","ADB","Dépenses non alimentaires","DNA","Parti communiste français","DNA145","Mensuelle","PAB09","1 timbre (Parti communiste français, Syndicat C.G.T.)","CAB119","dimanche 18 août 2024","DNA-145"]
[null,"Article dépense budgétaire","ADB","Dépenses non alimentaires","DNA","Pelles","DNA146","Selon les besoins","PAB10","Unité : sans conditionnement","CAB144","dimanche 18 août 2024","DNA-146"]
[null,"Article dépense budgétaire","ADB","Dépenses non alimentaires","DNA","Pétrole Hahn","DNA147","Semestrielle","PAB12","1 flacon de 400 millilitres (Insecticide, Pétrole Hahn, Shampooing)","CAB52","dimanche 18 août 2024","DNA-147"]
[null,"Article dépense budgétaire","ADB","Dépenses non alimentaires","DNA","Pierres à briquets Zippo","DNA148","Selon les besoins","PAB10","1 flacon de 6 pierres (Pierres à briquets Zippo)","CAB54","dimanche 18 août 2024","DNA-148"]
[null,"Article dépense budgétaire","ADB","Dépenses non alimentaires","DNA","Piles AA","DNA149","Selon les besoins","PAB10","1 pack de 2, 4, 8 piles (Piles AA. En plus ou en moins : Calculette, Lampe torche, Pendules, Télévision JVC, Transistors)","CAB75","dimanche 18 août 2024","DNA-149"]
[null,"Article dépense budgétaire","ADB","Dépenses non alimentaires","DNA","Piles AAA","DNA150","Selon les besoins","PAB10","1 pack de 2, 4, 8 piles (Piles AAA. En plus ou en moins : Claviers, Minuteurs)","CAB76","dimanche 18 août 2024","DNA-150"]
[null,"Article dépense budgétaire","ADB","Dépenses non alimentaires","DNA","Piles spéciales","DNA151","Selon les besoins","PAB10","Unité : spéciales (piles montre et décodeur orange)","CAB145","dimanche 18 août 2024","DNA-151"]
[null,"Article dépense budgétaire","ADB","Dépenses non alimentaires","DNA","Piles transistor Crown","DNA152","Selon les besoins","PAB10","1 pack de 4, 8 piles (Piles transistor Crown. En plus ou en moins. Piles LR14/C )","CAB89","dimanche 18 août 2024","DNA-152"]
[null,"Article dépense budgétaire","ADB","Dépenses non alimentaires","DNA","POD avec liquide cigarettes électroniques (ePen3 et Blu)","DNA153","Selon les besoins","PAB10","1 boîte de 2 capsules (Cigarettes électroniques Blu et Vype ePen 3)","CAB12","dimanche 18 août 2024","DNA-153"]
[null,"Article dépense budgétaire","ADB","Dépenses non alimentaires","DNA","POD sans liquide cigarettes électroniques (NHOSS, Innokin)","DNA154","Selon les besoins","PAB10","1 boîte de 3 pods (Cigarettes électroniques NHOSS, Innokin)","CAB13","dimanche 18 août 2024","DNA-154"]
[null,"Article dépense budgétaire","ADB","Dépenses non alimentaires","DNA","Pourboires","DNA155","Mensuelle","PAB09","Unité : sans conditionnement","CAB144","dimanche 18 août 2024","DNA-155"]
[null,"Article dépense budgétaire","ADB","Dépenses non alimentaires","DNA","Poussettes","DNA156","Selon les besoins","PAB10","Unité : sans conditionnement","CAB144","dimanche 18 août 2024","DNA-156"]
[null,"Article dépense budgétaire","ADB","Dépenses non alimentaires","DNA","Produit liquide plancher","DNA157","Semestrielle","PAB12","1 flacon de 150 centilitres (Produit liquide plancher, Produit liquide vaisselle)","CAB44","dimanche 18 août 2024","DNA-157"]
[null,"Article dépense budgétaire","ADB","Dépenses non alimentaires","DNA","Produit liquide vaisselle","DNA158","Semestrielle","PAB12","1 flacon de 150 centilitres (Produit liquide plancher, Produit liquide vaisselle)","CAB44","dimanche 18 août 2024","DNA-158"]
[null,"Article dépense budgétaire","ADB","Dépenses non alimentaires","DNA","Produit liquide vitres","DNA159","Semestrielle","PAB12","Unité : sans conditionnement","CAB144","dimanche 18 août 2024","DNA-159"]
[null,"Article dépense budgétaire","ADB","Dépenses non alimentaires","DNA","Programme de télévision","DNA160","Hebdomadaire","PAB07","Unité : sans conditionnement","CAB144","dimanche 18 août 2024","DNA-160"]
[null,"Article dépense budgétaire","ADB","Dépenses non alimentaires","DNA","Radiateur électrique","DNA161","Selon les besoins","PAB10","Unité : sans conditionnement","CAB144","dimanche 18 août 2024","DNA-161"]
[null,"Article dépense budgétaire","ADB","Dépenses non alimentaires","DNA","Rasoir électrique","DNA162","Selon les besoins","PAB10","Unité : sans conditionnement","CAB144","dimanche 18 août 2024","DNA-162"]
[null,"Article dépense budgétaire","ADB","Dépenses non alimentaires","DNA","Recharge bloc éphéméride","DNA163","Annuelle","PAB01","Unité : sans conditionnement","CAB144","dimanche 18 août 2024","DNA-163"]
[null,"Article dépense budgétaire","ADB","Dépenses non alimentaires","DNA","Recharge cure-dents","DNA164","Selon les besoins","PAB10","1 pack de 100 cure-dents","CAB64","dimanche 18 août 2024","DNA-164"]
[null,"Article dépense budgétaire","ADB","Dépenses non alimentaires","DNA","Réfrigérateur","DNA165","Selon les besoins","PAB10","Unité : sans conditionnement","CAB144","dimanche 18 août 2024","DNA-165"]
[null,"Article dépense budgétaire","ADB","Dépenses non alimentaires","DNA","Remboursement argent emprunté","DNA166","Mensuelle","PAB09","Unité : sans conditionnement","CAB144","dimanche 18 août 2024","DNA-166"]
[null,"Article dépense budgétaire","ADB","Dépenses non alimentaires","DNA","Réparations","DNA167","Mensuelle","PAB09","Unité : sans conditionnement","CAB144","dimanche 18 août 2024","DNA-167"]
[null,"Article dépense budgétaire","ADB","Dépenses non alimentaires","DNA","Restaurant","DNA168","Selon les besoins","PAB10","Unité : sans conditionnement","CAB144","dimanche 18 août 2024","DNA-168"]
[null,"Article dépense budgétaire","ADB","Dépenses non alimentaires","DNA","Réveils","DNA169","Selon les besoins","PAB10","Unité : sans conditionnement","CAB144","dimanche 18 août 2024","DNA-169"]
[null,"Article dépense budgétaire","ADB","Dépenses non alimentaires","DNA","Sacs à poubelle","DNA170","Selon les besoins","PAB10","1 pack de 100 sacs (Sacs poubelle)","CAB65","dimanche 18 août 2024","DNA-170"]
[null,"Article dépense budgétaire","ADB","Dépenses non alimentaires","DNA","Savon noir","DNA171","Selon les besoins","PAB10","1 bouteille de 100 centilitres (Savon noir, Vinaigre anticalcaire)","CAB29","dimanche 18 août 2024","DNA-171"]
[null,"Article dépense budgétaire","ADB","Dépenses non alimentaires","DNA","Savonnette figure","DNA172","Annuelle","PAB01","1 pack de 4 savonnettes de 100 grammes chacune (Figure, en plus ou en moins, Manava Leclerc)","CAB86","dimanche 18 août 2024","DNA-172"]
[null,"Article dépense budgétaire","ADB","Dépenses non alimentaires","DNA","Savons","DNA173","Selon les besoins","PAB10","1 pack de 4 savons de 200 grammes chacun (Cuisine, salle de bains (Bas et Linge), en plus ou en moins)","CAB87","dimanche 18 août 2024","DNA-173"]
[null,"Article dépense budgétaire","ADB","Dépenses non alimentaires","DNA","Scotch","DNA174","Selon les besoins","PAB10","Unité : sans conditionnement","CAB144","dimanche 18 août 2024","DNA-174"]
[null,"Article dépense budgétaire","ADB","Dépenses non alimentaires","DNA","Scotch Brite","DNA175","Selon les besoins","PAB10","1 pack de 3 scotch brite (Cuisine (ménage et vaisselle), Salle de bains et water-closets (ménage); en plus ou en moins)","CAB81","dimanche 18 août 2024","DNA-175"]
[null,"Article dépense budgétaire","ADB","Dépenses non alimentaires","DNA","Serpillières","DNA176","Selon les besoins","PAB10","Unité : sans conditionnement","CAB144","dimanche 18 août 2024","DNA-176"]
[null,"Article dépense budgétaire","ADB","Dépenses non alimentaires","DNA","Shampooing","DNA177","Semestrielle","PAB12","1 flacon de 400 millilitres (Insecticide, Pétrole Hahn, Shampooing)","CAB52","dimanche 18 août 2024","DNA-177"]
[null,"Article dépense budgétaire","ADB","Dépenses non alimentaires","DNA","Souris ordinateurs de bureau","DNA178","Selon les besoins","PAB10","Unité : sans conditionnement","CAB144","dimanche 18 août 2024","DNA-178"]
[null,"Article dépense budgétaire","ADB","Dépenses non alimentaires","DNA","Souris ordinateurs portables","DNA179","Selon les besoins","PAB10","Unité : sans conditionnement","CAB144","dimanche 18 août 2024","DNA-179"]
[null,"Article dépense budgétaire","ADB","Dépenses non alimentaires","DNA","Stylos à bille","DNA180","Selon les besoins","PAB10","1 pack de 4 stylos à bille (encre bleue, noire, rouge et verte; en plus ou en moins)","CAB88","dimanche 18 août 2024","DNA-180"]
[null,"Article dépense budgétaire","ADB","Dépenses non alimentaires","DNA","Stylos-plume","DNA181","Selon les besoins","PAB10","Unité : sans conditionnement","CAB144","dimanche 18 août 2024","DNA-181"]
[null,"Article dépense budgétaire","ADB","Dépenses non alimentaires","DNA","Syndicat C.G.T.","DNA182","Mensuelle","PAB09","1 timbre (Parti communiste français, Syndicat C.G.T.)","CAB119","dimanche 18 août 2024","DNA-182"]
[null,"Article dépense budgétaire","ADB","Dépenses non alimentaires","DNA","Tabac pour les cigarettes","DNA183","Mensuelle","PAB09","1 cartouche de 10 paquets (maximum mensuel; tabac pour les cigarettes)","CAB37","dimanche 18 août 2024","DNA-183"]
[null,"Article dépense budgétaire","ADB","Dépenses non alimentaires","DNA","Tapis pour souris ordinateurs","DNA184","Selon les besoins","PAB10","Unité : sans conditionnement","CAB144","dimanche 18 août 2024","DNA-184"]
[null,"Article dépense budgétaire","ADB","Dépenses non alimentaires","DNA","Taxi","DNA185","Selon les besoins","PAB10","Unité : sans conditionnement","CAB144","dimanche 18 août 2024","DNA-185"]
[null,"Article dépense budgétaire","ADB","Dépenses non alimentaires","DNA","Télécommandes","DNA186","Selon les besoins","PAB10","Unité : sans conditionnement","CAB144","dimanche 18 août 2024","DNA-186"]
[null,"Article dépense budgétaire","ADB","Dépenses non alimentaires","DNA","Téléphone fixe","DNA187","Selon les besoins","PAB10","Unité : sans conditionnement","CAB144","dimanche 18 août 2024","DNA-187"]
[null,"Article dépense budgétaire","ADB","Dépenses non alimentaires","DNA","Téléphone portable","DNA188","Selon les besoins","PAB10","Unité : sans conditionnement","CAB144","dimanche 18 août 2024","DNA-188"]
[null,"Article dépense budgétaire","ADB","Dépenses non alimentaires","DNA","Télévision","DNA189","Selon les besoins","PAB10","Unité : sans conditionnement","CAB144","dimanche 18 août 2024","DNA-189"]
[null,"Article dépense budgétaire","ADB","Dépenses non alimentaires","DNA","Théâtre","DNA190","Selon les besoins","PAB10","Unité : sans conditionnement","CAB144","dimanche 18 août 2024","DNA-190"]
[null,"Article dépense budgétaire","ADB","Dépenses non alimentaires","DNA","Tickets de bus","DNA191","Selon les besoins","PAB10","1 carnet de 10 tickets : en plus ou en moins (Tickets de bus, de métro, de RER, tous transports, timbres poste)","CAB36","dimanche 18 août 2024","DNA-191"]
[null,"Article dépense budgétaire","ADB","Dépenses non alimentaires","DNA","Tickets de métro","DNA192","Selon les besoins","PAB10","1 carnet de 10 tickets : en plus ou en moins (Tickets de bus, de métro, de RER, tous transports, timbres poste)","CAB36","dimanche 18 août 2024","DNA-192"]
[null,"Article dépense budgétaire","ADB","Dépenses non alimentaires","DNA","Tickets de RER","DNA193","Selon les besoins","PAB10","1 carnet de 10 tickets : en plus ou en moins (Tickets de bus, de métro, de RER, tous transports, timbres poste)","CAB36","dimanche 18 août 2024","DNA-193"]
[null,"Article dépense budgétaire","ADB","Dépenses non alimentaires","DNA","Tickets tous transports","DNA194","Selon les besoins","PAB10","1 carnet de 10 tickets : en plus ou en moins (Tickets de bus, de métro, de RER, tous transports, timbres poste)","CAB36","dimanche 18 août 2024","DNA-194"]
[null,"Article dépense budgétaire","ADB","Dépenses non alimentaires","DNA","Timbres poste","DNA195","Selon les besoins","PAB10","1 carnet de 10 tickets : en plus ou en moins (Tickets de bus, de métro, de RER, tous transports, timbres poste)","CAB36","dimanche 18 août 2024","DNA-195"]
[null,"Article dépense budgétaire","ADB","Dépenses non alimentaires","DNA","Toners imprimantes","DNA196","Selon les besoins","PAB10","Unité : sans conditionnement","CAB144","dimanche 18 août 2024","DNA-196"]
[null,"Article dépense budgétaire","ADB","Dépenses non alimentaires","DNA","Transistor noir chambre Kiki Crown","DNA197","Selon les besoins","PAB10","Unité : sans conditionnement","CAB144","dimanche 18 août 2024","DNA-197"]
[null,"Article dépense budgétaire","ADB","Dépenses non alimentaires","DNA","Transistors","DNA198","Selon les besoins","PAB10","Unité : sans conditionnement","CAB144","dimanche 18 août 2024","DNA-198"]
[null,"Article dépense budgétaire","ADB","Dépenses non alimentaires","DNA","Trombones","DNA199","Selon les besoins","PAB10","1 boîte de 100 de 30 mm ou de 32 mm (Trombones)","CAB05","dimanche 18 août 2024","DNA-199"]
[null,"Article dépense budgétaire","ADB","Dépenses non alimentaires","DNA","Tuyau gaz cuisinière","DNA200","Selon les besoins","PAB10","Unité : sans conditionnement","CAB144","dimanche 18 août 2024","DNA-200"]
[null,"Article dépense budgétaire","ADB","Dépenses non alimentaires","DNA","Vaisselle (Sauf casseroles et couvercles casseroles)","DNA201","Selon les besoins","PAB10","Unité : sans conditionnement","CAB144","dimanche 18 août 2024","DNA-201"]
[null,"Article dépense budgétaire","ADB","Dépenses non alimentaires","DNA","Vernis à ongles","DNA202","Semestrielle","PAB12","1 flacon de 10 millilitres (Vernis à ongles)","CAB40","dimanche 18 août 2024","DNA-202"]
[null,"Article dépense budgétaire","ADB","Dépenses non alimentaires","DNA","Vêtements et sous-vêtements (sauf Blouses)","DNA203","Selon les besoins","PAB10","Unité : sans conditionnement","CAB144","dimanche 18 août 2024","DNA-203"]
[null,"Article dépense budgétaire","ADB","Dépenses non alimentaires","DNA","Vinaigre anticalcaire","DNA204","Semestrielle","PAB12","1 bouteille de 100 centilitres (Savon noir, Vinaigre anticalcaire)","CAB29","dimanche 18 août 2024","DNA-204"]
[null,"Article recette budgétaire","ARB","Recettes bancaires","RB","Argent emprunté","RB001","Mensuelle","PAB09","Unité : sans conditionnement","CAB144","dimanche 18 août 2024","RB-01"]
[null,"Article recette budgétaire","ARB","Recettes bancaires","RB","Autres recettes bancaires","RB002","Mensuelle","PAB09","Unité : sans conditionnement","CAB144","dimanche 18 août 2024","RB-02"]
[null,"Article recette budgétaire","ARB","Recettes bancaires","RB","Mutuelle","RB003","Mensuelle","PAB09","Unité : sans conditionnement","CAB144","dimanche 18 août 2024","RB-03"]
[null,"Article recette budgétaire","ARB","Recettes bancaires","RB","Pension caisse nationale d'assurance vieillesse (CNAV)","RB004","Mensuelle","PAB09","Unité : sans conditionnement","CAB144","dimanche 18 août 2024","RB-04"]
[null,"Article recette budgétaire","ARB","Recettes bancaires","RB","Pension caisse nationale des retraites des agents des collectivités locales (CNRACL)","RB005","Mensuelle","PAB09","Unité : sans conditionnement","CAB144","dimanche 18 août 2024","RB-05"]
[null,"Article recette budgétaire","ARB","Recettes bancaires","RB","Sécurité sociale","RB006","Mensuelle","PAB09","Unité : sans conditionnement","CAB144","dimanche 18 août 2024","RB-06"]
[null,"Article recette budgétaire","ARB","Recettes médicales","RM","Mutuelle analyses","RM001","Trimestrielle","PAB15","Unité : sans conditionnement","CAB144","dimanche 18 août 2024","RM-01"]
[null,"Article recette budgétaire","ARB","Recettes médicales","RM","Mutuelle autres recettes médicales","RM002","Mensuelle","PAB09","Unité : sans conditionnement","CAB144","dimanche 18 août 2024","RM-02"]
[null,"Article recette budgétaire","ARB","Recettes médicales","RM","Mutuelle dentiste","RM003","Annuelle","PAB01","Unité : sans conditionnement","CAB144","dimanche 18 août 2024","RM-03"]
[null,"Article recette budgétaire","ARB","Recettes médicales","RM","Mutuelle docteur dermatologue","RM004","Annuelle","PAB01","Unité : sans conditionnement","CAB144","dimanche 18 août 2024","RM-04"]
[null,"Article recette budgétaire","ARB","Recettes médicales","RM","Mutuelle docteur généraliste","RM005","Trimestrielle","PAB15","Unité : sans conditionnement","CAB144","dimanche 18 août 2024","RM-05"]
[null,"Article recette budgétaire","ARB","Recettes médicales","RM","Mutuelle docteur ophtalmologiste","RM006","Annuelle","PAB01","Unité : sans conditionnement","CAB144","dimanche 18 août 2024","RM-06"]
[null,"Article recette budgétaire","ARB","Recettes médicales","RM","Mutuelle forfait monture des lunettes","RM007","Annuelle","PAB01","Unité : sans conditionnement","CAB144","dimanche 18 août 2024","RM-07"]
[null,"Article recette budgétaire","ARB","Recettes médicales","RM","Mutuelle forfait verres des lunettes","RM008","Annuelle","PAB01","Unité : sans conditionnement","CAB144","dimanche 18 août 2024","RM-08"]
[null,"Article recette budgétaire","ARB","Recettes médicales","RM","Mutuelle monture des lunettes","RM009","Annuelle","PAB01","Unité : sans conditionnement","CAB144","dimanche 18 août 2024","RM-09"]
[null,"Article recette budgétaire","ARB","Recettes médicales","RM","Mutuelle pharmacie vignette blanche","RM010","Mensuelle","PAB09","Unité : sans conditionnement","CAB144","dimanche 18 août 2024","RM-10"]
[null,"Article recette budgétaire","ARB","Recettes médicales","RM","Mutuelle pharmacie vignette bleue","RM011","Mensuelle","PAB09","Unité : sans conditionnement","CAB144","dimanche 18 août 2024","RM-11"]
[null,"Article recette budgétaire","ARB","Recettes médicales","RM","Mutuelle pharmacie vignette orange","RM012","Mensuelle","PAB09","Unité : sans conditionnement","CAB144","dimanche 18 août 2024","RM-12"]
[null,"Article recette budgétaire","ARB","Recettes médicales","RM","Mutuelle prélèvements","RM013","Trimestrielle","PAB15","Unité : sans conditionnement","CAB144","dimanche 18 août 2024","RM-13"]
[null,"Article recette budgétaire","ARB","Recettes médicales","RM","Mutuelle radiographies","RM014","Annuelle","PAB01","Unité : sans conditionnement","CAB144","dimanche 18 août 2024","RM-14"]
[null,"Article recette budgétaire","ARB","Recettes médicales","RM","Mutuelle verres des lunettes","RM015","Annuelle","PAB01","Unité : sans conditionnement","CAB144","dimanche 18 août 2024","RM-15"]
[null,"Article recette budgétaire","ARB","Recettes médicales","RM","Sécurité sociale analyses","RM016","Trimestrielle","PAB15","Unité : sans conditionnement","CAB144","dimanche 18 août 2024","RM-16"]
[null,"Article recette budgétaire","ARB","Recettes médicales","RM","Sécurité sociale autres recettes médicales","RM017","Mensuelle","PAB09","Unité : sans conditionnement","CAB144","dimanche 18 août 2024","RM-17"]
[null,"Article recette budgétaire","ARB","Recettes médicales","RM","Sécurité sociale dentiste","RM018","Annuelle","PAB01","Unité : sans conditionnement","CAB144","dimanche 18 août 2024","RM-18"]
[null,"Article recette budgétaire","ARB","Recettes médicales","RM","Sécurité sociale docteur dermatologue","RM019","Annuelle","PAB01","Unité : sans conditionnement","CAB144","dimanche 18 août 2024","RM-19"]
[null,"Article recette budgétaire","ARB","Recettes médicales","RM","Sécurité sociale docteur généraliste","RM020","Trimestrielle","PAB15","Unité : sans conditionnement","CAB144","dimanche 18 août 2024","RM-20"]
[null,"Article recette budgétaire","ARB","Recettes médicales","RM","Sécurité sociale docteur ophtalmologiste","RM021","Annuelle","PAB01","Unité : sans conditionnement","CAB144","dimanche 18 août 2024","RM-21"]
[null,"Article recette budgétaire","ARB","Recettes médicales","RM","Sécurité sociale monture des lunettes","RM022","Annuelle","PAB01","Unité : sans conditionnement","CAB144","dimanche 18 août 2024","RM-22"]
[null,"Article recette budgétaire","ARB","Recettes médicales","RM","Sécurité sociale pharmacie vignette blanche","RM023","Mensuelle","PAB09","Unité : sans conditionnement","CAB144","dimanche 18 août 2024","RM-23"]
[null,"Article recette budgétaire","ARB","Recettes médicales","RM","Sécurité sociale pharmacie vignette bleue","RM024","Mensuelle","PAB09","Unité : sans conditionnement","CAB144","dimanche 18 août 2024","RM-24"]
[null,"Article recette budgétaire","ARB","Recettes médicales","RM","Sécurité sociale pharmacie vignette orange","RM025","Mensuelle","PAB09","Unité : sans conditionnement","CAB144","dimanche 18 août 2024","RM-25"]
[null,"Article recette budgétaire","ARB","Recettes médicales","RM","Sécurité sociale prélèvements","RM026","Trimestrielle","PAB15","Unité : sans conditionnement","CAB144","dimanche 18 août 2024","RM-26"]
[null,"Article recette budgétaire","ARB","Recettes médicales","RM","Sécurité sociale radiographies","RM027","Annuelle","PAB01","Unité : sans conditionnement","CAB144","dimanche 18 août 2024","RM-27"]
[null,"Article recette budgétaire","ARB","Recettes médicales","RM","Sécurité sociale verres des lunettes","RM028","Annuelle","PAB01","Unité : sans conditionnement","CAB144","dimanche 18 août 2024","RM-28"]
[null,"Article recette budgétaire","ARB","Recettes numéraires","RN","Argent emprunté","RN001","Mensuelle","PAB09","Unité : sans conditionnement","CAB144","dimanche 18 août 2024","RN-01"]
[null,"Article recette budgétaire","ARB","Recettes numéraires","RN","Argent trouvé","RN002","Mensuelle","PAB09","Unité : sans conditionnement","CAB144","dimanche 18 août 2024","RN-02"]
[null,"Article recette budgétaire","ARB","Recettes numéraires","RN","Autres recettes numéraires","RN003","Mensuelle","PAB09","Unité : sans conditionnement","CAB144","dimanche 18 août 2024","RN-03"]
[null,"Article recette budgétaire","ARB","Recettes numéraires","RN","Déconsignation bouteille liquide cigarette éectronique NHOSS","RN004","Mensuelle","PAB09","Unité : sans conditionnement","CAB144","dimanche 18 août 2024","RN-04"]
[null,"Article recette budgétaire","ARB","Recettes numéraires","RN","Fidélité Carrefour","RN005","Mensuelle","PAB09","Unité : sans conditionnement","CAB144","dimanche 18 août 2024","RN-05"]
[null,"Article recette budgétaire","ARB","Recettes numéraires","RN","Fidélité FNAC","RN006","Mensuelle","PAB09","Unité : sans conditionnement","CAB144","dimanche 18 août 2024","RN-06"]
[null,"Article recette budgétaire","ARB","Recettes numéraires","RN","Fidélité Géant casino","RN007","Mensuelle","PAB09","Unité : sans conditionnement","CAB144","dimanche 18 août 2024","RN-07"]
[null,"Article recette budgétaire","ARB","Recettes numéraires","RN","Fidélité GEMO","RN008","Mensuelle","PAB09","Unité : sans conditionnement","CAB144","dimanche 18 août 2024","RN-08"]
[null,"Article recette budgétaire","ARB","Recettes numéraires","RN","Fidélité InterMarché","RN009","Mensuelle","PAB09","Unité : sans conditionnement","CAB144","dimanche 18 août 2024","RN-09"]
[null,"Article recette budgétaire","ARB","Recettes numéraires","RN","Fidélité Leclerc","RN010","Mensuelle","PAB09","Unité : sans conditionnement","CAB144","dimanche 18 août 2024","RN-10"]
[null,"Article recette budgétaire","ARB","Recettes numéraires","RN","Remboursement argent prêté à des tiers","RN011","Mensuelle","PAB09","Unité : sans conditionnement","CAB144","dimanche 18 août 2024","RN-11"]
[null,"Article recette budgétaire","ARB","Recettes numéraires","RN","Trop perçu sur monnaie rendue","RN012","Mensuelle","PAB09","Unité : sans conditionnement","CAB144","dimanche 18 août 2024","RN-12"]
[null,"Article recette budgétaire","ARB","Recettes numéraires","RN","Virements de fonds","RN013","Mensuelle","PAB09","Unité : sans conditionnement","CAB144","dimanche 18 août 2024","RN-13"]

{"sheet":"BD crédits budgétaires","index":3,"n_rows":8,"n_cols":26,"rows_kept":8,"cut":false,"hidden":false,"merged":[]}
[]
[]
[null,"TabBDCréditsBudgétaires"]
[null,"Identifiant","Code Id","Nature","Code nature","Catégorie","Code catégorie","Article","Code article","Période","Code période","Conditionnement","Code conditionnement","Prix unitaire","Quantité","Total BP","Plus DM1","Moins DM1","Total DM1","Plus DM2","Moins DM2","Total DM2","Total BM","Mois BM","Date création","Numéro création"]
[null,"B0.DM013","B0","Budget primitif","BP","Dépenses médicales","DM","Verres des lunettes","DM013","Annuelle","PAB01","Unité : sans conditionnement","CAB144",400,2,800,null,null,null,null,null,null,null,null,"samedi 24 août 2024","BP-DM01"]
[null,"B1.DM013","B1","Budget décision modificative numéro une","BDM1","Dépenses médicales","DM","Verres des lunettes","DM013","Annuelle","PAB01","Unité : sans conditionnement","CAB144",null,null,800,100,null,900,null,null,null,null,null,"samedi 24 août 2024","BDM1-DM01"]
[null,"B2.DM013","B2","Budget décision modificative numéro deux","BDM2","Dépenses médicales","DM","Verres des lunettes","DM013","Annuelle","PAB01","Unité : sans conditionnement","CAB144",null,null,null,null,null,900,null,50,850,null,null,"samedi 24 août 2024","BDM2-DM01"]
[null,"BM01.DA001","BM01","Budget mensuel","BM","Dépenses alimentaires","DA","Agneau","DA001","Selon menu","PAB11","1 tranche pour 1 repas (Viandes midi weekend)","CAB120",3,1,null,null,null,null,null,null,null,3,"Janvier 2024","lundi 9 septembre 2024","BM01-DA01"]

{"sheet":"Tables BP","index":4,"n_rows":41,"n_cols":7,"rows_kept":41,"cut":false,"hidden":false,"merged":[]}
[]
[]
[null,"tabBPDA"]
[null,"Nature","Catégorie","Article","Total BP","Date création","Numéro création"]
[]
[null,"Total",null,null,{"$f":"SUBTOTAL(109,tabBPDA[Total BP])","v":0}]
[]
[null,"tabBPDB"]
[null,"Nature","Catégorie","Article","Total BP","Date création","Numéro création"]
[]
[null,"Total",null,null,{"$f":"SUBTOTAL(109,tabBPDB[Total BP])","v":0}]
[]
[null,"tabBPDH"]
[null,"Nature","Catégorie","Article","Total BP","Date création","Numéro création"]
[]
[null,"Total",null,null,{"$f":"SUBTOTAL(109,tabBPDH[Total BP])","v":0}]
[]
[null,"tabBPDM"]
[null,"Nature","Catégorie","Article","Total BP","Date création","Numéro création"]
[null,"Budget primitif","Dépenses médicales","Verres des lunettes",800,"samedi 24 août 2024","BP-DM01"]
[null,"Total",null,null,{"$f":"SUBTOTAL(109,tabBPDM[Total BP])","v":800}]
[]
[null,"tabBPDNA"]
[null,"Nature","Catégorie","Article","Total BP","Date création","Numéro création"]
[]
[null,"Total",null,null,{"$f":"SUBTOTAL(109,tabBPDNA[Total BP])","v":0}]
[]
[null,"tabBPRB"]
[null,"Nature","Catégorie","Article","Total BP","Date création","Numéro création"]
[]
[null,"Total",null,null,{"$f":"SUBTOTAL(109,tabBPRB[Total BP])","v":0}]
[]
[null,"tabBPRM"]
[null,"Nature","Catégorie","Article","Total BP","Date création","Numéro création"]
[]
[null,"Total",null,null,{"$f":"SUBTOTAL(109,tabBPRM[Total BP])","v":0}]
[]
[null,"tabBPRN"]
[null,"Nature","Catégorie","Article","Total BP","Date création","Numéro création"]
[]
[null,"Total",null,null,{"$f":"SUBTOTAL(109,tabBPRN[Total BP])","v":0}]

{"sheet":"Tables BDM1","index":5,"n_rows":41,"n_cols":10,"rows_kept":41,"cut":false,"hidden":false,"merged":[]}
[]
[]
[null,"tabBDM1DA"]
[null,"Nature","Catégorie","Article","Total BP","Plus DM1","Moins DM1","Total DM1","Date création","Numéro création"]
[]
[null,"Total",null,null,null,null,null,{"$f":"SUBTOTAL(109,tabBDM1DA[Total DM1])","v":0}]
[]
[null,"tabBDM1DB"]
[null,"Nature","Catégorie","Article","Total BP","Plus DM1","Moins DM1","Total DM1","Date création","Numéro création"]
[]
[null,"Total",null,null,null,null,null,{"$f":"SUBTOTAL(109,tabBDM1DB[Total DM1])","v":0}]
[]
[null,"tabBDM1DH"]
[null,"Nature","Catégorie","Article","Total BP","Plus DM1","Moins DM1","Total DM1","Date création","Numéro création"]
[]
[null,"Total",null,null,null,null,null,{"$f":"SUBTOTAL(109,tabBDM1DH[Total DM1])","v":0}]
[]
[null,"tabBDM1DM"]
[null,"Nature","Catégorie","Article","Total BP","Plus DM1","Moins DM1","Total DM1","Date création","Numéro création"]
[null,"Budget décision modificative numéro une","Dépenses médicales","Verres des lunettes",800,100,null,900,"samedi 24 août 2024","BDM1-DM01"]
[null,"Total",null,null,null,null,null,{"$f":"SUBTOTAL(109,tabBDM1DM[Total DM1])","v":900}]
[]
[null,"tabBDM1DNA"]
[null,"Nature","Catégorie","Article","Total BP","Plus DM1","Moins DM1","Total DM1","Date création","Numéro création"]
[]
[null,"Total",null,null,null,null,null,{"$f":"SUBTOTAL(109,tabBDM1DNA[Total DM1])","v":0}]
[]
[null,"tabBDM1RB"]
[null,"Nature","Catégorie","Article","Total BP","Plus DM1","Moins DM1","Total DM1","Date création","Numéro création"]
[]
[null,"Total",null,null,null,null,null,{"$f":"SUBTOTAL(109,tabBDM1RB[Total DM1])","v":0}]
[]
[null,"tabBDM1RM"]
[null,"Nature","Catégorie","Article","Total BP","Plus DM1","Moins DM1","Total DM1","Date création","Numéro création"]
[]
[null,"Total",null,null,null,null,null,{"$f":"SUBTOTAL(109,tabBDM1RM[Total DM1])","v":0}]
[]
[null,"tabBDM1RN"]
[null,"Nature","Catégorie","Article","Total BP","Plus DM1","Moins DM1","Total DM1","Date création","Numéro création"]
[]
[null,"Total",null,null,null,null,null,{"$f":"SUBTOTAL(109,tabBDM1RN[Total DM1])","v":0}]

{"sheet":"Tables BDM2","index":6,"n_rows":41,"n_cols":10,"rows_kept":41,"cut":false,"hidden":false,"merged":[]}
[]
[]
[null,"tabBDM2DA"]
[null,"Nature","Catégorie","Article","Total DM1","Plus DM2","Moins DM2","Total DM2","Date création","Numéro création"]
[]
[null,"Total",null,null,null,null,null,{"$f":"SUBTOTAL(109,tabBDM2DA[Total DM2])","v":0}]
[]
[null,"tabBDM2DB"]
[null,"Nature","Catégorie","Article","Total DM1","Plus DM2","Moins DM2","Total DM2","Date création","Numéro création"]
[]
[null,"Total",null,null,null,null,null,{"$f":"SUBTOTAL(109,tabBDM2DB[Total DM2])","v":0}]
[]
[null,"tabBDM2DH"]
[null,"Nature","Catégorie","Article","Total DM1","Plus DM2","Moins DM2","Total DM2","Date création","Numéro création"]
[]
[null,"Total",null,null,null,null,null,{"$f":"SUBTOTAL(109,tabBDM2DH[Total DM2])","v":0}]
[]
[null,"tabBDM2DM"]
[null,"Nature","Catégorie","Article","Total DM1","Plus DM2","Moins DM2","Total DM2","Date création","Numéro création"]
[null,"Budget décision modificative numéro deux","Dépenses médicales","Verres des lunettes",900,null,50,850,"samedi 24 août 2024","BDM2-DM01"]
[null,"Total",null,null,null,null,null,{"$f":"SUBTOTAL(109,tabBDM2DM[Total DM2])","v":850}]
[]
[null,"tabBDM2DNA"]
[null,"Nature","Catégorie","Article","Total DM1","Plus DM2","Moins DM2","Total DM2","Date création","Numéro création"]
[]
[null,"Total",null,null,null,null,null,{"$f":"SUBTOTAL(109,tabBDM2DNA[Total DM2])","v":0}]
[]
[null,"tabBDM2RB"]
[null,"Nature","Catégorie","Article","Total DM1","Plus DM2","Moins DM2","Total DM2","Date création","Numéro création"]
[]
[null,"Total",null,null,null,null,null,{"$f":"SUBTOTAL(109,tabBDM2RB[Total DM2])","v":0}]
[]
[null,"tabBDM2RM"]
[null,"Nature","Catégorie","Article","Total DM1","Plus DM2","Moins DM2","Total DM2","Date création","Numéro création"]
[]
[null,"Total",null,null,null,null,null,{"$f":"SUBTOTAL(109,tabBDM2RM[Total DM2])","v":0}]
[]
[null,"tabBDM2RN"]
[null,"Nature","Catégorie","Article","Total DM1","Plus DM2","Moins DM2","Total DM2","Date création","Numéro création"]
[]
[null,"Total",null,null,null,null,null,{"$f":"SUBTOTAL(109,tabBDM2RN[Total DM2])","v":0}]

{"sheet":"Tables BM","index":7,"n_rows":61,"n_cols":64,"rows_kept":61,"cut":false,"hidden":false,"merged":[]}
[]
[]
[null,"tabBM01DA",null,null,null,null,null,null,null,"tabBM01DB",null,null,null,null,null,null,null,"tabBM01DH",null,null,null,null,null,null,null,"tabBM01DM",null,null,null,null,null,null,null,"tabBM01DNA",null,null,null,null,null,null,null,"tabBM01RB",null,null,null,null,null,null,null,"tabBM01RM",null,null,null,null,null,null,null,"tabBM01RN"]
[null,"Nature","Catégorie","Article","Total BM","Date création","Numéro création","Mois BM",null,"Nature","Catégorie","Article","Total BM","Date création","Numéro création","Mois BM",null,"Nature","Catégorie","Article","Total BM","Date création","Numéro création","Mois BM",null,"Nature","Catégorie","Article","Total BM","Date création","Numéro création","Mois BM",null,"Nature","Catégorie","Article","Total BM","Date création","Numéro création","Mois BM",null,"Nature","Catégorie","Article","Total BM","Date création","Numéro création","Mois BM",null,"Nature","Catégorie","Article","Total BM","Date création","Numéro création","Mois BM",null,"Nature","Catégorie","Article","Total BM","Date création","Numéro création","Mois BM"]
[null,"Budget mensuel","Dépenses alimentaires","Agneau",3,"lundi 9 septembre 2024","BM01-DA01","Janvier 2024"]
[null,"Total",null,null,{"$f":"SUBTOTAL(109,tabBM01DA[Total BM])","v":3},null,null,null,null,"Total",null,null,{"$f":"SUBTOTAL(109,tabBM01DB[Total BM])","v":0},null,null,null,null,"Total",null,null,{"$f":"SUBTOTAL(109,tabBM01DH[Total BM])","v":0},null,null,null,null,"Total",null,null,{"$f":"SUBTOTAL(109,tabBM01DM[Total BM])","v":0},null,null,null,null,"Total",null,null,{"$f":"SUBTOTAL(109,tabBM01DNA[Total BM])","v":0},null,null,null,null,"Total",null,null,{"$f":"SUBTOTAL(109,tabBM01RB[Total BM])","v":0},null,null,null,null,"Total",null,null,{"$f":"SUBTOTAL(109,tabBM01RM[Total BM])","v":0},null,null,null,null,"Total",null,null,{"$f":"SUBTOTAL(109,tabBM01RN[Total BM])","v":0}]
[]
[null,"tabBM02DA",null,null,null,null,null,null,null,"tabBM02DB",null,null,null,null,null,null,null,"tabBM02DH",null,null,null,null,null,null,null,"tabBM02DM",null,null,null,null,null,null,null,"tabBM02DNA",null,null,null,null,null,null,null,"tabBM02RB",null,null,null,null,null,null,null,"tabBM02RM",null,null,null,null,null,null,null,"tabBM02RN"]
[null,"Nature","Catégorie","Article","Total BM","Date création","Numéro création","Mois BM",null,"Nature","Catégorie","Article","Total BM","Date création","Numéro création","Mois BM",null,"Nature","Catégorie","Article","Total BM","Date création","Numéro création","Mois BM",null,"Nature","Catégorie","Article","Total BM","Date création","Numéro création","Mois BM",null,"Nature","Catégorie","Article","Total BM","Date création","Numéro création","Mois BM",null,"Nature","Catégorie","Article","Total BM","Date création","Numéro création","Mois BM",null,"Nature","Catégorie","Article","Total BM","Date création","Numéro création","Mois BM",null,"Nature","Catégorie","Article","Total BM","Date création","Numéro création","Mois BM"]
[]
[null,"Total",null,null,{"$f":"SUBTOTAL(109,tabBM02DA[Total BM])","v":0},null,null,null,null,"Total",null,null,{"$f":"SUBTOTAL(109,tabBM02DB[Total BM])","v":0},null,null,null,null,"Total",null,null,{"$f":"SUBTOTAL(109,tabBM02DH[Total BM])","v":0},null,null,null,null,"Total",null,null,{"$f":"SUBTOTAL(109,tabBM02DM[Total BM])","v":0},null,null,null,null,"Total",null,null,{"$f":"SUBTOTAL(109,tabBM02DNA[Total BM])","v":0},null,null,null,null,"Total",null,null,{"$f":"SUBTOTAL(109,tabBM02RB[Total BM])","v":0},null,null,null,null,"Total",null,null,{"$f":"SUBTOTAL(109,tabBM02RM[Total BM])","v":0},null,null,null,null,"Total",null,null,{"$f":"SUBTOTAL(109,tabBM02RN[Total BM])","v":0}]
[]
[null,"tabBM03DA",null,null,null,null,null,null,null,"tabBM03DB",null,null,null,null,null,null,null,"tabBM03DH",null,null,null,null,null,null,null,"tabBM03DM",null,null,null,null,null,null,null,"tabBM03DNA",null,null,null,null,null,null,null,"tabBM03RB",null,null,null,null,null,null,null,"tabBM03RM",null,null,null,null,null,null,null,"tabBM03RN"]
[null,"Nature","Catégorie","Article","Total BM","Date création","Numéro création","Mois BM",null,"Nature","Catégorie","Article","Total BM","Date création","Numéro création","Mois BM",null,"Nature","Catégorie","Article","Total BM","Date création","Numéro création","Mois BM",null,"Nature","Catégorie","Article","Total BM","Date création","Numéro création","Mois BM",null,"Nature","Catégorie","Article","Total BM","Date création","Numéro création","Mois BM",null,"Nature","Catégorie","Article","Total BM","Date création","Numéro création","Mois BM",null,"Nature","Catégorie","Article","Total BM","Date création","Numéro création","Mois BM",null,"Nature","Catégorie","Article","Total BM","Date création","Numéro création","Mois BM"]
[]
[null,"Total",null,null,{"$f":"SUBTOTAL(109,tabBM03DA[Total BM])","v":0},null,null,null,null,"Total",null,null,{"$f":"SUBTOTAL(109,tabBM03DB[Total BM])","v":0},null,null,null,null,"Total",null,null,{"$f":"SUBTOTAL(109,tabBM03DH[Total BM])","v":0},null,null,null,null,"Total",null,null,{"$f":"SUBTOTAL(109,tabBM03DM[Total BM])","v":0},null,null,null,null,"Total",null,null,{"$f":"SUBTOTAL(109,tabBM03DNA[Total BM])","v":0},null,null,null,null,"Total",null,null,{"$f":"SUBTOTAL(109,tabBM03RB[Total BM])","v":0},null,null,null,null,"Total",null,null,{"$f":"SUBTOTAL(109,tabBM03RM[Total BM])","v":0},null,null,null,null,"Total",null,null,{"$f":"SUBTOTAL(109,tabBM03RN[Total BM])","v":0}]
[]
[null,"tabBM04DA",null,null,null,null,null,null,null,"tabBM04DB",null,null,null,null,null,null,null,"tabBM04DH",null,null,null,null,null,null,null,"tabBM04DM",null,null,null,null,null,null,null,"tabBM04DNA",null,null,null,null,null,null,null,"tabBM04RB",null,null,null,null,null,null,null,"tabBM04RM",null,null,null,null,null,null,null,"tabBM04RN"]
[null,"Nature","Catégorie","Article","Total BM","Date création","Numéro création","Mois BM",null,"Nature","Catégorie","Article","Total BM","Date création","Numéro création","Mois BM",null,"Nature","Catégorie","Article","Total BM","Date création","Numéro création","Mois BM",null,"Nature","Catégorie","Article","Total BM","Date création","Numéro création","Mois BM",null,"Nature","Catégorie","Article","Total BM","Date création","Numéro création","Mois BM",null,"Nature","Catégorie","Article","Total BM","Date création","Numéro création","Mois BM",null,"Nature","Catégorie","Article","Total BM","Date création","Numéro création","Mois BM",null,"Nature","Catégorie","Article","Total BM","Date création","Numéro création","Mois BM"]
[]
[null,"Total",null,null,{"$f":"SUBTOTAL(109,tabBM04DA[Total BM])","v":0},null,null,null,null,"Total",null,null,{"$f":"SUBTOTAL(109,tabBM04DB[Total BM])","v":0},null,null,null,null,"Total",null,null,{"$f":"SUBTOTAL(109,tabBM04DH[Total BM])","v":0},null,null,null,null,"Total",null,null,{"$f":"SUBTOTAL(109,tabBM04DM[Total BM])","v":0},null,null,null,null,"Total",null,null,{"$f":"SUBTOTAL(105,tabBM04DNA[Total BM])","v":0},null,null,null,null,"Total",null,null,{"$f":"SUBTOTAL(109,tabBM04RB[Total BM])","v":0},null,null,null,null,"Total",null,null,{"$f":"SUBTOTAL(109,tabBM04RM[Total BM])","v":0},null,null,null,null,"Total",null,null,{"$f":"SUBTOTAL(109,tabBM04RN[Total BM])","v":0}]
[]
[null,"tabBM05DA",null,null,null,null,null,null,null,"tabBM05DB",null,null,null,null,null,null,null,"tabBM05DH",null,null,null,null,null,null,null,"tabBM05DM",null,null,null,null,null,null,null,"tabBM05DNA",null,null,null,null,null,null,null,"tabBM05RB",null,null,null,null,null,null,null,"tabBM05RM",null,null,null,null,null,null,null,"tabBM05RN"]
[null,"Nature","Catégorie","Article","Total BM","Date création","Numéro création","Mois BM",null,"Nature","Catégorie","Article","Total BM","Date création","Numéro création","Mois BM",null,"Nature","Catégorie","Article","Total BM","Date création","Numéro création","Mois BM",null,"Nature","Catégorie","Article","Total BM","Date création","Numéro création","Mois BM",null,"Nature","Catégorie","Article","Total BM","Date création","Numéro création","Mois BM",null,"Nature","Catégorie","Article","Total BM","Date création","Numéro création","Mois BM",null,"Nature","Catégorie","Article","Total BM","Date création","Numéro création","Mois BM",null,"Nature","Catégorie","Article","Total BM","Date création","Numéro création","Mois BM"]
[]
[null,"Total",null,null,{"$f":"SUBTOTAL(109,tabBM05DA[Total BM])","v":0},null,null,null,null,"Total",null,null,{"$f":"SUBTOTAL(109,tabBM05DB[Total BM])","v":0},null,null,null,null,"Total",null,null,{"$f":"SUBTOTAL(109,tabBM05DH[Total BM])","v":0},null,null,null,null,"Total",null,null,{"$f":"SUBTOTAL(109,tabBM05DM[Total BM])","v":0},null,null,null,null,"Total",null,null,{"$f":"SUBTOTAL(109,tabBM05DNA[Total BM])","v":0},null,null,null,null,"Total",null,null,{"$f":"SUBTOTAL(109,tabBM05RB[Total BM])","v":0},null,null,null,null,"Total",null,null,{"$f":"SUBTOTAL(109,tabBM05RM[Total BM])","v":0},null,null,null,null,"Total",null,null,{"$f":"SUBTOTAL(109,tabBM05RN[Total BM])","v":0}]
[]
[null,"tabBM06DA",null,null,null,null,null,null,null,"tabBM06DB",null,null,null,null,null,null,null,"tabBM06DH",null,null,null,null,null,null,null,"tabBM06DM",null,null,null,null,null,null,null,"tabBM06DNA",null,null,null,null,null,null,null,"tabBM06RB",null,null,null,null,null,null,null,"tabBM06RM",null,null,null,null,null,null,null,"tabBM06RN"]
[null,"Nature","Catégorie","Article","Total BM","Date création","Numéro création","Mois BM",null,"Nature","Catégorie","Article","Total BM","Date création","Numéro création","Mois BM",null,"Nature","Catégorie","Article","Total BM","Date création","Numéro création","Mois BM",null,"Nature","Catégorie","Article","Total BM","Date création","Numéro création","Mois BM",null,"Nature","Catégorie","Article","Total BM","Date création","Numéro création","Mois BM",null,"Nature","Catégorie","Article","Total BM","Date création","Numéro création","Mois BM",null,"Nature","Catégorie","Article","Total BM","Date création","Numéro création","Mois BM",null,"Nature","Catégorie","Article","Total BM","Date création","Numéro création","Mois BM"]
[]
[null,"Total",null,null,{"$f":"SUBTOTAL(109,tabBM06DA[Total BM])","v":0},null,null,null,null,"Total",null,null,{"$f":"SUBTOTAL(109,tabBM06DB[Total BM])","v":0},null,null,null,null,"Total",null,null,{"$f":"SUBTOTAL(109,tabBM06DH[Total BM])","v":0},null,null,null,null,"Total",null,null,{"$f":"SUBTOTAL(109,tabBM06DM[Total BM])","v":0},null,null,null,null,"Total",null,null,{"$f":"SUBTOTAL(109,tabBM06DNA[Total BM])","v":0},null,null,null,null,"Total",null,null,{"$f":"SUBTOTAL(105,tabBM06RB[Total BM])","v":0},null,null,null,null,"Total",null,null,{"$f":"SUBTOTAL(109,tabBM06RM[Total BM])","v":0},null,null,null,null,"Total",null,null,{"$f":"SUBTOTAL(109,tabBM06RN[Total BM])","v":0}]
[]
[null,"tabBM07DA",null,null,null,null,null,null,null,"tabBM07DB",null,null,null,null,null,null,null,"tabBM07DH",null,null,null,null,null,null,null,"tabBM07DM",null,null,null,null,null,null,null,"tabBM07DNA",null,null,null,null,null,null,null,"tabBM07RB",null,null,null,null,null,null,null,"tabBM07RM",null,null,null,null,null,null,null,"tabBM07RN"]
[null,"Nature","Catégorie","Article","Total BM","Date création","Numéro création","Mois BM",null,"Nature","Catégorie","Article","Total BM","Date création","Numéro création","Mois BM",null,"Nature","Catégorie","Article","Total BM","Date création","Numéro création","Mois BM",null,"Nature","Catégorie","Article","Total BM","Date création","Numéro création","Mois BM",null,"Nature","Catégorie","Article","Total BM","Date création","Numéro création","Mois BM",null,"Nature","Catégorie","Article","Total BM","Date création","Numéro création","Mois BM",null,"Nature","Catégorie","Article","Total BM","Date création","Numéro création","Mois BM",null,"Nature","Catégorie","Article","Total BM","Date création","Numéro création","Mois BM"]
[]
[null,"Total",null,null,{"$f":"SUBTOTAL(109,tabBM07DA[Total BM])","v":0},null,null,null,null,"Total",null,null,{"$f":"SUBTOTAL(109,tabBM07DB[Total BM])","v":0},null,null,null,null,"Total",null,null,{"$f":"SUBTOTAL(109,tabBM07DH[Total BM])","v":0},null,null,null,null,"Total",null,null,{"$f":"SUBTOTAL(109,tabBM07DM[Total BM])","v":0},null,null,null,null,"Total",null,null,{"$f":"SUBTOTAL(109,tabBM07DNA[Total BM])","v":0},null,null,null,null,"Total",null,null,{"$f":"SUBTOTAL(109,tabBM07RB[Total BM])","v":0},null,null,null,null,"Total",null,null,{"$f":"SUBTOTAL(109,tabBM07RM[Total BM])","v":0},null,null,null,null,"Total",null,null,{"$f":"SUBTOTAL(109,tabBM07RN[Total BM])","v":0}]
[]
[null,"tabBM08DA",null,null,null,null,null,null,null,"tabBM08DB",null,null,null,null,null,null,null,"tabBM08DH",null,null,null,null,null,null,null,"tabBM08DM",null,null,null,null,null,null,null,"tabBM08DNA",null,null,null,null,null,null,null,"tabBM08RB",null,null,null,null,null,null,null,"tabBM08RM",null,null,null,null,null,null,null,"tabBM08RN"]
[null,"Nature","Catégorie","Article","Total BM","Date création","Numéro création","Mois BM",null,"Nature","Catégorie","Article","Total BM","Date création","Numéro création","Mois BM",null,"Nature","Catégorie","Article","Total BM","Date création","Numéro création","Mois BM",null,"Nature","Catégorie","Article","Total BM","Date création","Numéro création","Mois BM",null,"Nature","Catégorie","Article","Total BM","Date création","Numéro création","Mois BM",null,"Nature","Catégorie","Article","Total BM","Date création","Numéro création","Mois BM",null,"Nature","Catégorie","Article","Total BM","Date création","Numéro création","Mois BM",null,"Nature","Catégorie","Article","Total BM","Date création","Numéro création","Mois BM"]
[]
[null,"Total",null,null,{"$f":"SUBTOTAL(109,tabBM08DA[Total BM])","v":0},null,null,null,null,"Total",null,null,{"$f":"SUBTOTAL(109,tabBM08DB[Total BM])","v":0},null,null,null,null,"Total",null,null,{"$f":"SUBTOTAL(109,tabBM08DH[Total BM])","v":0},null,null,null,null,"Total",null,null,{"$f":"SUBTOTAL(109,tabBM08DM[Total BM])","v":0},null,null,null,null,"Total",null,null,{"$f":"SUBTOTAL(109,tabBM08DNA[Total BM])","v":0},null,null,null,null,"Total",null,null,{"$f":"SUBTOTAL(105,tabBM08RB[Total BM])","v":0},null,null,null,null,"Total",null,null,{"$f":"SUBTOTAL(109,tabBM08RM[Total BM])","v":0},null,null,null,null,"Total",null,null,{"$f":"SUBTOTAL(109,tabBM08RN[Total BM])","v":0}]
[]
[null,"tabBM09DA",null,null,null,null,null,null,null,"tabBM09DB",null,null,null,null,null,null,null,"tabBM09DH",null,null,null,null,null,null,null,"tabBM09DM",null,null,null,null,null,null,null,"tabBM09DNA",null,null,null,null,null,null,null,"tabBM09RB",null,null,null,null,null,null,null,"tabBM09RM",null,null,null,null,null,null,null,"tabBM09RN"]
[null,"Nature","Catégorie","Article","Total BM","Date création","Numéro création","Mois BM",null,"Nature","Catégorie","Article","Total BM","Date création","Numéro création","Mois BM",null,"Nature","Catégorie","Article","Total BM","Date création","Numéro création","Mois BM",null,"Nature","Catégorie","Article","Total BM","Date création","Numéro création","Mois BM",null,"Nature","Catégorie","Article","Total BM","Date création","Numéro création","Mois BM",null,"Nature","Catégorie","Article","Total BM","Date création","Numéro création","Mois BM",null,"Nature","Catégorie","Article","Total BM","Date création","Numéro création","Mois BM",null,"Nature","Catégorie","Article","Total BM","Date création","Numéro création","Mois BM"]
[]
[null,"Total",null,null,{"$f":"SUBTOTAL(109,tabBM09DA[Total BM])","v":0},null,null,null,null,"Total",null,null,{"$f":"SUBTOTAL(109,tabBM09DB[Total BM])","v":0},null,null,null,null,"Total",null,null,{"$f":"SUBTOTAL(109,tabBM09DH[Total BM])","v":0},null,null,null,null,"Total",null,null,{"$f":"SUBTOTAL(109,tabBM09DM[Total BM])","v":0},null,null,null,null,"Total",null,null,{"$f":"SUBTOTAL(109,tabBM09DNA[Total BM])","v":0},null,null,null,null,"Total",null,null,{"$f":"SUBTOTAL(109,tabBM09RB[Total BM])","v":0},null,null,null,null,"Total",null,null,{"$f":"SUBTOTAL(109,tabBM09RM[Total BM])","v":0},null,null,null,null,"Total"]
[]
[null,"tabBM10DA",null,null,null,null,null,null,null,"tabBM10DB",null,null,null,null,null,null,null,"tabBM10DH",null,null,null,null,null,null,null,"tabBM10DM",null,null,null,null,null,null,null,"tabBM10DNA",null,null,null,null,null,null,null,"tabBM10RB",null,null,null,null,null,null,null,"tabBM10RM",null,null,null,null,null,null,null,"tabBM10RN"]
[null,"Nature","Catégorie","Article","Total BM","Date création","Numéro création","Mois BM",null,"Nature","Catégorie","Article","Total BM","Date création","Numéro création","Mois BM",null,"Nature","Catégorie","Article","Total BM","Date création","Numéro création","Mois BM",null,"Nature","Catégorie","Article","Total BM","Date création","Numéro création","Mois BM",null,"Nature","Catégorie","Article","Total BM","Date création","Numéro création","Mois BM",null,"Nature","Catégorie","Article","Total BM","Date création","Numéro création","Mois BM",null,"Nature","Catégorie","Article","Total BM","Date création","Numéro création","Mois BM",null,"Nature","Catégorie","Article","Total BM","Date création","Numéro création","Mois BM"]
[]
[null,"Total",null,null,{"$f":"SUBTOTAL(105,tabBM10DA[Total BM])","v":0},null,null,null,null,"Total",null,null,{"$f":"SUBTOTAL(109,tabBM10DB[Total BM])","v":0},null,null,null,null,"Total",null,null,{"$f":"SUBTOTAL(109,tabBM10DH[Total BM])","v":0},null,null,null,null,"Total",null,null,{"$f":"SUBTOTAL(109,tabBM09DM[Total BM])","v":0},null,null,null,null,"Total",null,null,{"$f":"SUBTOTAL(109,tabBM10DNA[Total BM])","v":0},null,null,null,null,"Total",null,null,{"$f":"SUBTOTAL(109,tabBM10RB[Total BM])","v":0},null,null,null,null,"Total",null,null,{"$f":"SUBTOTAL(109,tabBM10RM[Total BM])","v":0},null,null,null,null,"Total",null,null,{"$f":"SUBTOTAL(109,tabBM10RN[Total BM])","v":0}]
[]
[null,"tabBM11DA",null,null,null,null,null,null,null,"tabBM11DB",null,null,null,null,null,null,null,"tabBM11DH",null,null,null,null,null,null,null,"tabBM11DM",null,null,null,null,null,null,null,"tabBM11DNA",null,null,null,null,null,null,null,"tabBM11RB",null,null,null,null,null,null,null,"tabBM11RM",null,null,null,null,null,null,null,"tabBM11RN"]
[null,"Nature","Catégorie","Article","Total BM","Date création","Numéro création","Mois BM",null,"Nature","Catégorie","Article","Total BM","Date création","Numéro création","Mois BM",null,"Nature","Catégorie","Article","Total BM","Date création","Numéro création","Mois BM",null,"Nature","Catégorie","Article","Total BM","Date création","Numéro création","Mois BM",null,"Nature","Catégorie","Article","Total BM","Date création","Numéro création","Mois BM",null,"Nature","Catégorie","Article","Total BM","Date création","Numéro création","Mois BM",null,"Nature","Catégorie","Article","Total BM","Date création","Numéro création","Mois BM",null,"Nature","Catégorie","Article","Total BM","Date création","Numéro création","Mois BM"]
[]
[null,"Total",null,null,{"$f":"SUBTOTAL(109,tabBM11DA[Total BM])","v":0},null,null,null,null,"Total",null,null,{"$f":"SUBTOTAL(109,tabBM11DB[Total BM])","v":0},null,null,null,null,"Total",null,null,{"$f":"SUBTOTAL(109,tabBM11DH[Total BM])","v":0},null,null,null,null,"Total",null,null,{"$f":"SUBTOTAL(109,tabBM09DM[Total BM])","v":0},null,null,null,null,"Total",null,null,{"$f":"SUBTOTAL(109,tabBM11DNA[Total BM])","v":0},null,null,null,null,"Total",null,null,{"$f":"SUBTOTAL(109,tabBM11RB[Total BM])","v":0},null,null,null,null,"Total",null,null,{"$f":"SUBTOTAL(109,tabBM11RM[Total BM])","v":0},null,null,null,null,"Total",null,null,{"$f":"SUBTOTAL(109,tabBM11RN[Total BM])","v":0}]
[]
[null,"tabBM12DA",null,null,null,null,null,null,null,"tabBM12DB",null,null,null,null,null,null,null,"tabBM12DH",null,null,null,null,null,null,null,"tabBM12DM",null,null,null,null,null,null,null,"tabBM12DNA",null,null,null,null,null,null,null,"tabBM12RB",null,null,null,null,null,null,null,"tabBM12RM",null,null,null,null,null,null,null,"tabBM12RN"]
[null,"Nature","Catégorie","Article","Total BM","Date création","Numéro création","Mois BM",null,"Nature","Catégorie","Article","Total BM","Date création","Numéro création","Mois BM",null,"Nature","Catégorie","Article","Total BM","Date création","Numéro création","Mois BM",null,"Nature","Catégorie","Article","Total BM","Date création","Numéro création","Mois BM",null,"Nature","Catégorie","Article","Total BM","Date création","Numéro création","Mois BM",null,"Nature","Catégorie","Article","Total BM","Date création","Numéro création","Mois BM",null,"Nature","Catégorie","Article","Total BM","Date création","Numéro création","Mois BM",null,"Nature","Catégorie","Article","Total BM","Date création","Numéro création","Mois BM"]
[]
[null,"Total",null,null,null,null,null,null,null,"Total",null,null,{"$f":"SUBTOTAL(109,tabBM12DB[Total BM])","v":0},null,null,null,null,"Total",null,null,{"$f":"SUBTOTAL(109,tabBM12DH[Total BM])","v":0},null,null,null,null,"Total",null,null,{"$f":"SUBTOTAL(109,tabBM09DM[Total BM])","v":0},null,null,null,null,"Total",null,null,{"$f":"SUBTOTAL(109,tabBM12DNA[Total BM])","v":0},null,null,null,null,"Total",null,null,{"$f":"SUBTOTAL(109,tabBM12RB[Total BM])","v":0},null,null,null,null,"Total",null,null,{"$f":"SUBTOTAL(109,tabBM12RM[Total BM])","v":0},null,null,null,null,"Total",null,null,{"$f":"SUBTOTAL(109,tabBM12RN[Total BM])","v":0}]

{"sheet":"BD opérations financières","index":8,"n_rows":4,"n_cols":21,"rows_kept":4,"cut":false,"hidden":false,"merged":[]}
["Feuille BD opérations financières."]
[]
["TabBDOpérationsFinancières"]
["Identifiant","Code ID","Date opération","Nature","Code nature","Catégorie","Code catégorie","Article","Code article","Mois concerné","Client ou fournisseur","Nom client","Nom fournisseur","Prix unitaire","Quantité","Total opération","Objet opération","Date création","Numéro création","Numéro ticket","Mode règlement"]

{"sheet":"Tables OF","index":9,"n_rows":0,"n_cols":0,"rows_kept":0,"cut":false,"hidden":false,"merged":[]}